Workbook

Sheet PRESENTACIÓN

Sheet RESUMEN DE ESTADÍSTICAS EDUCATI
B3: RESUMEN DE ESTADISTICAS EDUCATIVAS
A10: Organigrama 1.1 | B10: SISTEMA NACIONAL DE EDUCACIÓN
A11: Organigrama 1.2 | B11: ESTRUCTURA ORGANIZACIONAL DEL SISTEMA NACIONAL DE EDUCACIÓN
A12: Organigrama 2.1 | B12: ESTRUCTURA ORGANIZACIONAL DEL SISTEMA NACIONAL DE EDUCACIÓN EN LA PRIMERA INFANCIA
A14: Cuadro 2.1 | B14: MATRÍCULA DEL SISTEMA EDUCATIVO POR AÑO LECTIVO SEGÚN NIVEL, FORMA DE ADMINISTRACIÓN Y MODALIDAD

Sheet Organigrama 1.1
B2: Organigrama 1.1 SISTEMA NACIONAL DE EDUCACIÓN - 2017
BM4: SISTEMA NACIONAL DE EDUCACIÓN - 2017
J7: ESCOLARIDAD OBLIGATORIA
BG8: CAMPO LABORAL
I11: EDUC. INICIAL
O12: EDUCACIÓN PRIMARIA | X12: EDUCACIÓN MEDIA | AV12: EDUCACIÓN TERCIARIA
C15: 0 | D15: 1 | E15: 2 | I15: 3 | J15: 4 | K15: 5 | O15: 1º | P15: 2º | Q15: 3º | R15: 4º | S15: 5º | T15: 6º | AG15: Formación profesional técnica y tecnológica | AV15: EDUCACIÓN UNIVERSITARIA
C16: EDUCACIÓN EN LA PRIMERA INFANCIA | I16: EDUCACIÓN INICIAL | O16: EDUCACIÓN PRIMARIA | Q16: Incluye: - Urbana común - Rural común - T.C. - Especial - Escuelas Aprender - Práctica
Z17: 1º | AA17: 2º | AB17: 3º
X18: EDUCACIÓN MEDIA BÁSICA | Y18: Educación media básica general (incluye 7º, 8º y 9º rural)
AK20: 1º | AL20: 2º | AM20: 3º
AG21: EDUCACIÓN MEDIA SUPERIOR | AK21: Educación media tecnológica superior
AX22: 1º | AY22: 2º | AZ22: 3º | BA22: 4º
AV23: FORMACIÓN EN EDUCACIÓN
Z27: 1º | AA27: 2º | AB27: 3º
Y28: Educación media básica tecnológica | AX28: 1º | AY28: 2º | AZ28: 3º | BA28: 4º
AK29: 4º | AL29: 5º | AM29: 6º | AV29: EDUCACIÓN TERCIARIA NO UNIVERSITARIA (técnicas, policial, militar, artística, etc.)
AK30: Educación media general superior
C35: 0-2 años | I35: 3-5 años | O35: 6 años | X35: 12 años | AG35: 15 años | AV35: 18 años
C38: EDUCACIÓN NO FORMAL
B47: Fuente: Elaboración propia. División de Investigación y Estadística, Dirección de Educación, MEC.

Sheet Organigrama 1.2
A79: Fuente: Elaboración propia. División de Investigación y Estadística, Dirección de Educación, MEC.

Sheet Organigrama 2.1
A1: Ministerio de Educación y Cultura Dirección de Educación
A4: Organigrama 2.1
A5: ESTRUCTURA ORGANIZACIONAL DEL SISTEMA NACIONAL DE EDUCACIÓN EN LA PRIMERA INFANCIA Y EN EDUCACIÓN INICIAL - 2012
Z9: EDUCACIÓN EN LA PRIMERA INFANCIA | AH9: EDUCACIÓN INICIAL
Z11: 0 a 24 meses | AC11: 2 años | AH11: 3 a 5 años
U14: Experiencias Oportunas | Z14: Talleres
L15: CAIF
G17: INAU | U17: Modalidad Diaria | Z17: Diseño Básico Curricular (0 a 36 meses)
B19: EDUCACIÓN EN LA PRIMERA INFANCIA E INICIAL
Z20: Diseño Básico Curricular (0 a 36 meses)
L21: CAPI / Nuestros Niños
U22: Modalidad Diaria
AH23: Programa de Educación Inicial y Primaria
Z27: Diseño Básico Curricular (0 a 36 meses)
L28: Centros Educativos Privados | P28: Colegios y Jardines de Infantes Habilitados o Autorizados
AH30: Programa de Educación Inicial y Primaria
P34: Centros Educativos Primera Infancia (CEPI) | Z34: Diseño Básico Curricular (0 a 36 meses)
U37: Común
G39: ANEP CEIP
P40: Grupos de Educación Inicial en Escuelas (urbanas y rurales) | U40: Tiempo extendido
L43: Centros Educativos Públicos | U43: Tiempo completo
AH44: Programa de Educación Inicial y Primaria
P47: Grupos de Educación Inicial en Jardines de Infantes | U47: APRENDER
U50: JICI
U53: Práctica o Hab. de Prác.
G56: Primera Infancia MEC | L56: Centros de Educación Infantil Privados | Z56: Diseño Básico Curricular (0 a 36 meses)
AH57: Programa de Educación Inicial y Primaria

Sheet Cuadro 2.1
A1: Ministerio de Educación y Cultura Dirección de Educación
A6: Cuadro 2.1
A7: MATRÍCULA DEL SISTEMA EDUCATIVO POR AÑO LECTIVO SEGÚN NIVEL, FORMA DE ADMINISTRACIÓN Y MODALIDAD
A8: NIVEL/FORMA DE ADMINISTRACIÓN/MODALIDAD | D8: AÑO LECTIVO
D9: 2002 | E9: 2003 | F9: 2004 | G9: 2005 | H9: 2006 | I9: 2007 | J9: 2008 | K9: 2009 | L9: 2010 | M9: 2011 | N9: 2012 | O9: 2013 | P9: 2014 | Q9: 2015 | R9: 2016 | S9: 2017
A11: TOTAL SISTEMA | D11: =D13+D18+D30+D44+D46 -> 942084 | E11: 948314 | F11: 953588 | G11: 937694 | H11: 949023 | I11: 948476 | J11: 988239 | K11: 990234 | L11: =K13+L18+L30+L44+L46 -> 987367 | M11: =M13+M18+M30+M44+M46 -> 984184 | N11: 992485 | O11: 993510 | P11: 996591 | Q11: 990998 | R11: 1000372 | S11: =S13+S18+S30+S44+S46 -> 1000761
A13: Total Edu. en la Primera Infancia e Inicial 1 | D13: 144319 | E13: 133964 | F13: 140628 | G13: 133640 | H13: 142611 | I13: 140037 | J13: 176001 | K13: 177112 | L13: 177777 | M13: 173488 | N13: =N15+N16 -> 176477 | O13: 177733 | P13: 181517 | Q13: 185497 | R13: 188134 | S13: 187852
B15: Inicial de 0a 2 años | D15: S/D | E15: S/D | F15: S/D | G15: S/D | H15: S/D | I15: S/D | J15: S/D | K15: S/D | L15: S/D | M15: S/D | N15: 47500 | O15: 48530 | P15: 52269 | Q15: 54231 | R15: 55697 | S15: 55272
B16: Primera Infancia de 3 a 5 años | N16: 128977 | O16: 129203 | P16: 129248 | Q16: 131266 | R16: 132437 | S16: 132580
A18: Total Educación Primaria | D18: =D20+D23+D26 -> 365004 | E18: 365495 | F18: 367428 | G18: 365840 | H18: 365879 | I18: 360653 | J18: 354852 | K18: 349271 | L18: 347207 | M18: 341607 | N18: 334130 | O18: 329000 | P18: 323695 | Q18: =Q20+Q23+Q26 -> 318338 | R18: =R20+R23+R26 -> 314236 | S18: =S20+S23+S26 -> 308710
B20: Primaria Común | D20: =D21+D22 -> 353826 | E20: 354843 | F20: 355568 | G20: 354777 | H20: 353528 | I20: 348579 | J20: 342498 | K20: 336865 | L20: 330548 | M20: =M21+M22 -> 325509 | N20: 319238 | O20: 314760 | P20: 309409 | Q20: 304060 | R20: 299908 | S20: =S21+S22 -> 295788
C21: Común pública 2 | D21: 307756 | E21: 311141 | F21: 311350 | G21: 309286 | H21: 306030 | I21: 300143 | J21: 292542 | K21: 286092 | L21: 279445 | M21: 273440 | N21: 266349 | O21: 261188 | P21: 255451 | Q21: 250483 | R21: 246382 | S21: 243955
C22: Común privada | D22: 46070 | E22: 43702 | F22: 44218 | G22: 45491 | H22: 47498 | I22: 48436 | J22: 49956 | K22: 50773 | L22: 51103 | M22: 52069 | N22: 52889 | O22: 53572 | P22: 53958 | Q22: 53577 | R22: 53526 | S22: 51833
B23: Primaria Especial | D23: =D24+D25 -> 11178 | E23: 10652 | F23: 11860 | G23: 11063 | H23: 12351 | I23: 12074 | J23: 12354 | K23: 12406 | L23: 11808 | M23: =M24+M25 -> 11253 | N23: 10504 | O23: 9953 | P23: 9999 | Q23: 9991 | R23: 10041 | S23: =S24+S25 -> 8635
C24: Especial pública | D24: 9076 | E24: 8884 | F24: 8553 | G24: 8379 | H24: 8221 | I24: 7913 | J24: 7778 | K24: 7535 | L24: 7416 | M24: 7286 | N24: 6910 | O24: 6813 | P24: 6638 | Q24: 6586 | R24: 6437 | S24: 6205
C25: Especial privada | D25: 2102 | E25: 1768 | F25: 3307 | G25: 2684 | H25: 4130 | I25: 4161 | J25: 4576 | K25: 4871 | L25: 4392 | M25: 3967 | N25: 3594 | O25: 3140 | P25: 3361 | Q25: 3405 | R25: 3604 | S25: 2430
B26: Programa Jóvenes y Adultos ANEP8 | L26: =L27+L28 -> 4851 | M26: 4845 | N26: 4388 | O26: 4287 | P26: 4287 | Q26: 4287 | R26: =R27+R28 -> 4287 | S26: =S27+S28 -> 4287
C27: Educación Primaria (Niveles I y II y Programa de Alfabetización) | L27: 3827 | M27: 3804 | N27: 3234 | O27: 3136 | P27: 3136 | Q27: 3136 | R27: 3136 | S27: 3136
C28: Pruebas de Acreditación | L28: 1024 | M28: 1041 | N28: 1154 | O28: 1151 | P28: 1151 | Q28: 1151 | R28: 1151 | S28: 1151
A30: Total Educación Media | D30: =D32+D38 -> 295399 | E30: 306417 | F30: 306778 | G30: 302311 | H30: 300681 | I30: 298925 | J30: 310128 | K30: 320420 | L30: 322977 | M30: 331659 | N30: 335126 | O30: 337634 | P30: 339271 | Q30: =Q32+Q38 -> 340853 | R30: =R32+R38 -> 348024 | S30: =S32+S38 -> 357264
B32: Total Educación Media Básica | D32: =D33+D34+D37 -> 162664 | E32: 164180 | F32: 161736 | G32: 158131 | H32: 160028 | I32: 160367 | J32: 171502 | K32: 177015 | L32: 177619 | M32: =M33+M34+M37 -> 182175 | N32: 181444 | O32: 182087 | P32: 182236 | Q32: 180582 | R32: 182319 | S32: =S33+S34+S37 -> 185185
C33: Ciclo Básico Rural (7º, 8º y 9º) | D33: 1498 | E33: 1771 | F33: 1869 | G33: 1797 | H33: 1818 | I33: 1784 | J33: 2028 | K33: 1991 | L33: 1934 | M33: 1966 | N33: 1916 | O33: 1812 | P33: 1798 | Q33: 1730 | R33: 1583 | S33: 1470
C34: Total Media Básica General | D34: 146588 | E34: 147146 | F34: 144374 | G34: 140743 | H34: 142350 | I34: 142420 | J34: 151798 | K34: 155409 | L34: 155444 | M34: =M35+M36 -> 156418 | N34: 153287 | O34: 151201 | P34: 149622 | Q34: 147165 | R34: 148486 | S34: =S35+S36 -> 147808
A35: Pública | D35: 125367 | E35: 127162 | F35: 123869 | G35: 120487 | H35: 121195 | I35: 120960 | J35: 127681 | K35: 130013 | L35: 130073 | M35: 130978 | N35: 127593 | O35: 124749 | P35: 122896 | Q35: 120749 | R35: 122764 | S35: 123292
A36: Privada3 | D36: 21221 | E36: 19984 | F36: 20505 | G36: 20256 | H36: 21155 | I36: 21460 | J36: 24117 | K36: 25396 | L36: 25371 | M36: 25440 | N36: 25694 | O36: 26452 | P36: 26726 | Q36: 26416 | R36: 25722 | S36: 24516
C37: Media Básica Tecnológica | D37: 14578 | E37: 15263 | F37: 15493 | G37: 15591 | H37: 15860 | I37: 16163 | J37: 17676 | K37: 19615 | L37: 20241 | M37: 23791 | N37: 26241 | O37: 29074 | P37: 30816 | Q37: 31687 | R37: 32250 | S37: 35907
B38: Total Educación Media Superior | D38: =D39+D42 -> 132735 | E38: 142237 | F38: 145042 | G38: 144180 | H38: 140653 | I38: 138558 | J38: 138626 | K38: 143405 | L38: 145358 | M38: 149484 | N38: 153682 | O38: 155547 | P38: 157035 | Q38: =Q39+Q42 -> 160271 | R38: =R39+R42 -> 165705 | S38: =S39+S42 -> 172079
C39: Total Media Superior General | D39: 122617 | E39: 129454 | F39: 127356 | G39: 124512 | H39: 119418 | I39: 112877 | J39: 110507 | K39: 112664 | L39: 113327 | M39: =M40+M41 -> 116117 | N39: 117497 | O39: 116552 | P39: 115619 | Q39: 116793 | R39: 120525 | S39: =S40+S41 -> 124544
A40: Pública | D40: 108589 | E40: 115157 | F40: 112669 | G40: 108459 | H40: 103938 | I40: 97136 | J40: 94506 | K40: 96319 | L40: 96902 | M40: 99175 | N40: 100265 | O40: 99510 | P40: 98241 | Q40: 99617 | R40: 103751 | S40: 107968
A41: Privada3 | D41: 14028 | E41: 14297 | F41: 14687 | G41: 16053 | H41: 15480 | I41: 15741 | J41: 16001 | K41: 16345 | L41: 16425 | M41: 16942 | N41: 17232 | O41: 17042 | P41: 17378 | Q41: 17176 | R41: 16774 | S41: 16576
C42: Total Media Superior Tecnológica | D42: 10118 | E42: 12783 | F42: 17686 | G42: 19668 | H42: 21235 | I42: 25681 | J42: 28119 | K42: 30741 | L42: 32031 | M42: 33367 | N42: 36185 | O42: 38995 | P42: 41416 | Q42: 43478 | R42: 45180 | S42: 47535
A44: Total Edu. Técnica (s/cont. educativa) | D44: 36416 | E44: 37219 | F44: 32372 | G44: 27146 | H44: 28840 | I44: 24419 | J44: 19957 | K44: 16769 | L44: 11912 | M44: 7546 | N44: 9859 | O44: 8632 | P44: 9092 | Q44: 7302 | R44: 5249 | S44: 2942
L45: .
A46: Total Educación Terciaria | D46: =D48+D55+D61 -> 100946 | E46: 105219 | F46: 106382 | G46: 108757 | H46: 111012 | I46: 124442 | J46: 127301 | K46: 126662 | L46: 128159 | M46: 129884 | N46: 136893 | O46: 140511 | P46: 143016 | Q46: =Q48+Q55+Q61 -> 139008 | R46: =R48+R55+R61 -> 144729 | S46: 143993
B48: Terciaria No Universitaria | D48: =D49+D53 -> 5496 | E48: =E49+E53 -> 7238 | F48: =F49+F53 -> 6437 | G48: =G49+G53 -> 5454 | H48: =H49 -> 5726 | I48: =I49 -> 5786 | J48: 6718 | K48: 7179 | L48: 7560 | M48: 7339 | N48: 8308 | O48: 9253 | P48: 10384 | Q48: 11470 | R48: =+R50+R51+R52 -> 11547 | S48: =+S50+S51+S52 -> 10798
C49: Terciaria No Universitaria Pública | D49: =D50+D51+D52 -> 5148 | E49: 6107 | F49: 6129 | G49: 5297 | H49: 5726 | I49: 5786 | J49: 6718 | K49: 7179 | L49: 7560 | M49: =M50+M51+M52 -> 7339 | N49: =N50+N51+N52 -> 8308 | O49: =O50+O51+O52 -> 9253 | P49: =P50+P51+P52 -> 10384 | Q49: =Q50+Q51+Q52 -> 11470 | R49: =R50+R51+R52 -> 11547 | S49: 10798
A50: CETP | D50: 2564 | E50: 3514 | F50: 3671 | G50: 4024 | H50: 3961 | I50: 3896 | J50: 4650 | K50: 4964 | L50: 6158 | M50: 6780 | N50: 7610 | O50: 8511 | P50: 9489 | Q50: 10555 | R50: 10580 | S50: 10025
A51: Terciaria Policial o Militar | D51: 620 | E51: 623 | F51: 653 | G51: 679 | H51: 724 | I51: 652 | J51: 557 | K51: 649 | L51: 603 | M51: 470 | N51: 572 | O51: 626 | P51: 777 | Q51: 766 | R51: 865 | S51: 566
A52: Otras terciaria pública4 | D52: 1964 | E52: 1970 | F52: 1805 | G52: 594 | H52: 1041 | I52: 1238 | J52: 1511 | K52: 1566 | L52: 799 | M52: 89 | N52: 126 | O52: 116 | P52: 118 | Q52: 149 | R52: 102 | S52: 207
C53: Terciaria No Universitaria Privada7 | D53: 348 | E53: 1131 | F53: 308 | G53: 157 | H53: n/c | I53: n/c | J53: n/c | K53: n/c | L53: n/c | M53: n/c | N53: n/c | O53: n/c | P53: n/c | Q53: n/c | R53: n/c | S53: n/c
B55: Formación en Educación | D55: =D56+D59 -> 16735 | E55: =E56+E59 -> 19411 | F55: 21397 | G55: 20779 | H55: 21537 | I55: 22609 | J55: 22747 | K55: 20951 | L55: 20703 | M55: 21242 | N55: 22754 | O55: 24239 | P55: 24966 | Q55: =Q56+Q59 -> 19956 | R55: =R56+R59 -> 24566 | S55: =S56+S59 -> 24378
C56: Publica | D56: =D57 -> 16610 | E56: =E57 -> 19298 | F56: =F57+F58 -> 21260 | G56: =G57+G58 -> 20631 | H56: 21406 | I56: 22456 | J56: 22572 | K56: 20855 | L56: 20655 | M56: 21149 | N56: 22649 | O56: 24120 | P56: 24886 | Q56: =Q57+Q58 -> 19884 | R56: =R57+R58 -> 24524 | S56: =S57+S58 -> 24378
A57: Consejo de Formación en Educación (CFE) | D57: 16610 | E57: 19298 | F57: 20968 | G57: 20435 | H57: 21175 | I57: 21992 | J57: 22108 | K57: 20391 | L57: 20191 | M57: 20919 | N57: 22331 | O57: 24067 | P57: 24729 | Q57: 19716 | R57: 24369 | S57: 24150
A58: CENFORES - INAU | D58: n/c | E58: n/c | F58: 292 | G58: 196 | H58: 231 | I58: 464 | J58: 464 | K58: 464 | L58: 464 | M58: 230 | N58: 318 | O58: 53 | P58: 157 | Q58: 168 | R58: 155 | S58: 228
C59: Privada | D59: =D60 -> 125 | E59: =E60 -> 113 | F59: 137 | G59: 148 | H59: 131 | I59: 153 | J59: 175 | K59: 96 | L59: 48 | M59: 93 | N59: 105 | O59: 119 | P59: 80 | Q59: 72 | R59: =R60 -> 42 | S59: =S60 -> 0
A60: Centro de Inv. y Experim. Pedagógica (CIEP) | D60: 125 | E60: 113 | F60: 137 | G60: 148 | H60: 131 | I60: 153 | J60: 175 | K60: 96 | L60: 48 | M60: 93 | N60: 105 | O60: 119 | P60: 80 | Q60: 72 | R60: 42 | S60: 0
B61: Total Educación Universitaria6 | D61: =D62+D64 -> 78715 | E61: 78570 | F61: 78548 | G61: 82524 | H61: 83749 | I61: 96047 | J61: 97836 | K61: 98532 | L61: 99896 | M61: 101303 | N61: =N62+N64+N65 -> 105831 | O61: =O62+O64+O65 -> 107019 | P61: =P62+P63+P64+P65 -> 107666 | Q61: =Q62+Q63+Q64 -> 107582 | R61: =R62+R63+R64 -> 108616 | S61: =S62+S63+S64 -> 108817
C62: Universitaria Pública (UdelaR)7 | D62: 70156 | E62: 70156 | F62: 70156 | G62: 70156 | H62: 70156 | I62: 81774 | J62: 81774 | K62: 81774 | L62: 81774 | M62: 81774 | N62: 85905 | O62: 85905 | P62: 85905 | Q62: 85905 | R62: 85905 | S62: 85905
C63: Universidad Tecnológica (UTEC) | D63: n/c | E63: n/c | F63: n/c | G63: n/c | H63: n/c | I63: n/c | J63: n/c | K63: n/c | L63: n/c | M63: n/c | N63: n/c | O63: n/c | P63: 55 | Q63: 169 | R63: 358 | S63: 721
C64: Universitaria Privada | D64: 8559 | E64: 8414 | F64: 8392 | G64: 12368 | H64: 13593 | I64: 14273 | J64: 16062 | K64: 16758 | L64: 18122 | M64: 19529 | N64: 19824 | O64: 21062 | P64: 21679 | Q64: 21508 | R64: 22353 | S64: 22191
C65: Seguridad y Defensa | D65: n/c | E65: n/c | F65: n/c | G65: n/c | H65: n/c | I65: n/c | J65: n/c | K65: n/c | L65: n/c | M65: s/d | N65: 102 | O65: 52 | P65: 27 | Q65: n/c * | R65: n/c* | S65: n/c*
B67: Fuentes: Departamentos de Estadística (u oficinas productoras de información) del CEIP, CES y CETP y de la Universidad de la República, Dirección de Formación y Perfeccionamiento Docente, e instituciones privadas de educación terciaria. Notas: 1- Se corrigieron las series de Pre-primaria para el período 2006-2011 y 2016 (corrección realizada en 2017). 2-El dato de Educación Primaria Común Pública para 2011 incluyen 1.041 acreditados por el Programa Nacional de Jóvenes y Adultos de ANEP(Acreditación de Primaria). 3-Los datos de secundaria privada corresponden a la educación secundaria habilitada, que se componen en su gran mayoría por liceos privados a los que se suma el Liceo Militar y el bachillerato de la Escuela Naval. 4-La baja significativa de matriculados en la categoría “Otras terciaria pública” en 2005, responde a que el ISEF no reportó información para dicho año sí lo había hecho en 2004 (1181 matriculados). En 2006 y 2007 reportó en UdelaR, institución de la que pasó a formar parte. 5-Algunas instituciones de educación terciaria no universitaria privada fueron reportadas en distintos niveles a lo largo de la serie o bien no reportaron en algunos de los años, lo que explica la irregularidad de la evolución de la matrícula en este nivel. 6-Los datos de enseñanza terciaria universitaria pública y privada corresponden a carreras cortas y de grado (excluyen carreras de postgrado). 7-Los datos de UdelaR del 2000 a 2006 corresponden a una proyección realizada del Censo 1999 de carreras de grado. El dato de 2007 corresponde al Censo 2007 y los datos 2008 a 2011 responden a la proyección del Censo 2007. El dato de 2012 corresponde al VII Censo de Estudiantes Universitarios de Grado 2012 (no incluyen carreras de postgrado). 8- Los datos de 2014 corresponden a 2013 dado que son los últimos disponibles. * En la Escuela Nacional de Policía la Licenciatura en Seguridad Pública no fue dictada en el año 2017.

Sheet ESTADÍSTICAS POR NIVEL
B3: ESTADÍSTICAS POR NIVEL
B9: 2. PRIMERA INFANCIA E INICIAL | E9: 6. TÉCNICO PROFESIONAL
B11: 3. EDUCACIÓN PRIMARIA | E11: 7. TERCIARIA NO UNIVERSITARIA
B13: 4. EDUCACIÓN MEDIA BÁSICA | E13: 8. FORMACIÓN EN EDUCACIÓN
B15: 5. EDUCACIÓN MEDIA SUPERIOR | E15: 9. EDUCACIÓN UNIVERSITARIA
E17: 10. EDUCACIÓN JÓVENES Y ADULTOS

Sheet 2. PRIMERA INFANCIA E INICIAL
B2: PRIMERA INFANCIA E INICIAL
A9: Gráfico 2.2.1 | B9: EVOLUCIÓN DE LA MATRÍCULA EN PRIMERA INFANCIA Y EDUCACIÓN INICIAL (Todo el país, 2008-2017)
A10: Gráfico 2.2.2 | B10: TASA DE ASISTENCIA Y MATRÍCULA EN EDUCACIÓN EN PRIMERA INFANCIA Y EDUCACIÓN INICIAL 0 A 5 AÑOS DE EDAD (Todo el país, 2009-2017)
A11: Gráfico 2.2.3 | B11: MATRÍCULA DE LA EDUCACIÓN EN LA PRIMERA INFANCIA E INICIAL POR MODALIDAD SEGÚN AÑO LECTIVO (Todo el país, 2008-2017)
A12: Gráfico 2.2.4 | B12: MATRÍCULA DE EDUCACIÓN EN LA PRIMERA INFANCIA E INICIAL POR EDAD SEGÚN MODALIDAD (Todo el país, 2017)
A13: Gráfico 2.2.5 | B13: MATRÍCULA DE NIÑOS DE 0 A 5 AÑOS DE EDAD POR MODALIDAD SEGÚN GRANDES ÁREAS (Todo el país, 2017)

Sheet Gráfico 2.2.1
A1: Ministerio de Educación y Cultura Dirección de Educación
A3: Gráfico 2.2.1
A28: Fuente: Elaboración propia con base en datos del Departamento de Estadística del CEIP, Sistema de Información para la Infancia de INAU y Área de Primera Infancia del MEC.

Sheet Gráfico 2.2.2
A1: Ministerio de Educación y Cultura Dirección de Educación
A3: Gráfico 2.2.2
A32: Fuente: Elaboración propia en base en datos del Departamento de Estadística del CEIP, Sistema de Información para la Infancia de INAU y Área de Primera Infancia del MEC y ECH 2009-2017

Sheet Gráfico 2.2.3
A1: Ministerio de Educación y Cultura Dirección de Educación
A5: Gráfico 2.2.3
A34: Fuente: Elaboración propia con base en datos del Departamento de Estadística del CEIP, Sistema de Información para la Infancia de INAU y Área de Primera Infancia del MEC.
A35: Nota: Nuestros Niños hasta 2015 funcionaba a cargo de la Intendencia de Montevideo y se incluye dentro de Centros Privados MEC, a partir del 2016 pasa a la órbita del INAU. INAU incluye CAIF, CAPI (Centros de Atención a la Primera Infancia, anteriormente denominados Centros Diurnos) y a partir de 2016 Nuestros Niños.

Sheet Gráfico 2.2.4
A1: Ministerio de Educación y Cultura Dirección de Educación
A5: Gráfico 2.2.4
A31: Fuente: Elaboración propia con base en datos del Departamento de Estadística del CEIP, Sistema de Información para la Infancia de INAU y Área de Primera Infancia del MEC.
A32: Nota: Nuestros Niños hasta 2015 funcionaba a cargo de la Intendencia de Montevideo y se incluye dentro de Centros Privados MEC, a partir del 2016 pasa a la órbita del INAU. INAU incluye CAIF, CAPI (Centros de Atención a la Primera Infancia, anteriormente denominados Centros Diurnos) y a partir de 2016 Nuestros Niños.

Sheet Gráfico 2.2.5
A1: Ministerio de Educación y Cultura Dirección de Educación
A5: Gráfico 2.2.5
A35: Fuente: Elaboración propia con base en datos del Departamento de Estadística del CEIP, Sistema de Información para la Infancia de INAU y Área de Primera Infancia del MEC.
A36: Nota: Nuestros Niños hasta 2015 funcionaba a cargo de la Intendencia de Montevideo y se incluye dentro de Centros Privados MEC, a partir del 2016 pasa a la órbita del INAU. INAU incluye CAIF, CAPI (Centros de Atención a la Primera Infancia, anteriormente denominados Centros Diurnos) y a partir de 2016 Nuestros Niños.

Sheet 3. EDUCACIÓN PRIMARIA
B8: EDUCACIÓN PRIMARIA
A14: Gráfico 2.3.1 | B14: TASA DE ASISTENCIA, TASA NETA AJUSTADA Y MATRÍCULA EN EDUCACIÓN PRIMARIA (Todo el país, 2006-2017)
A15: Gráfico 2.3.2 | B15: RAZÓN PÚBLICO – PRIVADO Y MATRÍCULA DE EDUCACIÓN PRIMARIA COMÚN POR FORMA DE ADMINISTRACIÓN (Todo el país, 2000-2017)
A16: Gráfico 2.3.3 | B16: PORCENTAJE DE NO PROMOVIDOS EN PRIMER AÑO Y DE PRIMERO A SEXTO (Escuelas públicas de todo el país, 2000- 2017)

Sheet Gráfico 2.3.1
A1: Ministerio de Educación y Cultura Dirección de Educación
A5: Gráfico 2.3.1
A32: Fuente: Elaboración propia en base a datos del Departamento de Estadística del CEIP y ECH.
A33: Nota: Incluye establecimientos públicos y privados. Educación Primaria común pública incluye la matrícula de educación en Jardines de Infantes con Ciclo Inicial (JICI).

Sheet Gráfico 2.3.2
A1: Ministerio de Educación y Cultura Dirección de Educación
A3: Gráfico 2.3.2
A40: Fuente: | B40: Elaboración propia con base a datos del Departamento de Estadística del CEIP.
A41: Nota: | B41: Educación Primaria Común incluye la matrícula de educación en Jardines de Infantes con Ciclo Inicial (JICI).

Sheet Gráfico 2.3.3
A1: Ministerio de Educación y Cultura Dirección de Educación
A5: Gráfico 2.3.3
A29: Fuente: Monitor Educativo de Enseñanza Primaria,ANEP.

Sheet 4. EDUCACIÓN MEDIA BÁSICA
C2: EDUCACIÓN MEDIA BÁSICA
A6: Gráfico 2.4.1 | B6: TASA DE ASISTENCIA, TASA NETA AJUSTADA Y MATRÍCULA, ENTRE JÓVENES DE 12 A 14 AÑOS EN EDUCACIÓN MEDIA BÁSICA (Todo el país, 2006-2017)
A8: Gráfico 2.4.2 | B8: PORCENTAJE DE ESTUDIANTES CON EXTRAEDAD DE EDUCACIÓN MEDIA BÁSICA GENERAL PÚBLICA (Todo el país, 2015- 2017)
A10: Gráfico 2.4.3 | B10: EXTRAEDAD DE EDUCACIÓN MEDIA BÁSICA EN EL CETP, POR AÑO (Todo el país, 2011-2017)
A12: Gráfico 2.4.4 | B12: MATRÍCULA DE MEDIA BÁSICA GENERAL NOCTURNA (Todo el país, 2011-2017)
A14: Infografía 2.4.1 | B14: CES - CETP - MEDIA BÁSICA (Todo el país, 2011-2017)

Sheet Gráfico 2.4.1
A1: Ministerio de Educación y Cultura Dirección de Educación
A5: Gráfico 2.4.1
A29: Fuente: Departamentos de Estadística del CEIP, CES y del CETP y ECH del INE.
A30: Nota: Media Básica General incluye matrícula pública, privada y Ciclo Básico Rural

Sheet Infografía 2.4.1
A1: Ministerio de Educación y Cultura Dirección de Educación
A5: Infografía 2.4.1
A45: Fuente: Elaboración propia con base en información de los departamentos de Estadística del CES y del CETP.
A46: Notas:
A47: Matrícula no incluye liceos privados del CES ni Ciclo Básico Rural del CEIP
A48: No promoción no incluye liceos nocturnos, liceos privados del CES ni Ciclo Básico Rural del CEIP
A49: Extraedad no incluye liceos nocturnos, liceos privados del CES ni Ciclo Básico Rural del CEIP. Para el caso del CES, cambios en los sistemas de información no permiten la comparación entre todos los años de la serie.
A50: Desafiliación se calcula solo para CETP dado que CES no dispone de información para la desafiliación interanual

Sheet Gráfico 2.4.2
A1: Ministerio de Educación y Cultura Dirección de Educación
A3: Gráfico 2.4.2
A21: Fuente: Departamento de Estadística del CES.
A22: Nota: La extraedad se calcula como el porcentaje de estudiantes que poseen al menos dos años más que la edad teórica estipulada en determinado grado.

Sheet Gráfico 2.4.3
A1: Ministerio de Educación y Cultura Dirección de Educación
A5: Gráfico 2.4.3
A32: Fuente: Departamento de Estadística del CETP.
A33: Nota: La extraedad se calcula como el porcentaje de estudiantes que poseen al menos dos años más que la edad teórica estipulada en determinado grado.

Sheet Gráfico 2.4.4
A1: Ministerio de Educación y Cultura Dirección de Educación
A5: Gráfico 2.4.4
A37: Fuente: Fuente: Elaboración propia con base en información del Departamento de Estadística del CES.

Sheet 5. EDUCACIÓN MEDIA SUPERIOR
A2: EDUCACIÓN MEDIA SUPERIOR
A6: Gráfico 2.5.1 | B6: TASA DE ASISTENCIA, TASA NETA AJUSTADA Y MATRÍCULA, ENTRE JÓVENES DE 15 A 17 AÑOS EN EDUCACIÓN MEDIA SUPERIOR (Todo el país, 2006-2017)
A7: Gráfico 2.5.2 | B7: PORCENTAJE DE NO PROMOVIDOS SOBRE EL TOTAL DE MATRICULADOS EN SEGUNDO DE BACHILLERATO, SEGÚN ORIENTACIÓN Y AÑO EN LICEOS OFICIALES DIURNOS (Todo el país, 2011-2017)
A8: Gráfico 2.5.3 | B8: PORCENTAJE DE APROBACIÓN DE ASIGNATURAS EN SEGUNDO DE BACHILLERATO, SEGÚN ORIENTACIÓN Y AÑO EN LICEOS OFICIALES DIURNOS (Todo el país, 2014-2017)
A9: Gráfico 2.5.4 | B9: CANTIDAD DE EGRESADOS MATRICULADOS Y NO MATRICULADOS DE BACHILLERATO, POR AÑO EN LICEOS OFICIALES DIURNOS (Todo el país, 2011-2017)
A10: Gráfico 2.5.5 | B10: PORCENTAJE DE APROBACIÓN DE ASIGNATURAS EN TERCERO DE BACHILLERATO, SEGÚN ORIENTACIÓN Y AÑO EN LICEOS OFICIALES DIURNOS (Todo el país, 2014-2017)
A11: Gráfico 2.5.6 | B11: MATRÍCULA DE MEDIA SUPERIOR GENERAL NOCTURNA (Todo el país 2011-2017)
A12: Infografía 2.5.1 | B12: CES - CETP - MEDIA SUPERIOR (Todo el país, 2011-2017)

Sheet Gráfico 2.5.1
A1: Ministerio de Educación y Cultura Dirección de Educación
A5: Gráfico 2.5.1
A32: Fuente: Departamentos de Estadística del CES y del CETP y ECH del INE.
A33: Nota: Media Superior incluye matrícula pública y privada.

Sheet Gráfico 2.5.2
A1: Ministerio de Educación y Cultura Dirección de Educación
A5: Gráfico 2.5.2
A28: Fuente: Departamento de Estadística del CES.
A33: Fuentes: Elaboración propia con base en información del Departamento de Estadística del CES (año 2016), Dirección de Desarrollo y Gestión Informática (años 2014 y 2015) y del Monitor Educativo del CES (años 2011 a 2013).
A35: Notas: Por No Promoción se entiende a alumnos con más de tres materias pendientes de aprobación.
A36: La matrícula refiere a liceos diurnos de educación pública

Sheet Gráfico 2.5.3
A1: Ministerio de Educación y Cultura Dirección de Educación
A5: Gráfico 2.5.3
A25: Fuente: Departamento de Estadística del CES.
A34: Fuente: Elaboración propia con base en información del Departamento de Estadística del CES (año 2016) y Dirección de Desarrollo y Gestión Informática (años 2014 y 2015).
A36: Nota: La matrícula refiere a liceos diurnos de educación pública

Sheet Gráfico 2.5.4
A1: Ministerio de Educación y Cultura Dirección de Educación
A5: Gráfico2.5.4
A27: Fuente: Departamento de Estadística del CES.
A32: Fuentes: Elaboración propia con base en información del Departamento de Estadística del CES (año 2016), Dirección de Desarrollo y Gestión Informática (años 2014 y 2015) y del Monitor Educativo del CES (años 2011 a 2013).
A33: Nota: La matrícula refiere a liceos diurnos de educación pública
A34: Egresados: alumnos que culminaron Bachillerato a Mayo del año t+1
A35: Egresados Matriculados: Alumnos que registraron inscripción reglamentaria en el curso del año t.
A36: Egresados No Matriculados: Alumnos que rindieron los exámenes pendientes sin haber registrado inscripción al curso en t.

Sheet Gráfico 2.5.5
A1: Ministerio de Educación y Cultura Dirección de Educación
A5: Gráfico 2.5.5
A26: Fuente: Departamento de Estadística del CES.
A32: Fuente: Elaboración propia con base en información del Departamento de Estadística del CES (año 2016) y Dirección de Desarrollo y Gestión Informática (años 2014 y 2015).
A34: Nota: La matrícula refiere a liceos diurnos de educación pública

Sheet Gráfico 2.5.6
A1: Ministerio de Educación y Cultura Dirección de Educación
A5: Gráfico 2.5.6
A26: Fuente: Departamento de Estadística del CES.
A32: Fuente: Elaboración propia con base en información del Departamento de Estadística del CES.

Sheet Infografìa 2.5.1
A1: Ministerio de Educación y Cultura Dirección de Educación
A5: Infografía 2.5.1
A37: Fuente: Elaboración propia con base en información de los departamentos de Estadística del CES y del CETP.
A38: Notas:
A39: Matrícula no incluye liceos privados del CES.
A40: No promoción no incluye liceos nocturnos ni liceos privados del CES.
A41: Extraedad no incluye liceos nocturnos ni liceos privados del CES. Para el caso del CES, cambios en los sistemas de información no permiten la comparación entre todos los años de la serie.
A42: Desafiliación se calcula solo para CETP dado que CES no dispone de información para la desafiliación interanual

Sheet 6. TÉCNICO PROFESIONAL
B21: EDUCACIÓN TÉCNICO - PROFESIONAL
A28: Gráfico 2.6.1 | B28: MATRÍCULA DEL CONSEJO DE EDUCACIÓN TÉCNICO PROFESIONAL, POR NIVEL EDUCATIVO Y AÑO (Todo el país, 2000 – 2017)

Sheet Gráfico2.6.1
A1: Ministerio de Educación y Cultura Dirección de Educación
A5: Gráfico 2.6.1
A40: Fuente: Elaboración propia en base a información del Departamento de Estadística del CETP.

Sheet 7. TERCIARIA NO UNIVERSITARIA
C3: TERCIARIA NO UNIVERSITARIA
A9: Gráfico 2.7.1 | B9: ESTUDIANTES MATRICULADOS EN EDUCACIÓN TERCIARIA NO UNIVERSITARIA DEL CETP SEGÚN AÑO LECTIVO (Todo el país 2000-2017)
B11: ESTUDIANTES MATRICULADOS EN EDUCACIÓN TERCIARIA NO UNIVERSITARIA, DE OTRAS PÚBLICAS Y PRIVADAS SEGÚN AÑO LECTIVO (Todo el país 2000-2017)
A12: Gráfico 2.7.2
B13: MATRÍCULA DE NIVEL TERCIARIO NO UNIVERSITARIO DEL ÁREA DE SEGURIDAD Y DEFENSA POR MINISTERIOS SEGÚN AÑO (Todo el país, 2000-2017)
A14: Gráfico 2.7.3
B15: MATRÍCULA DE NIVEL TERCIARIO NO UNIVERSITARIO DEL ÁREA DE SEGURIDAD Y DEFENSA POR INSTITUCIÓN SEGÚN AÑO (Todo el país, 2000-2017)
A16: Gráfico 2.7.4

Sheet Gráfico 2.7.1
A1: Ministerio de Educación y Cultura Dirección de Educación
A5: Gráfico 2.7.1
A34: Fuente: Elaboración propia con base en información proporcionada por el Departamento de Estadística del CETP.

Sheet Gráfico 2.7.2
A1: Ministerio de Educación y Cultura Dirección de Educación
A5: Gráfico 2.7.2
A32: Fuente: Elaboración propia en base a información proporcionada por las oficinas productoras de estadísticas de cada una de las instituciones.
A33: Notas: No incluye las ofertas del Consejo de Formación en Educación (CFE) de ANEP ni Seguridad y Defensa, que se presentan aparte más adelante.
A34: A partir del 2010 el CDI integra la matrícula de la UdelaR, por lo cual disminuye por esta vía la categoría “Otras públicas”.
A35: En 2001 la EMAD no proporcionó información, razón por la cual el dato de dicho año se corresponde con la matrícula del CDI.
A36: Privada sólo incluye CIEP.

Sheet Gráfico 2.7.3
A1: Ministerio de Educación y Cultura Dirección de Educación
A5: Gráfico 2.7.3
A23: Fuente: Elaboración propia en base a información proporcionada por las oficinas productoras de estadísticas de cada una de las instituciones

Sheet Gráfico 2.7.4
A1: Ministerio de Educación y Cultura Dirección de Educación
A5: Gráfico 2.7.4
A24: Fuente: Elaboración propia en base a información proporcionada por las oficinas productoras de estadísticas de cada una de las instituciones.

Sheet 8. FORMACIÓN EN EDUCACIÓN
E4: FORMACIÓN EN EDUCACIÓN
A9: Gráfico 2.8.1 | C9: ESTUDIANTES MATRICULADOS EN FORMACIÓN EN EDUCACIÓN POR AÑO LECTIVO, SEGÚN TIPO DE OFERTA (Todo el país, 2000-2017)
A11: Gráfico 2.8.2 | C11: EGRESOS DE MAGISTERIO, PROFESORADO Y ASISTENTE TÉCNICO EN LA PRIMERA INFANCIA POR AÑO LECTIVO (Todo el país, 2000-2017)

Sheet Gráfico 2.8.1
A1: Ministerio de Educación y Cultura
A2: Dirección de Educación
A5: Gráfico 2.8.1
A36: Fuente: División Estudiantil del CFE - Sistema de Gestión Estudiantil a partir de 2017.

Sheet Gráfico 2.8.2
A1: Ministerio de Educación y Cultura
A2: Dirección de Educación
A5: Gráfico 2.8.2
A30: Fuente: Consejo de Formación en Educación de ANEP

Sheet 9. EDUCACIÓN UNIVERSITARIA
B2: EDUCACIÓN UNIVERSITARIA
A5: Cuadro 2.9.1 | B5: INGRESOS A INSTITUCIONES UNIVERSITARIAS PÚBLICAS Y PRIVADAS DE GRADO POSTGRADO, POR AÑO LECTIVO SEGÚN ÁREA DE CONOCIMIENTO. (Todo el país, 2005 - 2017)
A6: Cuadro 2.9.2 | B6: EGRESOS DE INSTITUCIONES UNIVERSITARIAS PÚBLICAS Y PRIVADAS DE GRADO Y POSTGRADO, POR AÑO LECTIVO SEGÚN ÁREA DE CONOCIMIENTO. (Todo el país, 2005 - 2017)
A7: Cuadro 2.9.3 | B7: INGRESOS A INSTITUCIONES UNIVERSITARIAS PÚBLICAS Y PRIVADAS DE GRADO POSTGRADO, POR NIVEL ACADÉMICO SEGÚN ÁREA DE CONOCIMIENTO. (Todo el país, 2017).
A8: Cuadro 2.9.4 | B8: EGRESOS DE INSTITUCIONES UNIVERSITARIAS PÚBLICAS Y PRIVADAS DE GRADO POSTGRADO, POR NIVEL ACADÉMICO SEGÚN ÁREA DE CONOCIMIENTO. (Todo el país, 2017).
A9: Cuadro 2.9.5 | B9: INGRESOS, MATRÍCULA Y EGRESOS DE OFERTAS DE GRADO SEGÚN FORMA DE ADMINISTRACIÓN EN CANTIDADES ABSOLUTAS Y PORCENTAJES. (Todo el país, 2017).
A10: Cuadro 2.9.6 | B10: PORCENTAJE DE EGRESADOS DE GRADO POR NIVEL Y SEXO SEGÚN TRAMOS DE EDAD. (Todo el país, 2017).
A11: Cuadro 2.9.7 | B11: PORCENTAJE DE EGRESADOS DE POSGRADO POR NIVEL Y SEXO SEGÚN TRAMOS DE EDAD. (Todo el país, 2017).
A12: Gráfico 2.9.1 | B12: EVOLUCIÓN COMPARADA DE LA MATRICULA DE GRADO Y POSTGRADO POR UNIVERSIDADES E INSTITUTOS UNIVERSITARIOS PRIVADOS SEGÚN AÑO LECTIVO (Todo el país, 2000-2017)
A13: Gráfico 2.9.2 | B13: EVOLUCIÓN COMPARADA DEL INGRESO Y DEL EGRESO EN CARRERAS DE GRADO EN LA UDELAR SEGÚN AÑO (Todo el país, 2000-2017)
A14: Gráfico 2.9.3 | B14: EVOLUCIÓN COMPARADA DEL INGRESO DE GRADO EN UDELAR Y UNIVERSIDADES E INSTITUTOS UNIVERSITARIOS PRIVADOS (Todo el país, 2000-2017)
A15: Gráfico 2.9.4 | B15: EVOLUCIÓN COMPARADA DEL INGRESO Y DEL EGRESO EN CARRERAS DE GRADO EN UNIVERSIDADES E INSTITUTOS UNIVERSITARIOS PRIVADOS (Todo el país, 2000-2017)
A16: Gráfico 2.9.5 | B16: EVOLUCIÓN COMPARADA DEL EGRESO EN CARRERAS DE GRADO EN LA UDELAR Y EN UNIVERSIDADES E INSTITUTOS UNIVERSITARIOS PRIVADOS (Todo el país, 2000-2017
A17: Gráfico 2.9.6 | B17: PORCENTAJES DE INGRESOS Y EGRESOS A CURSOS DE GRADO EN UNIVERSIDADES E INSTITUTOS UNIVERSITARIOS SEGÚN ÁREA GEOGRÁFICA (Todo el país, 2010-2017)
A18: Gráfico 2.9.7 | B18: PORCENTAJE DE EGRESADOS DE CARRERAS DE GRADO SEGÚN TRAMOS DE EDAD (Todo el país, 2017)
A19: Gráfico 2.9.8 | B19: PORCENTAJE DE EGRESADOS DE GRADO SEGÚN TRAMOS DE EDAD Y SEXO (Todo el país, 2017)
A20: Gráfico 2.9.9 | B20: EVOLUCIÓN COMPARADA DEL INGRESO Y DEL EGRESO DE POSTGRADO –INSTITUCIONES PÚBLICAS Y PRIVADAS- (Todo el país, 2000-2017
A21: Gráfico 2.9.10 | B21: EVOLUCIÓN COMPARADA DEL INGRESO Y DEL EGRESO DE POSTGRADO EN INSTITUCIONES UNIVERSITARIAS PÚBLICAS (Todo el país, 2000-2017)
A22: Gráfico 2.9.11 | B22: EVOLUCIÓN COMPARADA DEL INGRESO Y DEL EGRESO DE POSTGRADO EN UNIVERSIDADES E INSTITUTOS UNIVERSITARIOS PRIVADOS (Todo el país, 2000-2017)
A23: Gráfico 2.9.12 | B23: PORCENTAJE DE EGRESADOS DE CARRERAS DE POSGRADO SEGÚN TRAMOS DE EDAD (Todo el país, 2017)
A24: Gráfico 2.9.13 | B24: PORCENTAJE DE EGRESADOS DE POSGRADO SEGÚN TRAMOS DE EDAD Y SEXO (Todo el país, 2017)

Sheet Cuadro 2.9.1
A1: Ministerio de Educación y Cultura Dirección de Educación
A3: INGRESOS A INSTITUCIONES UNIVERSITARIAS PÚBLICAS Y PRIVADAS DE GRADO POSTGRADO, POR AÑO LECTIVO SEGÚN ÁREA DE CONOCIMIENTO. (Todo el país, 2005 - 2017).
A4: ÁREA DE CONOCIMIENTO
B5: 2005 | C5: 2006 | D5: 2007 | E5: 2008 | F5: 2009 | G5: 2010 | H5: 2011 | I5: 2012 | J5: 2013 | K5: 2014 | L5: 2015 | M5: 2016 | N5: 2017
A6: TOTAL | B6: =SUM(B7:B29) -> 21964 | C6: =SUM(C7:C29) -> 22798 | D6: 23014 | E6: 23566 | F6: 24981 | G6: 26357 | H6: 26185 | I6: 26854 | J6: 32178 | K6: 33321 | L6: 33952 | M6: 36396 | N6: 39119
A7: Agricultura | B7: 398 | C7: 362 | D7: 414 | E7: 436 | F7: 638 | G7: 806 | H7: 864 | I7: 608 | J7: 724 | K7: 779 | L7: 635 | M7: 695 | N7: 693
A8: Arquitectura y construcción | B8: 628 | C8: 648 | D8: 665 | E8: 646 | F8: 832 | G8: 770 | H8: 754 | I8: 688 | J8: 932 | K8: 876 | L8: 904 | M8: 935 | N8: 906
A9: Artes | B9: 809 | C9: 744 | D9: 752 | E9: 746 | F9: 839 | G9: 1219 | H9: 997 | I9: 895 | J9: 1205 | K9: 1167 | L9: 1353 | M9: 1227 | N9: 1200
A10: Bienestar | B10: 724 | C10: 573 | D10: 626 | E10: 594 | F10: 87 | G10: 146 | H10: 82 | I10: 0 | J10: 19 | K10: 39 | L10: 0 | M10: 15 | N10: 18
A11: Ciencias biológicas y afines | B11: 785 | C11: 955 | D11: 939 | E11: 818 | F11: 581 | G11: 650 | H11: 649 | I11: 473 | J11: 489 | K11: 625 | L11: 593 | M11: 662 | N11: 597
A12: Ciencias físicas | B12: 624 | C12: 771 | D12: 653 | E12: 687 | F12: 760 | G12: 636 | H12: 667 | I12: 711 | J12: 877 | K12: 777 | L12: 708 | M12: 680 | N12: 795
A13: Ciencias sociales y del comportamiento | B13: 3353 | C13: 2987 | D13: 3057 | E13: 4830 | F13: 5692 | G13: 5936 | H13: 5399 | I13: 3774 | J13: 5044 | K13: 3638 | L13: 3727 | M13: 4235 | N13: 4193
A14: Derecho | B14: 2000 | C14: 1837 | D14: 1754 | E14: 1850 | F14: 1855 | G14: 2031 | H14: 2005 | I14: 2911 | J14: 3104 | K14: 3296 | L14: 3245 | M14: 3078 | N14: 3392
A15: Educación | B15: 766 | C15: 911 | D15: 901 | E15: 941 | F15: 709 | G15: 800 | H15: 785 | I15: 957 | J15: 769 | K15: 712 | L15: 1140 | M15: 870 | N15: 1267
A16: Enseñanza comercial y administración | B16: 3828 | C16: 4292 | D16: 4885 | E16: 3127 | F16: 3253 | G16: 4176 | H16: 3661 | I16: 5462 | J16: 5657 | K16: 5517 | L16: 6998 | M16: 7401 | N16: 7706
A17: Humanidades | B17: 967 | C17: 1038 | D17: 889 | E17: 909 | F17: 791 | G17: 541 | H17: 707 | I17: 806 | J17: 1100 | K17: 1487 | L17: 1021 | M17: 1247 | N17: 1165
A18: Industria y producción | B18: 114 | C18: 141 | D18: 104 | E18: 111 | F18: 115 | G18: 116 | H18: 219 | I18: 383 | J18: 441 | K18: 444 | L18: 468 | M18: 431 | N18: 462
A19: Ingeniería y profesiones afines | B19: 570 | C19: 701 | D19: 633 | E19: 671 | F19: 686 | G19: 856 | H19: 828 | I19: 891 | J19: 1494 | K19: 1518 | L19: 1567 | M19: 1645 | N19: 1693
A20: Matemáticas y estadística | B20: 244 | C20: 328 | D20: 329 | E20: 238 | F20: 218 | G20: 155 | H20: 176 | I20: 132 | J20: 171 | K20: 135 | L20: 196 | M20: 219 | N20: 242
A21: Medio Ambiente | B21: n/c | C21: n/c | D21: n/c | E21: n/c | F21: n/c | G21: n/c | H21: 6 | I21: 43 | J21: 151 | K21: 127 | L21: 159 | M21: 170 | N21: 178
A22: Periodismo e información | B22: 1170 | C22: 1219 | D22: 1036 | E22: 1038 | F22: 1049 | G22: 816 | H22: 1218 | I22: 1027 | J22: 1026 | K22: 1036 | L22: 1049 | M22: 1092 | N22: 1376
A23: Salud | B23: 3633 | C23: 3572 | D23: 3562 | E23: 3888 | F23: 4823 | G23: 4361 | H23: 4656 | I23: 4785 | J23: 6307 | K23: 6563 | L23: 6229 | M23: 6629 | N23: 7548
A24: Servicios de seguridad | B24: n/c | C24: n/c | D24: n/c | E24: n/c | F24: n/c | G24: n/c | H24: s/d | I24: 102 | J24: 639 | K24: 185 | L24: 59 | M24: 169 | N24: 158
A25: Servicios de transporte | B25: n/c | C25: n/c | D25: n/c | E25: n/c | F25: n/c | G25: n/c | H25: n/c | I25: n/c | J25: n/c | K25: n/c | L25: n/c | M25: 240 | N25: 278
A26: Servicios personales | B26: 0 | C26: 318 | D26: 328 | E26: 331 | F26: 272 | G26: 411 | H26: 327 | I26: 491 | J26: 128 | K26: 763 | L26: 993 | M26: 1390 | N26: 1899
A27: Tecnologías de la información y comunicación | B27: 843 | C27: 917 | D27: 962 | E27: 1186 | F27: 1248 | G27: 1319 | H27: 1280 | I27: 1128 | J27: 1366 | K27: 1319 | L27: 1312 | M27: 1404 | N27: 1594
A28: Veterinaria | B28: 508 | C28: 484 | D28: 525 | E28: 519 | F28: 533 | G28: 508 | H28: 578 | I28: 555 | J28: 535 | K28: 611 | L28: 654 | M28: 673 | N28: 678
A29: Otros * | B29: n/c | C29: n/c | D29: n/c | E29: n/c | F29: n/c | G29: 104 | H29: 327 | I29: 32 | J29: 0 | K29: 1707 | L29: 942 | M29: 1289 | N29: 1081
A30: Fuente:Elaboración propia en base información de las oficinas productoras de las instituciones. Nota:Las áreas corresponden a la clasificación CINE 2013 de UNESCO.
A31: * En Otros se incluyen los cursos CIO (Ciclo Inicial Optativo) dictados por la UDELAR

Sheet Cuadro 2.9.2
A1: Ministerio de Educación y Cultura Dirección de Educación
A3: EGRESOS DE INSTITUCIONES UNIVERSITARIAS PÚBLICAS Y PRIVADAS DE GRADO Y POSTGRADO, POR AÑO LECTIVO SEGÚN ÁREA DE CONOCIMIENTO. (Todo el país, 2005 - 2017).
A4: INSTITUCIONES UNIVERSITARIAS
B5: 2005 | C5: 2006 | D5: 2007 | E5: 2008 | F5: 2009 | G5: 2010 | H5: 2011 | I5: 2012 | J5: 2013 | K5: 2014 | L5: 2015 | M5: 2016 | N5: 2017
A6: TOTAL | B6: =SUM(B7:B28) -> 5514 | C6: 6151 | D6: 6381 | E6: 7018 | F6: 7185 | G6: 7223 | H6: =SUM(H7:H28) -> 7808 | I6: 9101 | J6: =SUM(J7:J28) -> 9766 | K6: =SUM(K7:K28) -> 8882 | L6: =SUM(L7:L28) -> 10129 | M6: =SUM(M7:M28) -> 10817 | N6: =SUM(N7:N28) -> 11580
A7: Agricultura | B7: 123 | C7: 126 | D7: 111 | E7: 164 | F7: 301 | G7: 279 | H7: 294 | I7: 216 | J7: 219 | K7: 239 | L7: 251 | M7: 214 | N7: 313
A8: Arquitectura y construcción | B8: 437 | C8: 324 | D8: 303 | E8: 280 | F8: 275 | G8: 341 | H8: 349 | I8: 362 | J8: 401 | K8: 356 | L8: 424 | M8: 434 | N8: 655
A9: Artes | B9: 42 | C9: 104 | D9: 120 | E9: 181 | F9: 184 | G9: 211 | H9: 162 | I9: 184 | J9: 177 | K9: 126 | L9: 123 | M9: 124 | N9: 163
A10: Bienestar | B10: 48 | C10: 51 | D10: 47 | E10: 106 | F10: 88 | G10: 123 | H10: 148 | I10: 139 | J10: 151 | K10: 154 | L10: 148 | M10: 176 | N10: 144
A11: Ciencias biológicas y afines | B11: 108 | C11: 141 | D11: 137 | E11: 183 | F11: 169 | G11: 166 | H11: 240 | I11: 242 | J11: 177 | K11: 221 | L11: 234 | M11: 177 | N11: 162
A12: Ciencias físicas | B12: 140 | C12: 105 | D12: 125 | E12: 143 | F12: 154 | G12: 158 | H12: 158 | I12: 141 | J12: 145 | K12: 136 | L12: 160 | M12: 183 | N12: 188
A13: Ciencias sociales y del comportamiento | B13: 634 | C13: 689 | D13: 641 | E13: 923 | F13: 720 | G13: 746 | H13: 930 | I13: 1262 | J13: 1043 | K13: 1094 | L13: 1186 | M13: 1268 | N13: 1351
A14: Derecho | B14: 781 | C14: 838 | D14: 777 | E14: 886 | F14: 806 | G14: 786 | H14: 910 | I14: 1013 | J14: 1041 | K14: 910 | L14: 1051 | M14: 1087 | N14: 1071
A15: Educación | B15: 136 | C15: 291 | D15: 372 | E15: 399 | F15: 275 | G15: 235 | H15: 246 | I15: 241 | J15: 397 | K15: 182 | L15: 328 | M15: 291 | N15: 328
A16: Enseñanza comercial y administración | B16: 918 | C16: 1032 | D16: 1071 | E16: 1135 | F16: 1289 | G16: 1280 | H16: 1239 | I16: 1999 | J16: 1869 | K16: 1587 | L16: 2235 | M16: 2212 | N16: 2286
A17: Humanidades | B17: 64 | C17: 76 | D17: 75 | E17: 92 | F17: 90 | G17: 66 | H17: 75 | I17: 68 | J17: 115 | K17: 138 | L17: 131 | M17: 130 | N17: 115
A18: Industria y producción | B18: 26 | C18: 16 | D18: 31 | E18: 33 | F18: 24 | G18: 27 | H18: 25 | I18: 45 | J18: 117 | K18: 71 | L18: 119 | M18: 49 | N18: 83
A19: Ingeniería y profesiones afines | B19: 214 | C19: 200 | D19: 204 | E19: 194 | F19: 257 | G19: 222 | H19: 232 | I19: 275 | J19: 345 | K19: 348 | L19: 368 | M19: 394 | N19: 410
A20: Matemáticas y estadística | B20: 12 | C20: 5 | D20: 13 | E20: 27 | F20: 19 | G20: 14 | H20: 11 | I20: 21 | J20: 19 | K20: 11 | L20: 14 | M20: 14 | N20: 23
A21: Medio ambiente | B21: s/d | C21: s/d | D21: s/d | E21: s/d | F21: s/d | G21: s/d | H21: 5 | I21: 12 | J21: 10 | K21: 10 | L21: 9 | M21: 8 | N21: 14
A22: Periodismo e información | B22: 174 | C22: 191 | D22: 213 | E22: 234 | F22: 242 | G22: 201 | H22: 241 | I22: 280 | J22: 260 | K22: 325 | L22: 378 | M22: 350 | N22: 262
A23: Salud | B23: 1243 | C23: 1537 | D23: 1726 | E23: 1532 | F23: 1874 | G23: 1962 | H23: 1953 | I23: 2027 | J23: 2462 | K23: 2147 | L23: 2060 | M23: 2433 | N23: 2639
A24: Servicios de Seguridad | B24: n/c | C24: n/c | D24: n/c | E24: n/c | F24: n/c | G24: n/c | H24: s/d | I24: 41 | J24: 81 | K24: 111 | L24: 114 | M24: 80 | N24: 87
A25: Servicios personales | B25: 19 | C25: 96 | D25: 145 | E25: 194 | F25: 67 | G25: 51 | H25: 181 | I25: 125 | J25: 210 | K25: 255 | L25: 247 | M25: 361 | N25: 413
A26: Serviciosde transporte | B26: n/c | C26: n/c | D26: n/c | E26: n/c | F26: n/c | G26: n/c | H26: n/c | I26: n/c | J26: n/c | K26: n/c | L26: n/c | M26: 240 | N26: 278
A27: Tecnologías de la información y comunicación | B27: 277 | C27: 235 | D27: 215 | E27: 242 | F27: 260 | G27: 250 | H27: 277 | I27: 288 | J27: 381 | K27: 354 | L27: 403 | M27: 414 | N27: 435
A28: Veterinaria | B28: 118 | C28: 94 | D28: 55 | E28: 70 | F28: 91 | G28: 105 | H28: 132 | I28: 120 | J28: 146 | K28: 107 | L28: 146 | M28: 178 | N28: 160
A29: Fuente: Elaboración propia en base a información brindada por las oficinas productoras de las instituciones. Nota: Las áreas corresponden a la clasificación CINE 2013 de UNESCO.

Sheet Cuadro 2.9.3
A1: Ministerio de Educación y Cultura Dirección de Educación
A3: INGRESOS A INSTITUCIONES UNIVERSITARIAS PÚBLICAS Y PRIVADAS DE GRADO POSTGRADO, POR NIVEL ACADÉMICO SEGÚN ÁREA DE CONOCIMIENTO. (Todo el país, 2017).
A4: INSTITUCIONES UNIVERSITARIAS | B4: NIVEL ACADÉMICO
B5: TOTAL | D5: Carrera corta o tecnicatura | F5: Carrera de grado o Licenciatura | H5: Posgrado de especialización | J5: Maestría | L5: Doctorado
D6: Varón | E6: Mujer | F6: Varón | G6: Mujer | H6: Varón | I6: Mujer | J6: Varón | K6: Mujer | L6: Varón | M6: Mujer
A7: TOTAL * | B7: =SUM(D7:M7) -> 38038 | C7: =SUM(C8:C29) -> 100 | D7: =SUM(D8:D29) -> 2075 | E7: =SUM(E8:E29) -> 3207 | F7: 10902 | G7: 16244 | H7: 1260 | I7: 2126 | J7: 765 | K7: 1246 | L7: 93 | M7: 120
A8: Agricultura | B8: 693 | C8: =(B8*100)/$B$7 -> 1.821862348 | D8: 15 | E8: 16 | F8: 344 | G8: 191 | H8: 30 | I8: 23 | J8: 28 | K8: 30 | L8: 7 | M8: 9
A9: Arquitectura y construcción | B9: 906 | C9: 2.381828698 | D9: 8 | E9: 16 | F9: 354 | G9: 481 | H9: 6 | I9: 4 | J9: 8 | K9: 27 | L9: 0 | M9: 2
A10: Artes | B10: 1200 | C10: 3.154739997 | D10: 27 | E10: 37 | F10: 389 | G10: 729 | H10: 7 | I10: 11 | J10: 0 | K10: 0 | L10: 0 | M10: 0
A11: Bienestar | B11: 18 | C11: 0.04732109995 | D11: 2 | E11: 9 | F11: 1 | G11: 6 | H11: 0 | I11: 0 | J11: 0 | K11: 0 | L11: 0 | M11: 0
A12: Ciencias biológicas y afines | B12: 597 | C12: 1.569483148 | D12: 0 | E12: 0 | F12: 165 | G12: 269 | H12: 0 | I12: 0 | J12: 21 | K12: 75 | L12: 30 | M12: 37
A13: Ciencias físicas | B13: 795 | C13: 2.090015248 | D13: 40 | E13: 66 | F13: 239 | G13: 348 | H13: 24 | I13: 22 | J13: 11 | K13: 13 | L13: 11 | M13: 21
A14: Ciencias sociales y del comportamiento | B14: 4193 | C14: 11.02318734 | D14: 8 | E14: 14 | F14: 1046 | G14: 2385 | H14: 115 | I14: 278 | J14: 90 | K14: 240 | L14: 5 | M14: 12
A15: Derecho | B15: 3392 | C15: 8.917398391 | D15: 0 | E15: 0 | F15: 1006 | G15: 2054 | H15: 13 | I15: 30 | J15: 111 | K15: 178 | L15: 0 | M15: 0
A16: Educación | B16: 1267 | C16: 3.330879647 | D16: 4 | E16: 28 | F16: 130 | G16: 284 | H16: 95 | I16: 328 | J16: 91 | K16: 293 | L16: 2 | M16: 12
A17: Enseñanza comercial y administración | B17: 7706 | C17: 20.25868868 | D17: 971 | E17: 2016 | F17: 1829 | G17: 2109 | H17: 137 | I17: 254 | J17: 208 | K17: 182 | L17: 0 | M17: 0
A18: Humanidades | B18: 1165 | C18: 3.062726747 | D18: 67 | E18: 259 | F18: 292 | G18: 448 | H18: 10 | I18: 18 | J18: 20 | K18: 21 | L18: 15 | M18: 15
A19: Industria y producción | B19: 462 | C19: 1.214574899 | D19: 10 | E19: 8 | F19: 98 | G19: 301 | H19: 25 | I19: 20 | J19: 0 | K19: 0 | L19: 0 | M19: 0
A20: Ingeniería y profesiones afines | B20: 1693 | C20: 4.450812346 | D20: 182 | E20: 27 | F20: 881 | G20: 435 | H20: 38 | I20: 17 | J20: 67 | K20: 26 | L20: 15 | M20: 5
A21: Matemáticas y estadística | B21: 242 | C21: 0.6362058994 | D21: 0 | E21: 0 | F21: 112 | G21: 75 | H21: 14 | I21: 25 | J21: 9 | K21: 2 | L21: 4 | M21: 1
A22: Medio ambiente | B22: 178 | C22: 0.4679530995 | D22: 35 | E22: 10 | F22: 41 | G22: 60 | H22: 6 | I22: 13 | J22: 5 | K22: 8 | L22: 0 | M22: 0
A23: Periodismo e información | B23: 1376 | C23: 3.617435196 | D23: 12 | E23: 30 | F23: 462 | G23: 801 | H23: 0 | I23: 0 | J23: 19 | K23: 52 | L23: 0 | M23: 0
A24: Salud | B24: 7548 | C24: 19.84331458 | D24: 98 | E24: 477 | F24: 1343 | G24: 4119 | H24: 358 | I24: 1060 | J24: 29 | K24: 59 | L24: 2 | M24: 3
A25: Servicios de seguridad | B25: 158 | C25: 0.4153740996 | D25: 0 | E25: 0 | F25: 0 | G25: 0 | H25: 107 | I25: 11 | J25: 27 | K25: 13 | L25: 0 | M25: 0
A26: Servicios de transporte | B26: 278 | C26: 0.7308480993 | D26: 0 | E26: 0 | F26: 0 | G26: 0 | H26: 269 | I26: 9 | J26: 0 | K26: 0 | L26: 0 | M26: 0
A27: Servicios personales | B27: 1899 | C27: 4.992376045 | D27: 249 | E27: 112 | F27: 1006 | G27: 514 | H27: 0 | I27: 0 | J27: 8 | K27: 10 | L27: 0 | M27: 0
A28: Tecnologías de la información y comunicación | B28: 1594 | C28: 4.190546296 | D28: 347 | E28: 82 | F28: 975 | G28: 174 | H28: 6 | I28: 3 | J28: 6 | K28: 1 | L28: 0 | M28: 0
A29: Veterinaria | B29: 678 | C29: 1.782428098 | D29: 0 | E29: 0 | F29: 189 | G29: 461 | H29: 0 | I29: 0 | J29: 7 | K29: 16 | L29: 2 | M29: 3
A30: Fuente: Elaboración propia en base información de las oficinas productoras de las instituciones
A31: Nota: Las áreas corresponden a la clasificación CINE 2013 de UNESCO.
A32: * En el total de Ingreso no se tiene en cuenta a 1.081 estudiantes que ingresaron a los CIOs (Ciclo Inicial Optativos)

Sheet Cuadro 2.9.4
A1: Ministerio de Educación y Cultura Dirección de Educación
A3: EGRESOS DE INSTITUCIONES UNIVERSITARIAS PÚBLICAS Y PRIVADAS DE GRADO POSTGRADO, POR NIVEL ACADÉMICO SEGÚN ÁREA DE CONOCIMIENTO. (Todo el país, 2017).
A5: INSTITUCIONES UNIVERSITARIAS | B5: TOTAL | C5: % | D5: NIVEL ACADÉMICO
D6: Carrera corta o tecnicatura | F6: Carrera de grado, licenciatura | H6: Postgrado de especialización | J6: Maestría | L6: Doctorado
D7: Varón | E7: Mujer | F7: Varón | G7: Mujer | H7: Varón | I7: Mujer | J7: Varón | K7: Mujer | L7: Varón | M7: Mujer
A8: TOTAL | B8: =SUM(D8:M8) -> 11580 | C8: =SUM(C9:C30) -> 100 | D8: =SUM(D9:D30) -> 202 | E8: =SUM(E9:E30) -> 395 | F8: 2999 | G8: 5229 | H8: 797 | I8: 1157 | J8: 303 | K8: 426 | L8: 30 | M8: 42
A9: Agricultura | B9: =SUM(D9:M9) -> 313 | C9: =(B9*100)/$B$8 -> 2.702936097 | D9: 8 | E9: 7 | F9: 157 | G9: 71 | H9: 18 | I9: 16 | J9: 9 | K9: 17 | L9: 5 | M9: 5
A10: Arquitectura y construcción | B10: 655 | C10: 5.656303972 | D10: 1 | E10: 0 | F10: 255 | G10: 389 | H10: 1 | I10: 2 | J10: 3 | K10: 1 | L10: 2 | M10: 1
A11: Artes | B11: 163 | C11: 1.407599309 | D11: 6 | E11: 10 | F11: 47 | G11: 100 | H11: 0 | I11: 0 | J11: 0 | K11: 0 | L11: 0 | M11: 0
A12: Bienestar | B12: 144 | C12: 1.243523316 | D12: 0 | E12: 0 | F12: 15 | G12: 117 | H12: 5 | I12: 5 | J12: 2 | K12: 0 | L12: 0 | M12: 0
A13: Ciencias biológicas y afines | B13: 162 | C13: 1.398963731 | D13: 0 | E13: 0 | F13: 29 | G13: 58 | H13: 0 | I13: 0 | J13: 16 | K13: 37 | L13: 9 | M13: 13
A14: Ciencias físicas | B14: 188 | C14: 1.623488774 | D14: 7 | E14: 28 | F14: 27 | G14: 94 | H14: 0 | I14: 3 | J14: 4 | K14: 14 | L14: 2 | M14: 9
A15: Ciencias sociales y del comportamiento | B15: 1351 | C15: 11.66666667 | D15: 0 | E15: 1 | F15: 281 | G15: 852 | H15: 26 | I15: 101 | J15: 30 | K15: 56 | L15: 2 | M15: 2
A16: Derecho | B16: 1071 | C16: 9.248704663 | D16: 1 | E16: 6 | F16: 244 | G16: 768 | H16: 1 | I16: 8 | J16: 14 | K16: 29 | L16: 0 | M16: 0
A17: Educación | B17: 328 | C17: 2.832469775 | D17: 0 | E17: 18 | F17: 10 | G17: 89 | H17: 33 | I17: 121 | J17: 7 | K17: 47 | L17: 0 | M17: 3
A18: Enseñanza comercial y administración | B18: 2286 | C18: 19.74093264 | D18: 40 | E18: 77 | F18: 700 | G18: 910 | H18: 99 | I18: 190 | J18: 139 | K18: 131 | L18: 0 | M18: 0
A19: Humanidades | B19: 115 | C19: 0.9930915371 | D19: 5 | E19: 20 | F19: 15 | G19: 45 | H19: 0 | I19: 0 | J19: 11 | K19: 18 | L19: 1 | M19: 0
A20: Industria y producción | B20: 83 | C20: 0.7167530225 | D20: 1 | E20: 0 | F20: 11 | G20: 45 | H20: 10 | I20: 15 | J20: 1 | K20: 0 | L20: 0 | M20: 0
A21: Ingeniería y profesiones afines | B21: 410 | C21: 3.540587219 | D21: 19 | E21: 1 | F21: 236 | G21: 94 | H21: 18 | I21: 10 | J21: 15 | K21: 9 | L21: 7 | M21: 1
A22: Matemáticas y estadística | B22: 23 | C22: 0.1986183074 | D22: 0 | E22: 0 | F22: 6 | G22: 6 | H22: 3 | I22: 3 | J22: 4 | K22: 0 | L22: 0 | M22: 1
A23: Medio ambiente | B23: 14 | C23: 0.1208981002 | D23: 0 | E23: 3 | F23: 2 | G23: 2 | H23: 0 | I23: 1 | J23: 3 | K23: 3 | L23: 0 | M23: 0
A24: Periodismo e información | B24: 262 | C24: 2.262521589 | D24: 0 | E24: 0 | F24: 69 | G24: 164 | H24: 0 | I24: 0 | J24: 6 | K24: 23 | L24: 0 | M24: 0
A25: Salud | B25: 2639 | C25: 22.78929188 | D25: 22 | E25: 179 | F25: 324 | G25: 1172 | H25: 246 | I25: 656 | J25: 8 | K25: 25 | L25: 2 | M25: 5
A26: Servicios de seguridad | B26: 87 | C26: 0.7512953368 | D26: 0 | E26: 0 | F26: 0 | G26: 0 | H26: 57 | I26: 6 | J26: 15 | K26: 9 | L26: 0 | M26: 0
A27: Servicios de transporte | B27: 278 | C27: 2.400690846 | D27: 0 | E27: 0 | F27: 0 | G27: 0 | H27: 269 | I27: 9 | J27: 0 | K27: 0 | L27: 0 | M27: 0 | Q27: Fuente: Elaboración propia en base información de las oficinas productoras de las instituciones Nota: Las áreas corresponden a la clasificación CINE 2013 de UNESCO.
A28: Servicios personales | B28: 413 | C28: 3.566493955 | D28: 43 | E28: 36 | F28: 213 | G28: 121 | H28: 0 | I28: 0 | J28: 0 | K28: 0 | L28: 0 | M28: 0
A29: Tecnologías de la información y comunicación | B29: 435 | C29: 3.756476684 | D29: 49 | E29: 9 | F29: 280 | G29: 53 | H29: 11 | I29: 11 | J29: 15 | K29: 6 | L29: 0 | M29: 1
A30: Veterinaria | B30: 160 | C30: 1.381692573 | D30: 0 | E30: 0 | F30: 78 | G30: 79 | H30: 0 | I30: 0 | J30: 1 | K30: 1 | L30: 0 | M30: 1
A31: Fuente: Elaboración propia en base información de las oficinas productoras de las instituciones Nota: Las áreas corresponden a la clasificación CINE 2013 de UNESCO.

Sheet Cuadro 2.9.5
A1: Ministerio de Educación y Cultura Dirección de Educación
A3: Cuadro 2.9.5 INGRESOS, MATRÍCULA Y EGRESOS DE OFERTAS DE GRADO SEGÚN FORMA DE ADMINISTRACIÓN EN CANTIDADES ABSOLUTAS Y PORCENTAJES. (Todo el país, 2017).
A4: FORMA DE ADMINISTRACIÓN | B4: INGRESOS | C4: MATRÍCULA | D4: EGRESOS
A5: TOTAL VALORES ABSOLUTOS | B5: =SUM(B6:B8) -> 29670 | C5: =SUM(C6:C8) -> 153853 | D5: =SUM(D6:D8) -> 8825
A6: Universidad de la República * | B6: 25542 | C6: 130941 | D6: 6360
A7: UTEC | B7: 389 | C7: 721 | D7: 32
A8: Instituciones Universitarias Privadas | B8: 3739 | C8: 22191 | D8: 2433
A9: TOTAL PORCENTAJES | B9: 1 | C9: 1 | D9: 1
A10: Universidad de la República | B10: =B6/B5*100% -> 0.8608695652 | C10: =C6/C5*100% -> 0.851078627 | D10: =D6/D5*100% -> 0.7206798867
A11: UTEC | B11: =B7/B5*100% -> 0.01311088642 | C11: =C7/C5*100% -> 0.00468629146 | D11: =D7/D5*100% -> 0.003626062323
A12: Instituciones Universitarias Privadas | B12: =B8/B5*100% -> 0.1260195484 | C12: =C8/C5*100% -> 0.1442350815 | D12: =D8/D5*100% -> 0.275694051
A13: Fuentes: Elaboración propia en base a información brindada por las oficinas productoras de las instituciones.
A14: La matrícula de UdelaR corresponde al dato del VII Censo de estudiantes de grado 2012.
A15: La Proyección de Matrícula de Estudiantes de Grado de la UdelaR publicada por la División General de Planeamiento para el año 2017, estima 144.348 estudiantes.
A16: Los datos de egreso de UdelaR en el 2017 son preliminares

Sheet Cuadro 2.9.6
A1: Ministerio de Educación y Cultura Dirección de Educación
A3: Cuadro 2.9.6 PORCENTAJE DE EGRESADOS DE GRADO POR NIVEL Y SEXO SEGÚN TRAMOS DE EDAD. (Todo el país, 2017).
A4: Tramos de edad | B4: Carrera corta o tecnicatura | E4: Carrera de Grado o Licenciatura
B5: TOTAL | C5: Varón | D5: Mujer | E5: TOTAL | F5: Varón | G5: Mujer
A6: Total | B6: =C6+D6 -> 100 | C6: =SUM(C7:C12) -> 33.8 | D6: =SUM(D7:D12) -> 66.2 | E6: =F6+G6 -> 100 | F6: =SUM(F7:F12) -> 36.4 | G6: =SUM(G7:G12) -> 63.6
A7: Hasta 24 años | B7: =C7+D7 -> 28 | C7: 6.7 | D7: 21.3 | E7: =F7+G7 -> 28.5 | F7: 9.3 | G7: 19.2
A8: 25 a 29 años | B8: 28.5 | C8: 8.4 | D8: 20.1 | E8: 39.4 | F8: 14.3 | G8: 25.1
A9: 30 a 34 años | B9: 15.4 | C9: 6.7 | D9: 8.7 | E9: 15.8 | F9: 6 | G9: 9.8
A10: 35 a 39 años | B10: 5.7 | C10: 1.8 | D10: 3.9 | E10: 6.3 | F10: 2.4 | G10: 3.9
A11: más de 39 años | B11: 9.5 | C11: 2.7 | D11: 6.8 | E11: 7.7 | F11: 3.1 | G11: 4.6
A12: S/D | B12: 12.9 | C12: 7.5 | D12: 5.4 | E12: 2.3 | F12: 1.3 | G12: 1
A13: Fuente: Elaboración propia en base a información proporcionada por las oficinas productoras de estadísticas de cada una de las instituciones.

Sheet Cuadro 2.9.7
A1: Ministerio de Educación y Cultura Dirección de Educación
A3: Cuadro 2.9.7 PORCENTAJE DE EGRESADOS DE POSGRADO POR NIVEL Y SEXO SEGÚN TRAMOS DE EDAD. (Todo el país, 2017).
A4: Tramos de edad | B4: Postgrado o especialización | E4: Maestría | H4: Doctorado
B5: TOTAL | C5: Varón | D5: Mujer | E5: TOTAL | F5: Varón | G5: Mujer | H5: TOTAL | I5: Varón | J5: Mujer
A6: Total | B6: =C6+D6 -> 100 | C6: =SUM(C7:C11) -> 42.2 | D6: =SUM(D7:D11) -> 57.8 | E6: =F6+G6 -> 100 | F6: =SUM(F7:F11) -> 41.6 | G6: =SUM(G7:G11) -> 58.4 | H6: =I6+J6 -> 100 | I6: =SUM(I7:I11) -> 41.6 | J6: =SUM(J7:J11) -> 58.4
A7: Hasta 29 años | B7: 16.6 | C7: 7.5 | D7: 9.1 | E7: 13.3 | F7: 5.5 | G7: 7.8 | H7: 7 | I7: 1.4 | J7: 5.6
A8: 30 a 34 años | B8: 36 | C8: 15 | D8: 21 | E8: 25.9 | F8: 11.5 | G8: 14.4 | H8: 18 | I8: 6.9 | J8: 11.1
A9: 35 a 39 años | B9: 19.6 | C9: 8.7 | D9: 10.9 | E9: 20.2 | F9: 8.4 | G9: 11.8 | H9: 19.4 | I9: 6.9 | J9: 12.5
A10: más de 39 años | B10: 25.8 | C10: 10.5 | D10: 15.3 | E10: 39.8 | F10: 16.2 | G10: 23.6 | H10: 47.2 | I10: 23.6 | J10: 23.6
A11: S/D | B11: 2 | C11: 0.5 | D11: 1.5 | E11: 0.8 | F11: 0 | G11: 0.8 | H11: 8.4 | I11: 2.8 | J11: 5.6
A12: Fuente: Elaboración propia en base a información proporcionada por las oficinas productoras de estadísticas de cada una de las instituciones.

Sheet Gráfico 2.9.1
A1: Ministerio de Educación y Cultura Dirección de Educación
A5: Gráfico 2.9.1
A36: Fuente: Elaboración propia en base a información proporcionada por las oficinas productoras de estadísticas de cada una de las instituciones.

Sheet Gráfico 2.9.2
A1: Ministerio de Educación y Cultura Dirección de Educación
A5: Gráfico 2.9.2
A23: Fuente: Elaboración propia en base a información proporcionada por UdelaR.
A24: Nota: (*) “Según Res. N°15 del CDC de fecha 23/10/12, se entiende por Generación de Ingreso a Servicio a todos los estudiantes que ingresan por primera vez al Servicio, en un año dado, a alguna carrera terciaria y/o de grado. Se considera cada carrera compartida y C.I.O. como un servicio aparte.” Los datos de egresos de UdelaR son preliminares.

Sheet Gráfico 2.9.3
A1: Ministerio de Educación y Cultura Dirección de Educación
A5: Gráfico 2.9.3
A24: Fuente: Elaboración propia en base a información proporcionada por las oficinas productoras de estadísticas de cada una de las instituciones.

Sheet Gráfico 2.9.4
A1: Ministerio de Educación y Cultura Dirección de Educación
A5: Gráfico 2.9.4
A23: Fuente: Elaboración propia en base a información proporcionada las oficinas productoras de estadísticas educativas de los Institutos Universitarios y de las Universidades Privadas.

Sheet Gráfico 2.9.5
A1: Ministerio de Educación y Cultura Dirección de Educación
A5: Gráfico 2.9.5
A23: Fuente: Elaboración propia en base a información proporcionada por la UdelaR y las oficinas productoras de estadísticas educativas de los Institutos Universitarios y de las Universidades Privadas
A25: Notas: Los datos de egresos de UdelaR son preliminares.

Sheet Gráfico 2.9.6
A1: Ministerio de Educación y Cultura Dirección de Educación
A5: Gráfico 2.9.6
A23: Fuente: Elaboración propia en base a información proporcionada por las Universidades e Institutos Universitarios
A25: Notas: Los datos de egresos de UdelaR son preliminares.

Sheet Gráfico 2.9.7
A1: Ministerio de Educación y Cultura Dirección de Educación
A5: Gráfico 2.9.7
A26: Fuente: Elaboración propia en base a información proporcionada por las Universidaes e Institutos Universitarios
A28: Notas: Los datos de egresos de UdelaR son preliminares.

Sheet Gráfico 2.9.8
A1: Ministerio de Educación y Cultura Dirección de Educación
A5: Gráfico 2.9.8
A25: Fuente: Elaboración propia en base a información proporcionada por las Universidades e Institutos Universitarios
A27: Notas: Los datos de egresos de UdelaR son preliminares.

Sheet Gráfico 2.9.9
A1: Ministerio de Educación y Cultura Dirección de Educación
A5: Gráfico 2.9.9
A25: Fuente: Elaboración propia en base a información reportada por las oficinas productoras de estadísticas de las instituciones

Sheet Gráfico 2.9.10
A1: Ministerio de Educación y Cultura Dirección de Educación
A5: Gráfico 2.9.10
A24: Fuente: Elaboración propia en base a información reportada por las oficinas productoras de estadísticas de las instituciones.

Sheet Gráfico 2.9.11
A1: Ministerio de Educación y Cultura Dirección de Educación
A5: Gráfico 2.9.11
A24: Fuente: Elaboración propia en base a información reportada por las oficinas productoras de estadísticas de las instituciones.

Sheet Gráfico 2.9.12
A1: Ministerio de Educación y Cultura Dirección de Educación
A5: Gráfico 2.9.12
A27: Fuente: Elaboración propia en base a información reportada por las oficinas productoras de estadísticas de las instituciones.

Sheet Gráfico 2.9.13
A1: Ministerio de Educación y Cultura Dirección de Educación
A5: Gráfico 2.9.13
A26: Fuente: Elaboración propia en base a información reportada por las oficinas productoras de estadísticas de las instituciones.

Sheet 10. EDUCACIÓN JÓVENES Y ADULTOS
C2: EDUCACIÓN DE JÓVENES Y ADULTOS
A7: Cuadro 2.10.1 | B7: TOTAL DE INSTITUCIONES Y CURSOS DEL RELEVAMIENTO DE OFERTA DE FORMACIÓN EN EDUCACIÓN NO FORMAL POR FORMA DE ADMINISTRACIÓN Y ÁREA GEOGRÁFICA, SEGÚN ÁREA DE CONOCIMIENTO. AÑO 2017
A8: Cuadro 2.10.2 | B8: ESTUDIANTES MATRICULADOS EN CURSOS DEL RELEVAMIENTO DE OFERTA DE FORMACIÓN EN EDUCACIÓN NO FORMAL POR FORMA DE ADMINISTRACIÓN Y ÁREA GEOGRÁFICA, SEGÚN ÁREA DE CONOCIMIENTO. AÑO 2017
A9: Cuadro 2.10.3 | B9: CANTIDAD DE CURSOS POR TRAMOS DE DURACIÓN TOTAL EN HORAS DEL RELEVAMIENTO DE OFERTA DE FORMACIÓN EN EDUCACIÓN NO FORMAL SEGÚN ÁREA DE CONOCIMIENTO. AÑO 2017
A10: Cuadro 2.10.4 | B10: ESTUDIANTES MATRICULADOS EN CURSOS DE EDUCACIÓN TÉCNICA PARA JÓVENES Y ADULTOS POR SEXO Y GRANDES ÁREAS SEGÚN TIPO DE CURSO. AÑO 2017.
A11: Cuadro 2.10.5 | B11: ESTUDIANTES INGRESADOS Y MATRICULADOS EN CECAP POR SEXO SEGÚN GRANDES ÁREAS.AÑO 2017.
A12: Cuadro 2.10.6 | B12: ESTUDIANTES MATRICULADOS DEL COCAP POR SEXO, SEGÚN TIPO DE CURSO.AÑO 2017.
A13: Cuadro 2.10.7 | B13: ESTUDIANTES MATRICULADOS EN COCAP POR SEXO, SEGÚN ÁREA DE CONOCIMIENTO. AÑO 2017.
A14: Cuadro 2.10.8 | B14: FUNCIONARIOS PARTICIPANTES EN LOS CURSOS DE LA ENAP “DR AQUILES LANZA”, CANTIDAD DE CURSOS, HORAS, ORGANISMOS PARTICIPANTES Y TIPO DE CURSO. (Todo el país, 2017)
A15: Cuadro 2.10.9 | B15: ESTUDIANTES MATRICULADOS E INGRESADOS EN CARRERAS NO TERCIARIAS EN UNIVERSIDADES E INSTITUTOS UNIVERSITARIOS. AÑO 2017.
A18: Gráfico 2.10.1 | B18: EVOLUCIÓN DE LA MATRÍCULA DE CECAP SEGÚN AÑO LECTIVO (2000 - 2017)

Sheet Cuadro 2.10.1
A1: Ministerio de Educación y Cultura
A2: Dirección de Educación
A5: Cuadro 2.10.1
A7: TOTAL DE INSTITUCIONES Y CURSOS DEL RELEVAMIENTO DE OFERTA DE FORMACIÓN EN EDUCACIÓN NO FORMAL POR FORMA DE ADMINISTRACIÓN Y ÁREA GEOGRÁFICA, SEGÚN ÁREA DE CONOCIMIENTO. (Todo el país, 2017).
A8: ÁREA DE CONOCIMIENTO | B8: TOTAL | C8: FORMA DE ADMINISTRACIÓN | E8: ÁREA GEOGRÁFICA
C9: PRIVADO | D9: PÚBLICA | E9: MONTEVIDEO | F9: RESTO DEL PAÍS
A10: TOTAL INSTITUCIONES | B10: 409 | C10: 373 | D10: 36 | E10: 235 | F10: 174
A12: TOTAL CURSOS | B12: 3809 | C12: 3431 | D12: 378 | E12: 2436 | F12: 1373
A13: AGRICULTURA | B13: 15 | C13: 14 | D13: 1 | E13: 7 | F13: 8
A14: ALFABETIZACIÓN Y ARITMÉTICA | B14: 5 | C14: 5 | D14: 0 | E14: 4 | F14: 1
A15: ARQUITECTURA Y CONSTRUCCIÓN | B15: 23 | C15: 19 | D15: 4 | E15: 18 | F15: 5
A16: ARTES | B16: 265 | C16: 258 | D16: 7 | E16: 211 | F16: 54
A17: BIENESTAR | B17: 40 | C17: 39 | D17: 1 | E17: 27 | F17: 13
A18: CIENCIAS BIOLÓGICAS Y AFINES | B18: 6 | C18: 6 | D18: 0 | E18: 3 | F18: 3
A19: CIENCIAS FÍSICAS | B19: 0 | C19: 0 | D19: 0 | E19: 0 | F19: 0
A20: CIENCIAS SOCIALES Y DEL COMPORTAMIENTO | B20: 47 | C20: 28 | D20: 19 | E20: 44 | F20: 3
A21: COMPETENCIAS PERSONALES Y DESARROLLO | B21: 42 | C21: 41 | D21: 1 | E21: 29 | F21: 13
A22: DERECHO | B22: 11 | C22: 11 | D22: 0 | E22: 10 | F22: 1
A23: EDUCACIÓN | B23: 42 | C23: 28 | D23: 14 | E23: 33 | F23: 9
A24: EDUCACIÓN COMERCIAL Y ADMINISTRACIÓN | B24: 504 | C24: 501 | D24: 3 | E24: 435 | F24: 69
A25: HUMANIDADES | B25: 9 | C25: 9 | D25: 0 | E25: 8 | F25: 1
A26: IDIOMAS | B26: 1380 | C26: 1369 | D26: 11 | E26: 584 | F26: 796
A27: INDUSTRIA Y PRODUCCIÓN | B27: 94 | C27: 90 | D27: 4 | E27: 72 | F27: 22
A28: INGENIERÍA Y PROFESIONES AFINES | B28: 59 | C28: 46 | D28: 13 | E28: 37 | F28: 22
A29: MATEMÁTICAS Y ESTADÍSTICA | B29: 18 | C29: 15 | D29: 3 | E29: 17 | F29: 1
A30: MEDIO AMBIENTE | B30: 0 | C30: 0 | D30: 0 | E30: 0 | F30: 0
A31: OTROS | B31: 106 | C31: 103 | D31: 3 | E31: 78 | F31: 28
A32: PERIODISMO E INFORMACIÓN | B32: 6 | C32: 6 | D32: 0 | E32: 5 | F32: 1
A33: PESCA | B33: 0 | C33: 0 | D33: 0 | E33: 0 | F33: 0
A34: PROGRAMAS Y CERTIFICACIONES BÁSICOS | B34: 33 | C34: 33 | D34: 0 | E34: 14 | F34: 19
A35: SALUD | B35: 184 | C35: 169 | D35: 15 | E35: 106 | F35: 78
A36: SERVICIOS DE HIGIENE Y SALUD OCUPACIONAL | B36: 45 | C36: 44 | D36: 1 | E36: 39 | F36: 6
A37: SERVICIOS DE SEGURIDAD | B37: 268 | C37: 23 | D37: 245 | E37: 226 | F37: 42
A38: SERVICIOS DE TRANSPORTE | B38: 38 | C38: 27 | D38: 11 | E38: 26 | F38: 12
A39: SERVICIOS PERSONALES | B39: 214 | C39: 213 | D39: 1 | E39: 154 | F39: 60
A40: SILVICULTURA | B40: 1 | C40: 1 | D40: 0 | E40: 1 | F40: 0
A41: TECNOLOGÍAS DE LA INFORMACIÓN Y LA COMUNICACIÓN | B41: 351 | C41: 332 | D41: 19 | E41: 247 | F41: 104
A42: VETERINARIA | B42: 3 | C42: 1 | D42: 2 | E42: 1 | F42: 2
A43: Fuente: Elaboración propia en base a la información del relevamiento de oferta de formación en Educación No Formal.
A44: Realizado por la División de Investigación y Estadística.
A45: Nota: Las áreas de conocimiento corresponden a la clasificación CINE 2013 de UNESCO

Sheet Cuadro 2.10.2
A1: Ministerio de Educación y Cultura
A2: Dirección de Educación
A5: Cuadro 2.10.2
A6: ESTUDIANTES MATRICULADOS EN CURSOS DEL RELEVAMIENTO DE OFERTA DE FORMACIÓN EN EDUCACIÓN NO FORMAL POR FORMA DE ADMINISTRACIÓN Y ÁREA GEOGRÁFICA, SEGÚN ÁREA DE CONOCIMIENTO. (Todo el país, 2017)
A8: ÁREA DE CONOCIMIENTO | B8: TOTAL | C8: FORMA DE ADMINISTRACIÓN | E8: ÁREA GEOGRÁFICA
C9: PRIVADA | D9: PÚBLICA | E9: MONTEVIDEO | F9: RESTO DEL PAÍS
A10: TOTAL | B10: 80226 | C10: 73321 | D10: 6905 | E10: 58433 | F10: 21793
A11: AGRICULTURA | B11: 268 | C11: 262 | D11: 6 | E11: 59 | F11: 209
A12: ALFABETIZACIÓN Y ARITMÉTICA | B12: 93 | C12: 93 | D12: 0 | E12: 74 | F12: 19
A13: ARQUITECTURA Y CONSTRUCCIÓN | B13: 638 | C13: 570 | D13: 68 | E13: 490 | F13: 148
A14: ARTES | B14: 4482 | C14: 4414 | D14: 68 | E14: 3482 | F14: 1000
A15: BIENESTAR | B15: 1598 | C15: 1586 | D15: 12 | E15: 1074 | F15: 524
A16: CIENCIAS BIOLÓGICAS Y AFINES | B16: 91 | C16: 91 | D16: 0 | E16: 69 | F16: 22
A17: CIENCIAS FÍSICAS | B17: 0 | C17: 0 | D17: 0 | E17: 0 | F17: 0
A18: CIENCIAS SOCIALES Y DEL COMPORTAMIENTO | B18: 407 | C18: 155 | D18: 252 | E18: 387 | F18: 20
A19: COMPETENCIAS PERSONALES Y DESARROLLO | B19: 955 | C19: 955 | D19: 0 | E19: 784 | F19: 171
A20: DERECHO | B20: 274 | C20: 274 | D20: 0 | E20: 240 | F20: 34
A21: EDUCACIÓN | B21: 1402 | C21: 869 | D21: 533 | E21: 1117 | F21: 285
A22: EDUCACIÓN COMERCIAL Y ADMINISTRACIÓN | B22: 14530 | C22: 14497 | D22: 33 | E22: 13368 | F22: 1162
A23: HUMANIDADES | B23: 457 | C23: 457 | D23: 0 | E23: 447 | F23: 10
A24: IDIOMAS | B24: 13285 | C24: 13163 | D24: 122 | E24: 5769 | F24: 7516
A25: INDUSTRIA Y PRODUCCIÓN | B25: 2063 | C25: 2002 | D25: 61 | E25: 1627 | F25: 436
A26: INGENIERÍA Y PROFESIONES AFINES | B26: 1800 | C26: 1571 | D26: 229 | E26: 1457 | F26: 343
A27: MATEMÁTICAS Y ESTADÍSTICA | B27: 240 | C27: 217 | D27: 23 | E27: 240 | F27: 0
A28: MEDIO AMBIENTE | B28: 0 | C28: 0 | D28: 0 | E28: 0 | F28: 0
A29: OTROS | B29: 2725 | C29: 2699 | D29: 26 | E29: 1889 | F29: 836
A30: PERIODISMO E INFORMACIÓN | B30: 48 | C30: 48 | D30: 0 | E30: 41 | F30: 7
A31: PESCA | B31: 0 | C31: 0 | D31: 0 | E31: 0 | F31: 0
A32: PROGRAMAS Y CERTIFICACIONES BÁSICOS | B32: 1344 | C32: 1344 | D32: 0 | E32: 527 | F32: 817
A33: SALUD | B33: 10235 | C33: 9868 | D33: 367 | E33: 7162 | F33: 3073
A34: SERVICIOS DE HIGIENE Y SALUD OCUPACIONAL | B34: 1964 | C34: 1948 | D34: 16 | E34: 1254 | F34: 710
A35: SERVICIOS DE SEGURIDAD | B35: 5265 | C35: 628 | D35: 4637 | E35: 4701 | F35: 564
A36: SERVICIOS DE TRANSPORTE | B36: 2041 | C36: 1892 | D36: 149 | E36: 710 | F36: 1331
A37: SERVICIOS PERSONALES | B37: 5237 | C37: 5234 | D37: 3 | E37: 4129 | F37: 1108
A38: SILVICULTURA | B38: 20 | C38: 20 | D38: 0 | E38: 20 | F38: 0
A39: TECNOLOGÍAS DE LA INFORMACIÓN Y LA COMUNICACIÓN | B39: 8668 | C39: 8438 | D39: 230 | E39: 7290 | F39: 1378
A40: VETERINARIA | B40: 96 | C40: 26 | D40: 70 | E40: 26 | F40: 70
A41: Fuente: Elaboración propia en base a la información del relevamiento de oferta de formación en Educación No Formal.
A42: Realizado por la División de Investigación y Estadística.
A43: Nota: Las áreas de conocimiento corresponden a la clasificación CINE 2013 de UNESCO

Sheet Cuadro 2.10.3
A1: Ministerio de Educación y Cultura
A2: Dirección de Educación
A6: Cuadro 2.10.3
A7: CANTIDAD DE CURSOS POR TRAMOS DE DURACIÓN TOTAL EN HORAS DEL RELEVAMIENTO DE OFERTA DE FORMACIÓN EN EDUCACIÓN NO FORMAL SEGÚN ÁREA DE CONOCIMIENTO. (Todo el país, 2017)
A8: ÁREA DE CONOCIMIENTO | B8: TOTAL | C8: 0 a 40 | D8: 41 a 140 | E8: 141 a 320 | F8: 321 a 440 | G8: 441 y más | H8: SIN DATO
A10: TOTAL | B10: 3809 | C10: 1178 | D10: 1516 | E10: 620 | F10: 64 | G10: 132 | H10: 299
A11: AGRICULTURA | B11: 15 | C11: 1 | D11: 8 | E11: 0 | F11: 0 | G11: 1 | H11: 5
A12: ALFABETIZACIÓN Y ARITMÉTICA | B12: 5 | C12: 1 | D12: 3 | E12: 1 | F12: 0 | G12: 0 | H12: 0
A13: ARQUITECTURA Y CONSTRUCCIÓN | B13: 23 | C13: 10 | D13: 8 | E13: 3 | F13: 2 | G13: 0 | H13: 0
A14: ARTES | B14: 265 | C14: 107 | D14: 67 | E14: 40 | F14: 4 | G14: 13 | H14: 34
A15: BIENESTAR | B15: 40 | C15: 9 | D15: 1 | E15: 25 | F15: 0 | G15: 1 | H15: 4
A16: CIENCIAS BIOLÓGICAS Y AFINES | B16: 6 | C16: 0 | D16: 2 | E16: 2 | F16: 0 | G16: 0 | H16: 2
A17: CIENCIAS FÍSICAS | B17: 0 | C17: 0 | D17: 0 | E17: 0 | F17: 0 | G17: 0 | H17: 0
A18: CIENCIAS SOCIALES Y DEL COMPORTAMIENTO | B18: 47 | C18: 37 | D18: 7 | E18: 1 | F18: 0 | G18: 2 | H18: 0
A19: COMPETENCIAS PERSONALES Y DESARROLLO | B19: 42 | C19: 22 | D19: 10 | E19: 1 | F19: 3 | G19: 2 | H19: 4
A20: DERECHO | B20: 11 | C20: 11 | D20: 0 | E20: 0 | F20: 0 | G20: 0 | H20: 0
A21: EDUCACIÓN | B21: 42 | C21: 11 | D21: 5 | E21: 17 | F21: 1 | G21: 4 | H21: 4
A22: EDUCACIÓN COMERCIAL Y ADMINISTRACIÓN | B22: 504 | C22: 301 | D22: 124 | E22: 62 | F22: 2 | G22: 9 | H22: 6
A23: HUMANIDADES | B23: 9 | C23: 2 | D23: 4 | E23: 1 | F23: 0 | G23: 0 | H23: 2
A24: IDIOMAS | B24: 1380 | C24: 144 | D24: 837 | E24: 241 | F24: 7 | G24: 3 | H24: 148
A25: INDUSTRIA Y PRODUCCIÓN | B25: 94 | C25: 37 | D25: 31 | E25: 11 | F25: 2 | G25: 5 | H25: 8
A26: INGENIERÍA Y PROFESIONES AFINES | B26: 59 | C26: 12 | D26: 37 | E26: 8 | F26: 1 | G26: 0 | H26: 1
A27: MATEMÁTICAS Y ESTADÍSTICA | B27: 18 | C27: 4 | D27: 8 | E27: 0 | F27: 0 | G27: 0 | H27: 6
A28: MEDIO AMBIENTE | B28: 0 | C28: 0 | D28: 0 | E28: 0 | F28: 0 | G28: 0 | H28: 0
A29: OTROS | B29: 106 | C29: 73 | D29: 16 | E29: 3 | F29: 0 | G29: 6 | H29: 8
A30: PERIODISMO E INFORMACIÓN | B30: 6 | C30: 2 | D30: 1 | E30: 2 | F30: 0 | G30: 0 | H30: 1
A31: PESCA | B31: 0 | C31: 0 | D31: 0 | E31: 0 | F31: 0 | G31: 0 | H31: 0
A32: PROGRAMAS Y CERTIFICACIONES BÁSICOS | B32: 33 | C32: 6 | D32: 5 | E32: 2 | F32: 0 | G32: 4 | H32: 16
A33: SALUD | B33: 184 | C33: 46 | D33: 27 | E33: 36 | F33: 23 | G33: 46 | H33: 6
A34: SERVICIOS DE HIGIENE Y SALUD OCUPACIONAL | B34: 45 | C34: 41 | D34: 0 | E34: 1 | F34: 0 | G34: 1 | H34: 2
A35: SERVICIOS DE SEGURIDAD | B35: 268 | C35: 68 | D35: 78 | E35: 85 | F35: 7 | G35: 21 | H35: 9
A36: SERVICIOS DE TRANSPORTE | B36: 38 | C36: 22 | D36: 8 | E36: 3 | F36: 1 | G36: 0 | H36: 4
A37: SERVICIOS PERSONALES | B37: 214 | C37: 67 | D37: 63 | E37: 38 | F37: 11 | G37: 11 | H37: 24
A38: SILVICULTURA | B38: 1 | C38: 0 | D38: 1 | E38: 0 | F38: 0 | G38: 0 | H38: 0
A39: TECNOLOGÍAS DE LA INFORMACIÓN Y LA COMUNICACIÓN | B39: 351 | C39: 144 | D39: 164 | E39: 35 | F39: 0 | G39: 3 | H39: 5
A40: VETERINARIA | B40: 3 | C40: 0 | D40: 1 | E40: 2 | F40: 0 | G40: 0 | H40: 0
A42: Fuente: Elaboración propia en base a la información del Relevamiento de oferta de formación en Educación No Formal.
A43: Realizado por la División de Investigación y Estadística.
A44: Nota: Las áreas de conocimiento corresponden a la clasificación CINE 2013 de UNESCO

Sheet Cuadro 2.10.4
A1: Ministerio de Educación y Cultura
A2: Dirección de Educación
A5: Cuadro 2.10.4
A6: CONSEJO DE EDUCACIÓN TÉCNICO PROFESIONAL (U.T.U.)
A7: ESTUDIANTES MATRICULADOS EN CURSOS DE EDUCACIÓN TÉCNICA PARA JÓVENES Y ADULTOS POR SEXO Y GRANDES ÁREAS SEGÚN TIPO DE CURSO. (Todo el país, 2017).
A9: TIPO DE CURSO | B9: TOTAL | C9: SEXO | E9: ÁREA GEOGRÁFICA
E10: MONTEVIDEO | H10: RESTO DEL PAÍS
C11: Varón | D11: Mujer | E11: Total | F11: Varón | G11: Mujer | H11: Total | I11: Varón | J11: Mujer
A12: TOTAL | B12: 2942 | C12: 1368 | D12: 1574 | E12: 2586 | F12: 1202 | G12: 1384 | H12: 356 | I12: 166 | J12: 190
A13: CAP. PROFUNDIZACIÓN PROFESIONAL | B13: 122 | C13: 68 | D13: 54 | E13: 81 | F13: 51 | G13: 30 | H13: 41 | I13: 17 | J13: 24
A14: CAPACITACIÓN PROFESIONAL | B14: 31 | C14: 31 | D14: 0 | E14: 31 | F14: 31 | G14: 0 | H14: 0 | I14: 0 | J14: 0
A15: CAPACITACIÓN PROFESIONAL INICIAL | B15: 1333 | C15: 655 | D15: 678 | E15: 1043 | F15: 506 | G15: 537 | H15: 290 | I15: 149 | J15: 141
A16: CURSO BÁSICO | B16: 194 | C16: 54 | D16: 140 | E16: 194 | F16: 54 | G16: 140 | H16: 0 | I16: 0 | J16: 0
A17: CURSO BÁSICO ESPECIALIZACIÓN | B17: 216 | C17: 50 | D17: 166 | E17: 191 | F17: 50 | G17: 141 | H17: 25 | I17: 0 | J17: 25
A18: FORM. PROFES. EN ARTES Y ARTESANÍAS | B18: 532 | C18: 168 | D18: 364 | E18: 532 | F18: 168 | G18: 364 | H18: 0 | I18: 0 | J18: 0
A19: FORMACIÓN PROFESIONAL BÁSICA | B19: 431 | C19: 276 | D19: 155 | E19: 431 | F19: 276 | G19: 155 | H19: 0 | I19: 0 | J19: 0
A20: FORMACIÓN PROFESIONAL ESPECIALIZADA | B20: 83 | C20: 66 | D20: 17 | E20: 83 | F20: 66 | G20: 17 | H20: 0 | I20: 0 | J20: 0
A22: Fuente: CETP-UTU

Sheet Gráfico 2.10.1
A1: Ministerio de Educación y Cultura Dirección de Educación
A3: Gráfico 2.10.1
A32: Fuente: Área de Educación No Formal de la Dirección de Educación - MEC

Sheet Cuadro 2.10.5
A1: Ministerio de Educación y Cultura Dirección de Educación
A3: Cuadro 2.10.5
A4: ESTUDIANTES INGRESADOS Y MATRICULADOS EN CECAP POR SEXO SEGÚN GRANDES ÁREAS. (Todo el país, 2017).
A5: ÁREA GEOGRÁFICA | B5: TOTAL | C5: INGRESADOS | F5: MATRICULADOS
C6: Varón | D6: Mujer | E6: TOTAL | F6: Varón | G6: Mujer
A7: TOTAL | B7: =B8+B9 -> 1514 | C7: 827 | D7: 687 | E7: 2190 | F7: 1199 | G7: 991
A8: Montevideo | B8: =C8+D8 -> 449 | C8: 236 | D8: 213 | E8: =F8+G8 -> 495 | F8: 266 | G8: 229
A9: Resto del país | B9: =C9+D9 -> 1065 | C9: 591 | D9: 474 | E9: =F9+G9 -> 1695 | F9: 933 | G9: 762
A10: Fuente: Área de Educación No Formal de la Dirección de Educación - MEC

Sheet Cuadro 2.10.6
A1: Ministerio de Educación y Cultura Dirección de Educación
A3: Cuadro 2.10.6
A4: ESTUDIANTES MATRICULADOS DEL COCAP POR SEXO, SEGÚN TIPO DE CURSO. (Todo el país, 2017).
A5: TIPO DE CURSO | C5: TOTAL | D5: SEXO
D6: Varón | E6: Mujer
A7: TOTAL | C7: =C8+C9 -> 1022 | D7: =D8+D9 -> 956 | E7: =E8+E9 -> 66
A8: Cursos Abiertos | C8: =D8+E8 -> 918 | D8: 876 | E8: 42
A9: Cursos Cerrados | C9: =D9+E9 -> 104 | D9: 80 | E9: 24
A10: Fuente: COCAP

Sheet Cuadro 2.10.7
A1: Ministerio de Educación y Cultura Dirección de Educación
A3: Cuadro 2.10.7
A4: ESTUDIANTES MATRICULADOS EN COCAP POR SEXO, SEGÚN ÁREA DE CONOCIMIENTO. (Todo el país, 2017).
A6: ÁREA DE CONOCIMIENTO | D6: TOTAL | E6: SEXO
E7: Varón | F7: Mujer
A8: TOTAL | D8: 100 | E8: 100 | F8: 100
A9: Administración y Comercialización | D9: 29.2 | E9: 17.4 | F9: 85.7
A10: Agraria | D10: 2.1 | E10: 2 | F10: 2.7
A11: Construcción - Arquitectura | D11: 1 | E11: 1.1 | F11: 0.4
A12: Electrotecnia - Electrónica | D12: 31.6 | E12: 36.8 | F12: 6.6
A13: Hotelería y Turismo | D13: 1.4 | E13: 1.1 | F13: 2.7
A14: Informática | D14: 3.1 | E14: 3.8 | F14: 0
A15: Metal-Mecánica | D15: 27.9 | E15: 33.3 | F15: 1.9
A16: Salud, Seguridad e Higiene | D16: 3.7 | E16: 4.5 | F16: 0
A18: Fuente: COCAP
A19: Nota: Los datos son de los cursos Abiertos y Cerrados.

Sheet Cudro 2.10.8
A1: Ministerio de Educación y Cultura Dirección de Educación
A4: Cuadro 2.10.8
A5: FUNCIONARIOS PARTICIPANTES EN LOS CURSOS DE LA ENAP DR AQUILES LANZA, CANTIDAD DE CURSOS , HORAS, ORGANISMOS PARTICIPANTES Y TIPO DE CURSO. (Todo el país, 2017).
C6: FUNCIONARIOS PARTICIPANTES | D6: CANTIDAD DE CURSOS | E6: HORAS | F6: Organismos participantes | G6: Docentes | H6: Usuarios de Plataforma MOODLE
A7: TOTAL | C7: 11593 | D7: 75 | E7: 10102 | F7: 27 | G7: 95 | H7: 8369
A9: Fuente: ONSC, Escuela de Funcionarios Públicos Dr Aquiles Lanza

Sheet Cuadro 2.10.9
A1: Ministerio de Educación y Cultura Dirección de Educación
A3: Cuadro 2.10.9
A4: ESTUDIANTES MATRICULADOS E INGRESADOS EN CARRERAS NO TERCIARIAS EN UNIVERSIDADES E INSTITUTOS UNIVERSITARIOS. (Todo el país, 2017).
A5: UNIVERSIDADES E INSTITUTOS UNIVERSITARIOS | D5: INGRESADOS | G5: MATRICULADOS
C6: TOTAL | D6: SEXO | F6: TOTAL | G6: SEXO
D7: Varón | E7: Mujer | G7: Varón | H7: Mujer
A8: TOTAL | C8: =SUM(C9:C16) -> 6521 | D8: 2305 | E8: 2456 | F8: 8465 | G8: 3618 | H8: 3087
A9: Universidad ORT Uruguay | C9: =D9+E9 -> 847 | D9: 599 | E9: 248 | F9: =G9+H9 -> 2560 | G9: 1795 | H9: 765
A10: Universidad de la Empresa | C10: 139 | D10: 85 | E10: 54 | F10: 279 | G10: 163 | H10: 116
A11: UCUDAL* | C11: 2715 | D11: 954 | E11: 1666 | F11: 2715 | G11: 954 | H11: 1666
A12: UDELAR | C12: 471 | D12: 158 | E12: 313 | F12: 471 | G12: 158 | H12: 313
A13: IPES | C13: 1665 | D13: s/d | E13: s/d | F13: 1665 | G13: s/d | H13: s/d
A14: Instituto Metodista Universitario Crandon | C14: 0 | D14: 0 | E14: 0 | F14: 26 | G14: 0 | H14: 26
A15: Instituto Universitario Asociación Cristiana de Jóvenes | C15: 376 | D15: 338 | E15: 38 | F15: 441 | G15: 377 | H15: 64
A16: CALEN | C16: 308 | D16: 171 | E16: 137 | F16: 308 | G16: 171 | H16: 137
A17: Fuente: Oficinas productoras de las instituciones.
A18: * Dentro de los cursos de UCUDAL hay 95 estudiantes de los que no se cuenta con datos desagregados por sexo

Sheet CONTEXTO NACIONAL
B3: CONTEXTO NACIONAL
A7: Infografía 3.1 INFOGRAFÍA DE BECAS Y PROGRAMAS DE CONTEXTO NACIONAL (Todo el país, 2017)
A8: Cuadro 3.1.1 CANTIDAD DE BECAS MEC OTROGADAS POR NIVEL Y SEXO SEGÚN DEPARTAMENTO (Todo el país, 2017)
A9: Cuadro 3.1.2 CANTIDAD DE BECAS DE INCLUSIÓN SOCIOEDUCATIVA (BIS) (Todo el país, 2017)
A10: Cuadro 3.1.3 CANTIDAD DE BECAS OTORGADAS POR EL PROGRAMA COMPROMISO EDUCATIVO POR SEXO SEGÚN DEPARTAMENTO (Todo el país, 2017)
A11: Cuadro 3.1.4 CANTIDAD DE BENEFICIARIOS POR PROGRAMA RUMBO (Todo el país, 2017)
A12: Cuadro 3.1.5 CANTIDAD DE BECAS OTORGADAS POR FUNDACIÓN CHAMANGÁ POR AÑO SEGÚN DEPARTAMENTO (Todo el país, 2016 - 2017)
A13: Cuadro 3.1.6 CANTIDAD DE BECAS OTORGADAS POR EL CONSEJO DE FORMACIÓN EN EDUCACIÓN, POR TIPO (Todo el país, 2017)
A14: Cuadro 3.1.7 CANTIDAD DE BECAS OTORGADAS POR EL CONSEJO DE FORMACIÓN EN EDUCACIÓN, SEGÚN DEPARTAMENTO (Todo el país, 2017)
A15: Cuadro 3.1.8 EVOLUCIÓN DE LA CANTIDAD DE BECAS OTORGADAS POR EL FONDO DE SOLIDARIDAD SEGÚN AÑO (Todo el país, 2002-2017)
A16: Cuadro 3.1.9 CANTIDAD DE BECAS OTORGADAS POR BIENESTAR UNIVERSITARIO POR TIPO DE BECA Y ÁREA GEOGRÁFICA (Todo el país, 2017)
A17: Cuadro 3.1.10 CANTIDAD DE BECAS OTORGADAS POR BIENESTAR UNIVERSITARIO SEGÚN TIPO DE BECA (Todo el país, 2017)
A18: Cuadro 3.1.11 BECAS DEL PROGRAMA URUGUAY ESTUDIA POR MODALIDAD SEGÚN AÑO LECTIVO (Todo el país, 2009 - 2017)
A19: Cuadro 3.1.12 CANTIDAD DE BECAS OTORGADAS POR EL MEC PARA FORMACIÓN DE POSTGRADO, POR TIPO (Todo el país, 2017)
A20: Cuadro 3.1.13 CANTIDAD DE BECAS OTORGADAS POR LA ANII POR MONTO, SEXO Y REGIÓN SEGÚN TIPO DE BECA (Todo el país, 2017)
A21: Cuadro 3.1.14 CANTIDAD DE ALFABETIZADOS DIGITALMENTE POR SEXO SEGÚN DEPARTAMENTO Y CENTROS MEC (Todo el país, 2017)
A22: Cuadro 3.1.15 CANTIDAD DE BENEFICIARIOS DEL PROGRAMA JÓVENES EN RED SEGÚN SEXO, EDAD Y ÁREA GEOGRÁFICA (Todo el país, serie histórica 2012 - 2017)
A23: Cuadro 3.1.16 BENEFICIARIOS DEL PROGRAMA AULAS COMUNITARIAS SEGÚN SEXO, EDAD, ÁREA GEOGRÁFICA Y MODALIDAD (Todo el país, 2017)
A24: Cuadro 3.1.17 ESCUELAS, MAESTROS Y ESTUDIANTES ATENDIDOS POR EL PROGRAMA MAESTROS COMUNITARIOS SEGÚN AÑO LECTIVO (Todo el país, 2005 - 2017)
A25: Cuadro 3.1.18 ESTUDIANTES INSCRIPTOS, EN PROCESO, EGRESADOS Y DESVINCULADOS DEL PROCES SEGÚN ÁREA GOEGRÁFICA ( Todo el país, 2017)
A26: Cuadro 3.1.19 PROGRAMA FORTALECIMIENTO EDUCATIVO (Todo el país, 2015 - 2017)
A27: Cuadro 3.1.20 PROGRAMA PUENTE DE ACREDITACIÓN: PARTICIPANTES DE LOS TALLERES DE ORIENTACIÓN LABORAL POR ÁREA GEOGRÁFICA Y AÑO (Todo el país, 2015 - 2017)
A28: Cuadro 3.1.21 PROGRAMA PUENTE DE ACREDITACIÓN: TALLERES DE ORIENTACIÓN PARA LA INSERCIÓN SOCIAL SEGÚN AÑO (Todo el país, 2015-2017)
A29: Cuadro 3.1.22 PROGRAMA PUENTE DE ACREDITACIÓN: TALLERES PRIMERA EXPERIENCIA LABORAL POR AÑO SEGÚN SEXO (Todo el país, 2015-2017)
A30: Cuadro 3.1.23 CANTIDAD DE BENEFICIARIOS DEL PROGRAMA DIFICULTADES DE INSERCIÓN EN MEDIO EDUCATIVO - DIME, POR SEXO SEGÚN DEPARTAMENTO (Todo el país, 2017)
A31: Cuadro 3.1.24 BENEFICIARIOS Y CENTROS CON EQUIPO DE CEIBAL SEGÚN AÑO LECTIVO (Todo el país, 2007 - 2017)
A32: Cuadro 3.1.25 CANTIDAD DE DOCENTES Y ESTUDIANTES DEL PLAN CEIBAL SEGÚN TIPO DE INSTITUCIÓN (Todo el país, 2017)
A33: Cuadro 3.1.26 CANTIDAD DE CENTROS CON VIDEOCONFERENCIA POR SUBSISTEMA EDUCATIVO (Todo el país, 2017)
A34: Cuadro 3.1.27 PLATAFORMAS EN CEIBAL PARA MATEMÁTICAS E INGLÉS SEGÚN SUBSISTEMA (Todo el país, 2017)
A35: Cuadro 3.1.28 CANTIDAD DE CENTROS QUE PARTICIPARON EN EL PROGRAMA APRENDER TODOS (Todo el país, 2016)
A36: Cuadro 3.1.29 PARTICIPANTES DEL PROGRAMA YO ESTUDIO YO TRABAJO POR AÑO (Todo el país, 2016 - 2017)
A37: Cuadro 3.1.30 PROGRAMA FORMACIÓN PROFESIONAL BÁSICA COMUNITARIA (FPBC) SEGÚN AÑO (2015 - 2017)
A38: Cuadro 3.1.31 PROGRAMA LÍNEA DE APOYO A HOGARES RURALES SEGÚN AÑO (2015 - 2017)
A39: Cuadro 3.1.32 ESTUDIANTES, DOCENTES Y ESPACIOS DE CENTROS PROMOTORES DE DERECHOS SEGÚN AÑO (Todo el país, 2016 – 2017)
A40: Cuadro 3.1.33 PROGRAMA DE ATENCIÓN A MUJERES CON NIÑOS, NIÑAS Y ADOLESCENTES POR SEXO Y TRAMOS DE EDAD DE ASISTENTES (Todo el país, 2017)
A41: Cuadro 3.1.34 ESCUELAS, PROFESORES Y ESTUDIANTES ATENDIDOS POR EL PROGRAMA DE EDUCACIÓN FÍSICA ESCOLAR SEGÚN AÑO LECTIVO (Todo el país, 2005 - 2017)
A42: Cuadro 3.1.35 PROGRAMA GOL AL FUTURO - SECRETARÍA NACIONAL DE DEPORTES | K42: Cuadro 3.1.34 CANTIDAD DE BECAS OTORGADAS POR FUNDACIÓN CHAMANGÁ SEGÚN DEPARTAMENTO (Todo el país, año 2016)
A43: Cuadro 3.1.36 PELOTA AL MEDIO A LA ESPERANZA: CANTIDAD DE NIÑOS, NIÑAS Y ADOLESCENTES PARTICIPANTES POR BARRIO (Montevideo, 2017)
A44: Cuadro 3.2.1 ESTUDIANTES MATRICULADOS DE EDUCACIÓN INICIAL Y PRIMARIA PÚBLICA, POR NIVELES Y GRADOS SEGÚN DEPARTAMENTO (Todo el país, 2017)
A45: Cuadro 3.3.1 UNIDADES PENITENCIARIAS (Todo el país, 2017)
A46: Cuadro 3.3.2 CANTIDAD DE POBLACIÓN PRIVADA DE LIBERTAD ATENDIDA EN EDUCACION FORMAL POR NIVEL Y SEXO SEGÚN UNIDAD PENINTENCIARIA (Todo el país, 2017)
A47: Cuadro 3.3.3 CANTIDAD DE POBLACIÓN PRIVADA DE LIBERTAD ATENDIDA EN EDUCACIÓN NO FORMAL POR NIVEL Y SEXO SEGÚN UNIDAD PENITENCIARIA (Todo el país, 2017)
A48: Cuadro 3.3.4 CANTIDAD DE JÓVENES ATENDIDOS EN INISA POR SEXO Y EDAD (Todo el país, 2017)
A49: Cuadro 3.4.1 GASTO PÚBLICO EN EDUCACIÓN (millones de pesos constantes de 2017)
A50: Cuadro 3.4.2 GASTO DE ANEP SEGÚN COMPONENTE (millones de pesos constantes de 2017)
A52: Gráfico 3.1.1 BECAS OTORGADAS SEGÚN PROGRAMA POR AÑO LECTIVO ( Todo el país, 2005-2017)
A53: Gráfico 3.1.2 PORCENTAJE DE BECAS OTORGADAS POR EL FONDO DE SOLIDARIDAD SEGÚN GRANDES ÁREAS POR AÑO LECTIVO (Todo el país, 2011-2017)
A54: Gráfico 3.1.3 PORCENTAJE DE BECAS OTORGADAS POR EL FONDO DE SOLIDARIDAD SEGÚN SEXO POR AÑO LECTIVO (Todo el país, 2011-2017)
A55: Gráfico 3.1.4 BENEFICIARIOS CON EQUIPO CEIBAL POR CATEGORÍA Y AÑO LECTIVO (Todo el país, 2007-2017)
A56: Gráfico 3.2.1 CANTIDAD DE ESCUELAS ESPECIALES PÚBLICAS SEGÚN GRANDES ÁREAS Y AÑO (Todo el país, 1990 - 2017)
A57: Gráfico 3.2.2 EVOLUCIÓN DE LA CANTIDAD DE ESTABLECIMIENTOS PÚBLICOS DE EDUCACIÓN ESPECIAL, POR TIPO DE DISCAPACIDAD Y AÑO (Todo el país, 1990 - 2017)
A58: Gráfico 3.2.3 MATRICULA EN EDUCACIÓN PÚBLICA ESPECIAL SEGÚN GRANDES ÁREAS Y AÑO (Todo el país, 1990 - 2017)
A59: Gráfico 3.2.4 MATRICULA EN EDUCACIÓN ESPECIAL SEGÚN FORMA DE ADMINISTRACIÓN POR AÑO (Todo el país, 1990-2017)
A60: Gráfico 3.2.5 ESTUDIANTES MATRICULADOS EN EDUCACIÓN PRIMARIA PÚBLICA POR TIPO DE DISCAPACIDAD Y AÑO (Todo el país, 1990 - 2017)
A61: Gráfico 3.2.6 MATRÍCULA DE EDUCACIÓN ESPECIAL PÚBLICA POR EDADES SIMPLES SEGÚN SEXO (Todo el país, 2017)
A62: Gráfico 3.3.1 PORCENTAJE PROMEDIO DE LA POBLACIÓN BAJO LA ÓRBITA DEL INR (Todo el país, 2017)
A63: Gráfico 3.3.2 PORCENTAJE PROMEDIO DE POBLACIÓN PRIVADA DE LIBERTAD ATENDIDA EN EDUCACIÓN FORMAL SEGÚN NIVEL Y SEXO (Todo el país, 2017)
A64: Gráfico 3.3.3 PORCENTAJE PROMEDIO DE POBLACIÓN PRIVADA DE LIBERTAD ATENDIDA EN EDUCACIÓN NO FORMAL SEGÚN NIVEL Y SEXO (Todo el país, 2017)
A65: Gráfico 3.4.1 EVOLUCIÓN DEL GASTO PUBLICO EN EDUCACION Y DEL PIB EN MILLONES DE PESOS CONSTANTES 2017 (2004 - 2017)
A66: Gráfico 3.4.2 EVOLUCIÓN CONJUNTA DEL GASTO PÚBLICO EN EDUCACIÓN COMO PORCENTAJE DEL PIB Y DEL GASTO DEL GOBIERNO CENTRAL (2004-2017)
A67: Gráfico 3.4.3 DISTRIBUCIÓN DEL GASTO PÚBLICO EN EDUCACIÓN SEGÚN COMPONENTES EN 2017 (%)
A68: Gráfico 3.4.4 GASTO PÚBLICO EN EDUCACIÓN DE ANEP Y UDELAR COMO PORCENTAJE DEL PIB (2004-2017)
A69: Gráfico 3.4.5 DISTRIBUCIÓN DEL GASTO DE ANEP SEGÚN CONSEJOS DE ENSEÑANZA EN 2017
A70: Gráfico 3.4.6 EVOLUCIÓN DEL GASTO DE ANEP SEGÚN CONSEJOS DE ENSEÑANZA EN MILLONES DE PESOS CONSTANTES DE 2017 (2004-2017)
A71: Gráfico 3.4.7 EVOLUCIÓN DEL SALARIO DOCENTE DE LOS MAESTROS 20 HORAS EFECTIVO POR GRADO A VALORES CONSTANTES DE 2017 ( 2005-2017)
A72: Gráfico 3.4.8 EVOLUCIÓN DEL SALARIO DOCENTE DE LOS PROFESORES DE PRIMER CICLO 20 HORAS EFECTIVO POR GRADO A VALORES CONSTANTES DE 2017 (2005-2017)
A73: Gráfico 3.4.9 EVOLUCIÓN DEL SALARIO DOCENTE DE LOS PROFESORES DE SEGUNDO CICLO 20 HORAS EFECTIVO POR GRADO A VALORES CONSTANTES A 2017 (2005-2017)
A74: Gráfico 3.4.10 COSTO POR ALUMNO TOTAL Y POR CONSEJO DESCONCENTRADO DE LA ANEP SEGÚN AÑO LECTIVO (2004-2017)
A75: Gráfico 3.4.11 GASTO DE UDELAR SEGÚN UNIDADES EJECUTORAS EN 2017 (MILLONES DE PESOS)

Sheet Infografía 3.1
A1: Ministerio de Educación y Cultura Dirección de Educación
A3: Infografía 3.1
A57: Notas:
A58: (1) Aquí se incluyen aquellos programas que, entre sus objetivos, se constituyen como Educación no formal, brindan una rápida inserción al mercado laboral y/ o están transversalizados por su temática.
A59: (2) Para el relevamiento de los programas que se listan bajo este título, se consideró como fuente de datos el Informe ANEP 2016.

Sheet Cuadro 3.1.1
A1: Ministerio de Educación y Cultura Dirección de Educación
A11: Cuadro 3.1.1
A13: CANTIDAD DE BECAS MEC OTROGADAS POR NIVEL Y SEXO SEGÚN DEPARTAMENTO (Todo el país, 2017)
G14: NIVEL
A15: DEPARTAMENTO | B15: TOTAL | C15: SEXO | F15: CES | H15: CETP | J15: ESCUELAS RURALES | K15: AULAS
C16: MUJER | D16: VARÓN | E16: TRANS | F16: CB | G16: BACH | H16: FPB | I16: BACH
A17: TOTAL | B17: =B18+B19 -> 4296 | C17: 2414 | D17: 1879 | E17: 3 | F17: 2614 | G17: 331 | H17: 1008 | I17: 141 | J17: =J18+J19 -> 42 | K17: =K18+K19 -> 160
A18: MONTEVIDEO | B18: =C18+D18+E18 -> 979 | C18: 553 | D18: 426 | E18: 0 | F18: 604 | G18: 69 | H18: 170 | I18: 32 | J18: 0 | K18: 104
A19: RESTO DEL PAÍS | B19: =SUM(B20:B37) -> 3317 | C19: =SUM(C20:C37) -> 1861 | D19: =SUM(D20:D37) -> 1453 | E19: 3 | F19: 2010 | G19: 262 | H19: 838 | I19: 109 | J19: 42 | K19: =SUM(K20:K37) -> 56
A20: ARTIGAS | B20: =+C20+D20+E20 -> 271 | C20: 153 | D20: 118 | E20: 0 | F20: 156 | G20: 26 | H20: 77 | I20: 9 | J20: 3 | K20: 0
A21: CANELONES | B21: =+C21+D21+E21 -> 626 | C21: 367 | D21: 259 | E21: 0 | F21: 455 | G21: 36 | H21: 92 | I21: 24 | J21: 0 | K21: 19
A22: CERRO LARGO | B22: 201 | C22: 108 | D22: 93 | E22: 0 | F22: 89 | G22: 25 | H22: 65 | I22: 9 | J22: 13 | K22: 0
A23: COLONIA | B23: 58 | C23: 35 | D23: 23 | E23: 0 | F23: 21 | G23: 6 | H23: 20 | I23: 10 | J23: 0 | K23: 1
A24: DURAZNO | B24: 36 | C24: 23 | D24: 13 | E24: 0 | F24: 12 | G24: 2 | H24: 20 | I24: 2 | J24: 0 | K24: 0
A25: FLORES | B25: 16 | C25: 12 | D25: 4 | E25: 0 | F25: 5 | G25: 0 | H25: 10 | I25: 1 | J25: 0 | K25: 0
A26: FLORIDA | B26: 28 | C26: 15 | D26: 13 | E26: 0 | F26: 14 | G26: 1 | H26: 11 | I26: 0 | J26: 0 | K26: 2
A27: LAVALLEJA | B27: 87 | C27: 47 | D27: 40 | E27: 0 | F27: 53 | G27: 8 | H27: 24 | I27: 2 | J27: 0 | K27: 0
A28: MALDONADO | B28: 61 | C28: 30 | D28: 31 | E28: 0 | F28: 36 | G28: 7 | H28: 13 | I28: 4 | J28: 0 | K28: 1
A29: PAYSANDÚ | B29: 329 | C29: 175 | D29: 154 | E29: 0 | F29: 175 | G29: 22 | H29: 106 | I29: 9 | J29: 11 | K29: 6
A30: RÍO NEGRO | B30: 51 | C30: 29 | D30: 22 | E30: 0 | F30: 28 | G30: 5 | H30: 14 | I30: 0 | J30: 2 | K30: 2
A31: RIVERA | B31: 435 | C31: 238 | D31: 196 | E31: 1 | F31: 291 | G31: 17 | H31: 112 | I31: 9 | J31: 4 | K31: 2
A32: ROCHA | B32: 47 | C32: 19 | D32: 28 | E32: 0 | F32: 22 | G32: 2 | H32: 12 | I32: 3 | J32: 2 | K32: 6
A33: SALTO | B33: 484 | C33: 281 | D33: 202 | E33: 1 | F33: 301 | G33: 58 | H33: 112 | I33: 7 | J33: 0 | K33: 6
A34: SAN JOSÉ | B34: 101 | C34: 59 | D34: 42 | E34: 0 | F34: 43 | G34: 8 | H34: 36 | I34: 4 | J34: 1 | K34: 9
A35: SORIANO | B35: 81 | C35: 46 | D35: 35 | E35: 0 | F35: 40 | G35: 7 | H35: 25 | I35: 5 | J35: 4 | K35: 0
A36: TACUAREMBÓ | B36: 314 | C36: 174 | D36: 139 | E36: 1 | F36: 210 | G36: 27 | H36: 74 | I36: 2 | J36: 1 | K36: 0
A37: TREINTA Y TRES | B37: 91 | C37: 50 | D37: 41 | E37: 0 | F37: 59 | G37: 5 | H37: 15 | I37: 9 | J37: 1 | K37: 2
A39: Fuente: MEC.

Sheet Cuadro 3.1.2
A1: Ministerio de Educación y Cultura Dirección de Educación
A3: Cuadro 3.1.2
A4: CANTIDAD DE BECAS DE INCLUSIÓN SOCIOEDUCATIVA (BIS) (Todo el país, 2017)
B6: Becas
A7: Mujeres | B7: 525
A8: Varones | B8: 482
A9: TOTAL | B9: 1007
A10: Fuente: Secretaría Nacional de Cuidados, MIDES.

Sheet Cuadro 3.1.3
A1: Ministerio de Educación y Cultura Dirección de Educación
A16: Cuadro 3.1.3
A17: CANTIDAD DE BECAS OTORGADAS POR EL PROGRAMA COMPROMISO EDUCATIVO POR SEXO SEGÚN DEPARTAMENTO (Todo el país, 2017)
A19: DEPARTAMENTO | C19: SEXO
B20: TOTAL
C21: MUJER | D21: VARÓN | E21: TRANS
A22: TOTAL | B22: =B23+B24 -> 6737 | C22: =C23+C24 -> 4336 | D22: =D23+D24 -> 2396 | E22: =E23+E24 -> 5
A23: MONTEVIDEO | B23: =+C23+D23+E23 -> 1291 | C23: 896 | D23: 395 | E23: 0
A24: RESTO DEL PAÍS | B24: =C24+D24+E24 -> 5446 | C24: =SUM(C25:C42) -> 3440 | D24: =SUM(D25:D42) -> 2001 | E24: =SUM(E25:E42) -> 5
A25: ARTIGAS | B25: 657 | C25: 413 | D25: 243 | E25: 1
A26: CANELONES | B26: 996 | C26: 653 | D26: 342 | E26: 1
A27: CERRO LARGO | B27: 207 | C27: 125 | D27: 82 | E27: 0
A28: COLONIA | B28: 55 | C28: 34 | D28: 21 | E28: 0
A29: DURAZNO | B29: 37 | C29: 30 | D29: 7 | E29: 0
A30: FLORES | B30: 58 | C30: 38 | D30: 20 | E30: 0
A31: FLORIDA | B31: 88 | C31: 62 | D31: 26 | E31: 0
A32: LAVALLEJA | B32: 29 | C32: 19 | D32: 10 | E32: 0
A33: MALDONADO | B33: 111 | C33: 60 | D33: 51 | E33: 0
A34: PAYSANDÚ | B34: 797 | C34: 526 | D34: 271 | E34: 0
A35: RÍO NEGRO | B35: 124 | C35: 67 | D35: 56 | E35: 1
A36: RIVERA | B36: 638 | C36: 413 | D36: 225 | E36: 0
A37: ROCHA | B37: 112 | C37: 70 | D37: 42 | E37: 0
A38: SALTO | B38: 672 | C38: 410 | D38: 261 | E38: 1
A39: SAN JOSÉ | B39: 163 | C39: 99 | D39: 64 | E39: 0
A40: SORIANO | B40: 127 | C40: 83 | D40: 44 | E40: 0
A41: TACUAREMBÓ | B41: 478 | C41: 284 | D41: 194 | E41: 0
A42: TREINTA Y TRES | B42: 97 | C42: 54 | D42: 42 | E42: 1
A44: Fuente: Oficinas de Becas, MEC.

Sheet Cuadro 3.1.4
A1: Ministerio de Educación y Cultura Dirección de Educación
A4: Cuadro 3.1.4
A5: CANTIDAD DE BENEFICIARIOS POR PROGRAMA RUMBO (Todo el país, 2017)
A7: Departamento | B7: ESPACIOS | C7: MATRÍCULA
A8: Total | B8: =SUM(B9:B23) -> 42 | C8: =SUM(C9:C23) -> 1171
A9: Montevideo | B9: 12 | C9: 327
A10: Artigas | B10: 2 | C10: 56
A11: Canelones | B11: 10 | C11: 284
A12: Cerro Largo | B12: 2 | C12: 60
A13: Colonia | B13: 1 | C13: 27
A14: Florida | B14: 1 | C14: 32
A15: Lavalleja | B15: 1 | C15: 27
A16: Maldonado | B16: 2 | C16: 53
A17: Paysandú | B17: 3 | C17: 73
A18: Rivera | B18: 1 | C18: 29
A19: Rocha | B19: 1 | C19: 28
A20: Salto | B20: 1 | C20: 31
A21: San José | B21: 2 | C21: 57
A22: Soriano | B22: 2 | C22: 57
A23: Tacuarembó | B23: 1 | C23: 30
A24: Funte: CETP -UTU.

Sheet Cuadro 3.1.5
A1: Ministerio de Educación y Cultura Dirección de Educación
A3: Cuadro 3.1.5
A4: CANTIDAD DE BECAS OTORGADAS POR FUNDACIÓN CHAMANGÁ POR AÑO SEGÚN DEPARTAMENTO (Todo el país, 2016 - 2017)
B6: 2016 | C6: 2017
A7: Artigas | B7: 2 | C7: 4
A8: Canelones | B8: 2 | C8: 7
A9: Cerro Largo | B9: 1 | C9: 3
A10: Colonia | B10: 1 | C10: 2
A11: Florida | B11: 1 | C11: 0
A12: Lavalleja | B12: 2 | C12: 0
A13: Maldonado | B13: 0 | C13: 1
A14: Montevideo | B14: 3 | C14: 0
A15: Paysandú | B15: 2 | C15: 3
A16: Río Negro | B16: 1 | C16: 1
A17: Rivera | B17: 1 | C17: 0
A18: Salto | B18: 1 | C18: 0
A19: Soriano | B19: 3 | C19: 0
A20: San José | B20: 1 | C20: 0
A21: Tacuarembó | B21: 1 | C21: 2
A22: TOTAL | B22: =SUM(B7:B21) -> 22 | C22: =SUM(C7:C21) -> 23
A24: Fuente: Fundación Chamangá.

Sheet Cuadro 3.1.6
A1: Ministerio de Educación y Cultura Dirección de Educación
A3: Cuadro 3.1.6
A4: CANTIDAD DE BECAS OTORGADAS POR EL CONSEJO DE FORMACIÓN EN EDUCACIÓN, POR TIPO (Todo el país, 2017)
A5: BECA - Asistencia Economica. CFE | B5: BECAS - JULIO CASTRO | C5: BECAS - CERP | F5: TOTAL
C6: Completa | D6: Residencia | E6: Transporte/ Alimentación
A7: 465 | B7: 949 | C7: 509 | D7: 15 | E7: 259 | F7: 2197
A9: Fuente: Consejo de Formación Docente.

Sheet Cuadro 3.1.7
A1: Ministerio de Educación y Cultura Dirección de Educación
A3: Cuadro 3.1.7
A4: CANTIDAD DE BECAS OTORGADAS POR EL CONSEJO DE FORMACIÓN EN EDUCACIÓN, SEGÚN DEPARTAMENTO (Todo el país, 2017)
A5: BECAS
A6: TOTAL | B6: =SUM(B7:B25) -> 2197
A7: Artigas | B7: 70
A8: Canelones | B8: 241
A9: Cerro Largo | B9: 149
A10: Colonia | B10: 243
A11: Durazano | B11: 27
A12: Flores | B12: 24
A13: Florida | B13: 181
A14: Lavalleja | B14: 41
A15: Maldonado | B15: 109
A16: Montevideo | B16: 188
A17: Paysandú | B17: 108
A18: Río Negro | B18: 14
A19: Rivera | B19: 277
A20: Rocha | B20: 15
A21: Salto | B21: 214
A22: San José | B22: 24
A23: Soriano | B23: 47
A24: Tacuarembó | B24: 116
A25: Treinta y Tres | B25: 109
A26: Fuente: Consejo de Formación En Educación.

Sheet Cuadro 3.1.8
A1: Ministerio de Educación y Cultura Dirección de Educación
A12: Cuadro 3.1.8
A13: EVOLUCIÓN DE LA CANTIDAD DE BECAS OTORGADAS POR EL FONDO DE SOLIDARIDAD SEGÚN AÑO (Todo el país, 2002-2017)
A15: AÑO | B15: BECAS OTORGADAS | C15: SOLICITUDES | D15: RELACIÓN
A16: 2002 | B16: 3933 | C16: 7036 | D16: 56
A17: 2003 | B17: 3895 | C17: 6375 | D17: 61
A18: 2004 | B18: 3694 | C18: 5620 | D18: 66
A19: 2005 | B19: 3777 | C19: 5511 | D19: 69
A20: 2006 | B20: 4099 | C20: 5688 | D20: 72
A21: 2007 | B21: 4728 | C21: 6372 | D21: 74
A22: 2008 | B22: 5728 | C22: 7233 | D22: 80
A23: 2009 | B23: 6498 | C23: 9943 | D23: 65
A24: 2010 | B24: 5860 | C24: 8492 | D24: 69
A25: 2011 | B25: 6067 | C25: 7944 | D25: 76
A26: 2012 | B26: 6677 | C26: 8711 | D26: 77
A27: 2013 | B27: 6890 | C27: 9199 | D27: 75
A28: 2014 | B28: 7455 | C28: 10114 | D28: 74
A29: 2015 | B29: 7895 | C29: 10596 | D29: 75
A30: 2016 | B30: 7942 | C30: 11154 | D30: 71
A31: 2017 | B31: 8238 | C31: 14127 | D31: 58
A32: Fuente: Fondo de solidaridad.

Sheet Cuadro 3.1.9
A1: Ministerio de Educación y Cultura Dirección de Educación
A3: Cuadro 3.1.9
A4: CANTIDAD DE BECAS OTORGADAS POR BIENESTAR UNIVERSITARIO POR TIPO DE BECA Y ÁREA GEOGRÁFICA (Todo el país, 2017)
A5: ÁREA GEOGRÁFICA | B5: TOTAL | C5: Apoyo Económico | D5: MVOTMA | E5: Alojamiento | F5: Alimentación/Comedor | G5: Bonificación en Pasajes
A7: Montevideo | B7: =SUM(C7:G7) -> 316 | C7: 85 | D7: 7 | E7: 3 | F7: 200 | G7: 21
A8: Resto del País | B8: =SUM(C8:G8) -> 4009 | C8: 211 | D8: 139 | E8: 93 | F8: 2032 | G8: 1534
A9: TOTAL | B9: =B7+B8 -> 4325 | C9: =C7+C8 -> 296 | D9: =D7+D8 -> 146 | E9: =E7+E8 -> 96 | F9: 2232 | G9: =G7+G8 -> 1555
A10: Fuente: Bienestar Universitario.

Sheet Cuadro 3.1.10
A1: Ministerio de Educación y Cultura Dirección de Educación
A3: Cuadro 3.1.10
A4: CANTIDAD DE BECAS OTORGADAS POR BIENESTAR UNIVERSITARIO SEGÚN TIPO DE BECA (Todo el país, 2017)
B6: BECAS
A7: Servicio de comedor | B7: 2232
A8: Bonificación en Pasajes al interior | B8: 1555
A9: Apoyo económico | B9: 296
A10: MVOTMA | B10: 146
A11: Alojamiento | B11: 96
A12: TOTAL | B12: =SUM(B7:B11) -> 4325
A13: Fuente: Bienestar Universitario.

Sheet Cuadro 3.1.11
A1: Ministerio de Educación y Cultura Dirección de Educación
A4: Cuadro 3.1.11
A5: BECAS DEL PROGRAMA URUGUAY ESTUDIA POR MODALIDAD SEGÚN AÑO LECTIVO (Todo el país, 2009 - 2017)
A6: AÑO | B6: TOTAL | C6: EP | D6: EMB | F6: Cursos | G6: Magisterio y Profesorado | H6: Tutorias culminación EMS | I6: Cantidad de grupos
D7: CES | E7: CETP | F7: PUE-COCAP | I7: CES Tutoreado
A8: 2009 | B8: 533 | C8: s/d | D8: s/d | E8: 80 | F8: n/c | G8: 139 | H8: 314 | I8: n/c
A9: 2010 | B9: 2074 | C9: 937 | D9: s/d | E9: 963 | F9: n/c | G9: s/d | H9: 154 | I9: 20
A10: 2011 | B10: 2701 | C10: 1026 | D10: s/d | E10: 1406 | F10: n/c | G10: s/d | H10: 248 | I10: 21
A11: 2012 | B11: 3450 | C11: 1000 | D11: 654 | E11: 1000 | F11: 29 | G11: 600 | H11: 124 | I11: 43
A12: 2013 | B12: 4966 | C12: 899 | D12: 370 | E12: 3000 | F12: 63 | G12: 373 | H12: 261 | I12: s/d
A13: 2014 | B13: 5025 | C13: 907 | D13: 552 | E13: 3235 | F13: 31 | G13: 50 | H13: 250 | I13: sd
A14: 2015 | B14: 5097 | C14: 907 | D14: 1500 | E14: 2500 | F14: 0 | G14: 38 | H14: 220 | I14: 62
A15: 2016 | B15: s/d | C15: s/d | D15: s/d | E15: s/d | F15: s/d | G15: s/d | H15: s/d | I15: s/d
A16: 2017 | B16: 6.248 | C16: 864 | D16: 1388 | E16: 3877 | F16: 0 | G16: 69 | H16: 50 | I16: 103
A17: Fuente: Educación No Formal, MEC.

Sheet Cuadro 3.1.12
A1: Ministerio de Educación y Cultura Dirección de Educación
A4: Cuadro 3.1.12
A13: CANTIDAD DE BECAS OTORGADAS POR EL MEC PARA FORMACIÓN DE POSTGRADO, POR TIPO (Todo el país, 2017)
B14: DOCTORADOS | C14: MAESTRÍAS | D14: DIPLOMAS/ ESPECIALIZACIÓN | E14: AFRO
A16: BECAS | B16: 3 | C16: 7 | D16: 1 | E16: 3
A18: Fuente: Oficina de Becas, MEC.

Sheet Cuadro 3.1.13
A1: Ministerio de Educación y Cultura Dirección de Educación
A3: Cuadro 3.1.13
A4: CANTIDAD DE BECAS OTORGADAS POR LA ANII POR MONTO, SEXO Y REGIÓN SEGÚN TIPO DE BECA (Todo el país, 2017)
B6: TOTAL | C6: Monto comprometido (U$S) | D6: SEXO | F6: Área Geográfica
A7: TIPO DE BECA | D7: Varón | E7: Mujer | F7: Montevideo | G7: Otra
A8: Movilidad Cooperación | B8: 11 | C8: 57044 | D8: 8 | E8: 3 | F8: 10 | G8: 1
A9: Movilidad Capacitación | B9: 21 | C9: 180560 | D9: 8 | E9: 13 | F9: 21 | G9: 0
A10: TOTAL | B10: =B8+B9 -> 32 | C10: 237604 | D10: 16 | E10: 16 | F10: 31 | G10: 1
A11: Fuente: ANII.

Sheet Cuadro 3.1.14
A1: Ministerio de Educación y Cultura Dirección de Educación
A3: Cuadro 3.1.14
A4: CANTIDAD DE ALFABETIZADOS DIGITALMENTE POR SEXO SEGÚN DEPARTAMENTO Y CENTROS MEC (Todo el país, 2017)
C5: SEXO
B6: ALFABETIZADOS | C6: MUJER | D6: VARÓN | E6: SIN DATO | F6: Cantidad de Centros MEC
A7: TOTAL | B7: =SUM(B8:B9) -> 6832 | C7: =SUM(C8:C9) -> 4613 | D7: =SUM(D8:D9) -> 2209 | E7: =SUM(E8:E9) -> 10 | F7: =SUM(F8:F9) -> 124
A8: Montevideo | B8: =C8+D8 -> 20 | C8: 15 | D8: 5 | E8: 0 | F8: 3
A9: Resto del País | B9: =SUM( B10:B27) -> 6812 | C9: =SUM( C10:C27) -> 4598 | D9: =SUM( D10:D27) -> 2204 | E9: =SUM( E10:E27) -> 10 | F9: =SUM( F10:F27) -> 121
A10: Artigas | B10: =+C10+D10+E10 -> 693 | C10: 472 | D10: 221 | E10: 0 | F10: 9
A11: Canelones | B11: =+C11+D11+E11 -> 859 | C11: 596 | D11: 263 | E11: 0 | F11: 11
A12: Cerro Largo | B12: 165 | C12: 114 | D12: 51 | E12: 0 | F12: 6
A13: Colonia | B13: 177 | C13: 154 | D13: 23 | E13: 0 | F13: 8
A14: Durazno | B14: 156 | C14: 100 | D14: 56 | E14: 0 | F14: 6
A15: Flores | B15: 164 | C15: 123 | D15: 41 | E15: 0 | F15: 6
A16: Florida | B16: 1240 | C16: 785 | D16: 454 | E16: 1 | F16: 10
A17: Lavalleja | B17: 217 | C17: 143 | D17: 72 | E17: 2 | F17: 4
A18: Maldonado | B18: 497 | C18: 295 | D18: 201 | E18: 1 | F18: 6
A19: Paysandú | B19: 51 | C19: 33 | D19: 18 | E19: 0 | F19: 9
A20: Río Negro | B20: 95 | C20: 72 | D20: 22 | E20: 1 | F20: 6
A21: Rivera | B21: 173 | C21: 104 | D21: 69 | E21: 0 | F21: 5
A22: Rocha | B22: 300 | C22: 227 | D22: 73 | E22: 0 | F22: 9
A23: Salto | B23: 1130 | C23: 769 | D23: 361 | E23: 0 | F23: 8
A24: San José | B24: 282 | C24: 211 | D24: 69 | E24: 2 | F24: 6
A25: Soriano | B25: 222 | C25: 124 | D25: 97 | E25: 1 | F25: 4
A26: Tacuarembó | B26: 276 | C26: 193 | D26: 83 | E26: 0 | F26: 2
A27: Treinta y Tres | B27: 115 | C27: 83 | D27: 30 | E27: 2 | F27: 6
A28: Fuente: Centros MEC.

Sheet Cuadro 3.1.15
A1: Ministerio de Educación y Cultura Dirección de Educación
A4: Cuadro 3.1.15
A5: CANTIDAD DE BENEFICIARIOS DEL PROGRAMA JÓVENES EN RED SEGÚN SEXO, EDAD Y ÁREA GEOGRÁFICA (Todo el país, serie histórica 2012 - 2017)
A7: SEXO
A8: Varón | B8: 3528
A9: Mujer | B9: 4290
A10: TOTAL | B10: =B8+B9 -> 7818
A11: EDAD
A12: Menos de 14 años | B12: 225
A13: De 14 a 16 años | B13: 1571
A14: De 17 a 19 años | B14: 3447
A15: De 20 a 22 años | B15: 1704
A16: De 23 a 24 años | B16: 614
A17: Más de 24 años | B17: 257
A18: TOTAL | B18: =SUM(B12:B17) -> 7818
A19: ÁREAS GEOGRÁFICAS
A20: Montevideo | B20: 3231
A21: Resto del país | B21: 4587
A22: TOTAL | B22: =B20+B21 -> 7818
A23: Fuente: Monitoreo-MIDES
A24: Nota: Se trata de la cantidad de participantes a nivel histórico a diciembre 2017

Sheet Cuadro 3.1.16
A1: Ministerio de Educación y Cultura Dirección de Educación
A3: Cuadro 3.1.16
A4: BENEFICIARIOS DEL PROGRAMA AULAS COMUNITARIAS SEGÚN SEXO, EDAD, ÁREA GEOGRÁFICA Y MODALIDAD (Todo el país, 2017)
A6: SEXO
A7: Varón | B7: 790
A8: Mujer | B8: 572
A9: TOTAL | B9: =B7+B8 -> 1362
A10: EDAD
A11: 12 a 13 años | B11: 96
A12: 14 a 15 años | B12: 656
A13: 16 a 17 años | B13: 525
A14: 18 y más años | B14: 85
A15: TOTAL | B15: =SUM(B11:B14) -> 1362
A16: ÁREAS GEOGRÁFICAS
A17: Montevideo | B17: 1008
A18: Resto del país | B18: 354
A19: TOTAL | B19: =B17+B18 -> 1362
A20: MODALIDAD
A21: Modalidad A | B21: 596
A22: Modalidad B | B22: 325
A23: Modalidad C | B23: 441
A24: TOTAL | B24: =B21+B22+B23 -> 1362
A25: Fuente: Monitorio-DINEM, MIDES.

Sheet Cuadro 3.1.17
A1: Ministerio de Educación y Cultura Dirección de Educación
A3: Cuadro 3.1.17
A4: ESCUELAS, MAESTROS Y ESTUDIANTES ATENDIDOS POR EL PROGRAMA MAESTROS COMUNITARIOS SEGÚN AÑO LECTIVO (Todo el país, 2005 - 2017)
A5: AÑO LECTIVO | B5: ESCUELAS | F5: Maestros comunitarios | G5: Estudiantes atendidos
B6: Total | C6: Montevideo | D6: Resto del país | E6: Sin dato
A7: 2005 | B7: 255 | C7: 97 | D7: 158 | E7: 0 | F7: 437 | G7: 9292
A8: 2006 | B8: 252 | C8: 95 | D8: 157 | E8: 0 | F8: 433 | G8: 14884
A9: 2007 | B9: 334 | C9: 101 | D9: 233 | E9: 0 | F9: 553 | G9: 18163
A10: 2008 | B10: 334 | C10: 100 | D10: 234 | E10: 0 | F10: 533 | G10: 16802
A11: 2009 | B11: 337 | C11: 101 | D11: 236 | E11: 0 | F11: 553 | G11: 16166
A12: 2010 | B12: 337 | C12: 101 | D12: 236 | E12: sd | F12: 553 | G12: 16749
A13: 2011 | B13: 342 | C13: 104 | D13: 238 | E13: sd | F13: 554 | G13: 15680
A14: 2012 | B14: 327 | C14: 101 | D14: 226 | E14: sd | F14: 539 | G14: 15608
A15: 2013 | B15: 326 | C15: 101 | D15: 225 | E15: 0 | F15: 539 | G15: 16709
A16: 2014 | B16: 318 | C16: 96 | D16: 208 | E16: 14 | F16: 539 | G16: 16758
A17: 2015 | B17: 318 | C17: sd | D17: sd | E17: sd | F17: 541 | G17: 14875
A18: 2016 | B18: 323 | C18: 99 | D18: 224 | E18: 0 | F18: 546 | G18: 14534
A19: 2017 | B19: 327 | C19: 103 | D19: 224 | E19: 0 | F19: 533 | G19: 14352
A21: Fuente: CEIP-MIDES.

Sheet Cuadro 3.1.18
A1: Ministerio de Educación y Cultura Dirección de Educación
A3: Cuadro 3.1.18
A4: ESTUDIANTES INSCRIPTOS, EN PROCESO, EGRESADOS Y DESVINCULADOS DEL PROCES SEGÚN ÁREA GOEGRÁFICA ( Todo el país, 2017)
A5: Área geográfica | B5: Inscriptos | C5: Estudiantes en proceso | D5: Egresados en un ciclo | E5: Desvinculados
A6: Montevideo | B6: 1119 | C6: 978 | D6: 260 | E6: 141
A7: Resto del País | B7: 387 | C7: 326 | D7: 104 | E7: 61
A8: TOTAL | B8: 1506 | C8: 1304 | D8: 364 | E8: 202
A10: Fuente: PROCES, ANEP.

Sheet Cuadro 3.1.19
A1: Ministerio de Educación y Cultura Dirección de Educación
A3: Cuadro 3.1.19
A4: PROGRAMA FORTALECIMIENTO EDUCATIVO (Todo el país, 2015 - 2017)
A5: Año | B5: Cantidad de Participantes | C5: Cantidad de Espacios
A6: 2015 | B6: 360 | C6: 31
A7: 2016 | B7: 372 | C7: 31
A8: 2017 | B8: 442 | C8: 34
A10: Fuente: Observatorio Social de Programas e Indicadores, MIDES.

Sheet Cuadro 3.1.20
A1: Ministerio de Educación y Cultura Dirección de Educación
A3: Cuadro 3.1.20
A4: PROGRAMA PUENTE DE ACREDITACIÓN: PARTICIPANTES DE LOS TALLERES DE ORIENTACIÓN LABORAL POR ÁREA GEOGRÁFICA Y AÑO (Todo el país, 2015 - 2017)
A5: Año | B5: MONTEVIDEO | C5: RESTO DEL PAÍS
A6: 2015 | B6: 455 | C6: 87
A7: 2016 | B7: 581 | C7: 211
A8: 2017 | B8: 489 | C8: 45
A10: Fuente: Observatorio Social de Programas e Indicadores, MIDES.

Sheet Cuadro 3.1.21
A1: Ministerio de Educación y Cultura Dirección de Educación
A3: Cuadro 3.1.21
A4: PROGRAMA PUENTE DE ACREDITACIÓN: TALLERES DE ORIENTACIÓN PARA LA INSERCIÓN SOCIAL SEGÚN AÑO (Todo el país, 2015-2017)
A5: Año | B5: CANTIDAD DE TALLERES | C5: PARTICIPANTES VARONES | D5: PARTICIPANTES MUJERES
A6: 2015 | B6: 6 | C6: 74 | D6: 1
A7: 2016 | B7: 6 | C7: 50 | D7: 7
A8: 2017 | B8: S/D | C8: 95 | D8: 21
A10: Fuente: Observatorio Social de Programas e Indicadores, MIDES.

Sheet Cuadro 3.1.22
A1: Ministerio de Educación y Cultura Dirección de Educación
A3: Cuadro 3.1.22
A4: PROGRAMA PUENTE DE ACREDITACIÓN: TALLERES PRIMERA EXPERIENCIA LABORAL POR AÑO SEGÚN SEXO (Todo el país, 2015-2017)
B5: TOTAL | C5: 2015 | D5: 2016 | E5: 2017
A6: MUJER | B6: 390 | C6: 101 | D6: 151 | E6: 138
A7: VARÓN | B7: 143 | C7: 43 | D7: 53 | E7: 47
A8: MUJER TRANS | B8: 2 | C8: 0 | D8: 1 | E8: 1
A9: VARÓN TRANS | B9: 0 | C9: 0 | D9: 0 | E9: 0
A10: TOTAL | B10: 535 | C10: 144 | D10: 205 | E10: 186
A11: Fuente: Observatorio Social de Programas e Indicadores, MIDES.

Sheet Cuadro 3.1.23
A1: Ministerio de Educación y Cultura Dirección de Educación
A10: Cuadro 3.1.23
A11: CANTIDAD DE BENEFICIARIOS DEL PROGRAMA DIFICULTADES DE INSERCIÓN EN MEDIO EDUCATIVO - DIME, POR SEXO SEGÚN DEPARTAMENTO (Todo el país, 2017)
A12: DEPARTAMENTO | B12: TOTAL | C12: SEXO
C13: Varón | D13: Mujer
B14: 539 | C14: 379 | D14: 160
A15: Montevideo | B15: 317 | C15: 230 | D15: 87
A16: Centro Hospitalario Pereira Rossell | B16: 150 | C16: 113 | D16: 37
A17: Cerro | B17: 167 | C17: 117 | D17: 50
A18: Canelones | B18: 222 | C18: 149 | D18: 73
A19: Salvador Allende (Barros Blancos) | B19: 114 | C19: 74 | D19: 40
A20: Nicolich | B20: 108 | C20: 75 | D20: 33
A21: Fuente: Dirección de Salud Mental, ASSE.

Sheet Cuadro 3.1.24
A1: Ministerio de Educación y Cultura Dirección de Educación
A5: Cuadro 3.1.24
A6: BENEFICIARIOS Y CENTROS CON EQUIPO DE CEIBAL SEGÚN AÑO LECTIVO (Todo el país, 2007 - 2017)
A8: AÑO LECTIVO | B8: TOTAL | C8: BENEFICIARIOS | E8: CENTROS CON EQUIPO CEIBAL
C9: Estudiantes | D9: Docentes
A10: 2007 | B10: 5266 | C10: 4964 | D10: 302 | E10: s/d
A11: 2008 | B11: 179505 | C11: 164711 | D11: 14794 | E11: s/d
A12: 2009 | B12: 350004 | C12: 327736 | D12: 22268 | E12: 1779
A13: 2010 | B13: 417445 | C13: 393521 | D13: 23924 | E13: 1882
A14: 2011 | B14: 503609 | C14: 476065 | D14: 27544 | E14: 2127
A15: 2012 | B15: 566552 | C15: 527312 | D15: 39240 | E15: 2392
A16: 2013 | B16: 607459 | C16: 559836 | D16: 47623 | E16: 2546
A17: 2014 | B17: 665145 | C17: 607757 | D17: 57388 | E17: 2805
A18: 2015 | B18: 707418 | C18: 656276 | D18: 51142 | E18: 2936
A19: 2016 | B19: 718702 | C19: 669498 | D19: 49204 | E19: 4769
A20: 2017 | B20: 765701 | C20: 714983 | D20: 50718 | E20: 3351
A21: Fuente: Plan Ceibal.

Sheet Cuadro 3.1.25
A1: Ministerio de Educación y Cultura Dirección de Educación
A3: Cuadro 3.1.25
A4: CANTIDAD DE DOCENTES Y ESTUDIANTES DEL PLAN CEIBAL SEGÚN TIPO DE INSTITUCIÓN (Todo el país, 2017)
A6: Tipo de Institución | B6: TOTAL | C6: Docentes | D6: Estudiantes
A7: Área Centro Ceibal | B7: 1 | C7: 0 | D7: 1
A8: Aulas Comunitarias | B8: 492 | C8: 0 | D8: 492
A9: Centro de Formación Docente Publico | B9: 24367 | C9: 863 | D9: 23504
A10: Dependencia administrativa | B10: 4 | C10: 2 | D10: 2
A11: Educación Técnico Profesional Privada | B11: 53 | C11: 0 | D11: 53
A12: Escuela Privada | B12: 628 | C12: 10 | D12: 618
A13: Escuela Pública | B13: 319807 | C13: 15935 | D13: 303872
A14: Escuela Pública Especial | B14: 6945 | C14: 551 | D14: 6394
A15: Inspección | B15: 5 | C15: 4 | D15: 1
A16: Jardín Público | B16: 41878 | C16: 1965 | D16: 39913
A17: Liceo Privado | B17: 62 | C17: 2 | D17: 60
A18: Liceo Público | B18: 261562 | C18: 19688 | D18: 241874
A19: Liceos Privados Gratuitos | B19: 1332 | C19: 144 | D19: 1188
A20: Satélite o Anexo | B20: 8667 | C20: 1475 | D20: 7192
A21: CETP | B21: 99898 | C21: 10079 | D21: 89819
A22: Total | B22: 765701 | C22: 50718 | D22: 714983
A24: Fuente: Plan Ceibal.
A25: Nota: A partir del 2016 se incorporan las Escuelas Públicas Especiales y los Liceos Privados Gratuitos.

Sheet Cuadro 3.1.26
A1: Ministerio de Educación y Cultura Dirección de Educación
A3: Cuadro 3.1.26
A4: CANTIDAD DE CENTROS CON VIDEOCONFERENCIA POR SUBSISTEMA EDUCATIVO (Todo el país, 2017)
A6: Subsitema | B6: Cantidad de centros
A8: CEIP | B8: 1033
A9: CETP | B9: 380
A10: CES | B10: 121
A11: TOTAL | B11: 1534
A12: Fuente: Plan Ceibal.

Sheet Cuadro 3.1.27
A1: Ministerio de Educación y Cultura Dirección de Educación
A3: Cuadro 3.1.27
A4: PLATAFORMAS EN CEIBAL PARA MATEMÁTICAS E INGLÉS SEGÚN SUBSISTEMA (Todo el país, 2017)
A6: Ceibal en Inglés
A7: SUBSISTEMA | B7: Estudiantes | C7: Grupos
A9: CEIP | B9: 74842 | C9: 3419
A10: CES/CETP | B10: 13520 | C10: 676
A11: TOTAL | B11: =B9+B10 -> 88362 | C11: =C9+C10 -> 4095
A12: Plataforma adaptativa de Matemáticas
A13: SUBSISTEMA | B13: Estudiantes | C13: Ejercicios**
A15: CEIP | B15: 107565 | C15: 21692595
A16: CES/CETP | B16: 45604 | C16: 6237094
A17: TOTAL | B17: =B15+B16 -> 153169 | C17: =SUM(C15:C16) -> 27929689
A18: Fuente: Plan Ceibal.
A19: Nota: *Cantidad de usuarios únicos registrados en 2016 por subsistema. ** Cantidad de ejercicios realizados por subsistema.

Sheet Cuadro 3.1.28
A1: Ministerio de Educación y Cultura Dirección de Educación
A3: Cuadro 3.1.28
A4: CANTIDAD DE CENTROS QUE PARTICIPARON EN EL PROGRAMA APRENDER TODOS (Todo el país, 2016)
A6: Subsistema | B6: Cantidad de centros
A8: CEIP | B8: 1006
A9: CES | B9: 282
A10: CETP | B10: 119
A11: CFE | B11: 23
A12: TOTAL | B12: =B8+B9+B10+B11 -> 1430
A13: Fuente: Plan Ceibal.
A14: Nota: Último dato disponible año 2016.

Sheet Cuadro 3.1.29
A1: Ministerio de Educación y Cultura Dirección de Educación
A3: Cuadro 3.1.29
A4: PARTICIPANTES DEL PROGRAMA YO ESTUDIO YO TRABAJO POR AÑO (Todo el país, 2016 - 2017)
A5: SEXO | B5: 2016 | C5: 2017
A6: Varón | B6: 260 | C6: 253
A7: Mujer | B7: 389 | C7: 508
A8: Trans | B8: 1 | C8: 3
A9: TOTAL | B9: 650 | C9: 764
A10: EDAD
A11: 16 años | B11: 163 | C11: 153
A12: 17 años | B12: 198 | C12: 222
A13: 18 años | B13: 143 | C13: 187
A14: 19 años | B14: 90 | C14: 116
A15: 20 años | B15: 52 | C15: 79
A16: 21 años | B16: 4 | C16: 7
A17: TOTAL | B17: 650 | C17: 764
A18: ÁREAS GEOGRÁFICAS
A19: Montevideo | B19: 307 | C19: 460
A20: Resto del País | B20: 343 | C20: 304
A21: TOTAL | B21: 650 | C21: 764
A22: NIVEL EDUCATIVO
A23: Bachillerato Liceo | B23: 304 | C23: 388
A24: Bachillerato UTU | B24: 133 | C24: 128
A25: Ciclo básico Liceo | B25: 52 | C25: 54
A26: Ciclo básico UTU | B26: 34 | C26: 48
A27: Educación no formal | B27: 13 | C27: 20
A28: Magisterio o Profesorado | B28: 7 | C28: 11
A29: Terciario no universitario | B29: 21 | C29: 7
A30: Universitario | B30: 86 | C30: 108
A31: TOTAL | B31: 650 | C31: 764
A32: AFRODESCENDENCIA
A33: No | B33: 609 | C33: 668
A34: Si | B34: 41 | C34: 96
A35: TOTAL | B35: 650 | C35: 764
A36: DISCAPACIDAD
A37: No | B37: 632 | C37: 739
A38: Si | B38: 18 | C38: 25
A39: TOTAL | B39: 650 | C39: 764
A40: Con hijos
A41: No | B41: 641 | C41: 751
A42: Si | B42: 9 | C42: 13
A43: TOTAL | B43: 650 | C43: 764
A44: Fuente: MTSS.
A45: Nota: Aquí se contempla jóvenes que aún están transitando la beca y que todavía no han completado los 9 meses de contratación (mínimo necesario para considerarse "tratado").

Sheet Cuadro 3.1.30
A1: Ministerio de Educación y Cultura Dirección de Educación
A3: Cuadro 3.1.30
A4: PROGRAMA FORMACIÓN PROFESIONAL BÁSICA COMUNITARIA (FPBC) SEGÚN AÑO (2015 - 2017)
A5: Año | B5: Cantidad de Participantes | C5: Cantidad de Espacios
A6: 2015 | B6: 699 | C6: 22
A7: 2016 | B7: 676 | C7: 21
A8: 2017 | B8: 657 | C8: 21
A10: Fuente: Observatorio Social de Programas e Indicadores, MIDES.
A11: Nota: Departamentos 2017:
A12: Artigas, Canelones, Colonia, Durazno, Lavalleja, Maldonado, Montevideo, Paysandú, Salto, Tacuarembó y Treinta y Tres.

Sheet Cuadro 3.1.31
A1: Ministerio de Educación y Cultura Dirección de Educación
A3: Cuadro 3.1.31
A4: PROGRAMA LÍNEA DE APOYO A HOGARES RURALES SEGÚN AÑO (2015 - 2017)
A5: Año | B5: Cantidad de Participantes | C5: Cantidad de Espacios
A6: 2015 | B6: 175 | C6: 7
A7: 2016 | B7: 133 | C7: 6
A8: 2017 | B8: 200 | C8: 9
A10: Fuente: Observatorio Social de Programas e Indicadores, MIDES.
A11: Nota: Departamentos 2017:
A12: Artigas, Cerro Largo, Rivera, Rocha, Salto y Tacuarembó.

Sheet Cuadro 3.1.32
A1: Ministerio de Educación y Cultura Dirección de Educación
A3: Cuadro 3.1.32
A4: ESTUDIANTES, DOCENTES Y ESPACIOS DE CENTROS PROMOTORES DE DERECHOS SEGÚN AÑO (Todo el país, 2016 – 2017)
A5: Año | B5: Cantidad de Estudiantes | C5: Cantidad de Docentes | D5: Cantidad de Centros Educativos
A6: 2016 | B6: 1800 | C6: 340 | D6: 17
A7: 2017 | B7: 2300 | C7: 560 | D7: 23
A9: Fuente: Observatorio Social de Programas e Indicadores, MIDES.

Sheet Cuadro 3.1.33
A1: Ministerio de Educación y Cultura Dirección de Educación
A3: Cuadro 3.1.33
A4: PROGRAMA DE ATENCIÓN A MUJERES CON NIÑOS, NIÑAS Y ADOLESCENTES POR SEXO Y TRAMOS DE EDAD DE ASISTENTES (Todo el país, 2017)
B5: Mujer | C5: Varón | D5: TOTAL
A6: 0 a 3 años | B6: 88 | C6: 77 | D6: =SUM(B6:C6) -> 165
A7: 4 a 5 años | B7: 38 | C7: 36 | D7: =SUM(B7:C7) -> 74
A8: 6 a 12 años | B8: 80 | C8: 93 | D8: 173
A9: 13 a 17 años | B9: 30 | C9: 28 | D9: 58
A10: 18 a 29 años | B10: 123 | C10: 5 | D10: 128
A11: 30 a 54 años | B11: 128 | C11: - | D11: 128
A12: 55 a 64 años | B12: 4 | C12: - | D12: 4
A13: 65 años y más | B13: 1 | C13: - | D13: 1
A14: TOTAL | B14: 492 | C14: 239 | D14: 731
A15: Fuente: Observatorio Social de Programas e Indicadores, MIDES.
A16: Nota: El organismo responsable por este Programa-Centro es el INAU.
A17: Es un programa de abordaje familiar en situaciones de extrema vulneración de
A18: derechos que condicionan la posibilidad de contar con un espacio de desarrollo
A19: familiar autónomo en mujeres con niños, niñas y adolescentes.
A20: Brinda atención directa y personalizada a las familias bajo la modalidad de centros 24 horas.

Sheet Cuadro 3.1.34
A1: Ministerio de Educación y Cultura Dirección de Educación
A3: Cuadro 3.1.34
A7: ESCUELAS, PROFESORES Y ESTUDIANTES ATENDIDOS POR EL PROGRAMA DE EDUCACIÓN FÍSICA ESCOLAR SEGÚN AÑO LECTIVO (Todo el país, 2005 - 2017)
A8: AÑO LECTIVO | B8: Escuelas | C8: Profesores | D8: Inspectores | E8: Directores | F8: Estudiantes atendidos
A9: 2005 | B9: 160 | C9: 157 | D9: s/d | E9: s/d | F9: 67462
A10: 2006 | B10: 248 | C10: 238 | D10: s/d | E10: s/d | F10: 86473
A11: 2007 | B11: 245 | C11: 248 | D11: s/d | E11: s/d | F11: 88023
A12: 2008 | B12: 605 | C12: 605 | D12: s/d | E12: s/d | F12: 213858
A13: 2009 | B13: 1004 | C13: 973 | D13: s/d | E13: s/d | F13: 325164
A14: 2010 | B14: 1016 | C14: 977 | D14: s/d | E14: s/d | F14: 308260
A15: 2011 | B15: 1016 | C15: 977 | D15: s/d | E15: s/d | F15: 306318
A16: 2012 | B16: 1016 | C16: 989 | D16: s/d | E16: s/d | F16: 306532
A17: 2013 | B17: 1097 | C17: 1097 | D17: s/d | E17: s/d | F17: 306542
A18: 2014 | B18: 1084 | C18: 1087 | D18: s/d | E18: s/d | F18: 298404
A19: 2015 | B19: 1090 | C19: 1096 | D19: 7 | E19: 37 | F19: 293513
A20: 2016 | B20: 1264 | C20: s/d | D20: s/d | E20: s/d | F20: 389629
A21: 2017 | B21: 1298 | C21: s/d | D21: s/d | E21: s/d | F21: 395921
A22: Fuente: CEIP, ANEP.

Sheet Cuadro 3.1.35
A1: Ministerio de Educación y Cultura Dirección de Educación
A3: Cuadro 3.1.35
A4: PROGRAMA GOL AL FUTURO - SECRETARÍA NACIONAL DE DEPORTES
A5: CANTIDAD DE JUGADORES DE LAS SUBDIVISIONES FORMATIVAS POR AÑO Y SEXO (Todo el país, 2016 - 2017)
B7: 2016 | C7: 2017
A8: Mujeres | B8: 171 | C8: 145
A9: Varones | B9: 3054 | C9: 3339
A10: TOTAL | B10: 3225 | C10: 3484
A12: JUGADORES DE LAS SUBDIVISIONES FORMATIVAS POR CONDICIÓN DE ESTUDIANTE Y SEXO (Todo el país, 2017)
B14: Estudian | C14: No estudian
A16: Mujeres | B16: 0.9793103448 | C16: 0.02068965517
A17: Varones | B17: 0.8538484576 | C17: 0.1461515424
A18: TOTAL | B18: 0.8590700344 | C18: 0.1409299656
A19: Fuente: Gol al futuro, Secretaría Nacional de Deportes.

Sheet Cuadro 3.1.36
A1: Ministerio de Educación y Cultura Dirección de Educación
A3: Cuadro 3.1.36
A4: PELOTA AL MEDIO A LA ESPERANZA: CANTIDAD DE NIÑOS, NIÑAS Y ADOLESCENTES PARTICIPANTES POR BARRIO (Montevideo, 2017)
B6: Cantidad Participantes
A8: Casavalle | B8: 292
A9: Bella Italia | B9: 115
A10: Malvin Norte | B10: 115
A11: Tres Ombúes | B11: 80
A12: Marconi | B12: 44
A13: Delta del Tigre | B13: 40
A14: Otro | B14: 70
A15: TOTAL | B15: =SUM(B8:B14) -> 756
A16: Fuente: Pelota al Medio a la Esperanza - Ministerio del Interior.
A17: Nota: La categoría Otro refiere a las actividades dentro del marco de la Liga Universitaria que agrupa jóvenes de diversas zonas de Montevideo.

Sheet Cuadro 3.2.1
A1: Ministerio de Educación y Cultura Dirección de Educación
A3: Cuadro 3.2.1
A4: ESTUDIANTES MATRICULADOS DE EDUCACIÓN INICIAL Y PRIMARIA PÚBLICA EN ESCUELAS DE ESCUELAS DE EDUCACIÓN ESPECIAL, POR NIVELES Y GRADOS SEGÚN DEPARTAMENTO (Todo el país, 2017)
A5: DEPARTAMENTO | B5: TOTAL | C5: Inicial | D5: Intervención Oportuna | E5: Preparatorio | F5: Sub total 1º a 6º | G5: 1º | H5: 2º | I5: 3º | J5: 4º | K5: 5º | L5: 6º | M5: AULAS DE RECURSO/ APOYO | N5: DISCAPACIDAD AUDITIVA | O5: DISCAPACIDAD VISUAL | P5: OCUPACIONAL | Q5: PREOCUPACIONAL | R5: RETOS MÚLTIPLES | S5: TGD
A6: TOTAL | B6: =SUM(B7:B8) -> 6191 | C6: =SUM(C7:C8) -> 148 | D6: =SUM(D7:D8) -> 17 | E6: 255 | F6: 4265 | G6: 590 | H6: 634 | I6: 744 | J6: 761 | K6: 721 | L6: 815 | M6: 38 | N6: 113 | O6: 9 | P6: 723 | Q6: 535 | R6: 60 | S6: 28
A7: MONTEVIDEO | B7: =SUM(C7:E7,G7:S7) -> 2555 | C7: 92 | D7: 6 | E7: 103 | F7: 1714 | G7: 241 | H7: 258 | I7: 296 | J7: 316 | K7: 282 | L7: 321 | M7: 0 | N7: 0 | O7: 0 | P7: 478 | Q7: 129 | R7: 33 | S7: 0
A8: RESTO DEL PAÍS | B8: =SUM(B9:B26) -> 3636 | C8: =SUM(C9:C26) -> 56 | D8: 11 | E8: 152 | F8: 2551 | G8: 349 | H8: 376 | I8: 448 | J8: 445 | K8: 439 | L8: 494 | M8: 38 | N8: 113 | O8: 9 | P8: 245 | Q8: 406 | R8: 27 | S8: 28
A9: Artigas | B9: =SUM(C9:E9,G9:S9) -> 175 | C9: 0 | D9: 0 | E9: 9 | F9: 121 | G9: 25 | H9: 19 | I9: 22 | J9: 16 | K9: 20 | L9: 19 | M9: 0 | N9: 9 | O9: 0 | P9: 0 | Q9: 34 | R9: 2 | S9: 0
A10: Canelones | B10: =SUM(C10:E10,G10:S10) -> 704 | C10: 20 | D10: 0 | E10: 26 | F10: 540 | G10: 79 | H10: 89 | I10: 82 | J10: 105 | K10: 91 | L10: 94 | M10: 16 | N10: 34 | O10: 0 | P10: 15 | Q10: 40 | R10: 7 | S10: 6
A11: Cerro Largo | B11: 215 | C11: 0 | D11: 0 | E11: 0 | F11: 156 | G11: 17 | H11: 22 | I11: 29 | J11: 32 | K11: 22 | L11: 34 | M11: 0 | N11: 9 | O11: 0 | P11: 0 | Q11: 50 | R11: 0 | S11: 0
A12: Colonia | B12: 204 | C12: 4 | D12: 0 | E12: 11 | F12: 141 | G12: 18 | H12: 22 | I12: 26 | J12: 23 | K12: 25 | L12: 27 | M12: 0 | N12: 4 | O12: 0 | P12: 20 | Q12: 24 | R12: 0 | S12: 0
A13: Durazno | B13: 133 | C13: 0 | D13: 0 | E13: 6 | F13: 83 | G13: 3 | H13: 14 | I13: 16 | J13: 19 | K13: 13 | L13: 18 | M13: 2 | N13: 4 | O13: 0 | P13: 0 | Q13: 38 | R13: 0 | S13: 0
A14: Flores | B14: 26 | C14: 0 | D14: 0 | E14: 0 | F14: 17 | G14: 1 | H14: 2 | I14: 1 | J14: 4 | K14: 4 | L14: 5 | M14: 0 | N14: 1 | O14: 0 | P14: 0 | Q14: 8 | R14: 0 | S14: 0
A15: Florida | B15: 140 | C15: 0 | D15: 0 | E15: 7 | F15: 97 | G15: 8 | H15: 15 | I15: 13 | J15: 11 | K15: 16 | L15: 34 | M15: 0 | N15: 7 | O15: 0 | P15: 27 | Q15: 2 | R15: 0 | S15: 0
A16: Lavalleja | B16: 141 | C16: 6 | D16: 0 | E16: 11 | F16: 74 | G16: 12 | H16: 8 | I16: 18 | J16: 11 | K16: 12 | L16: 13 | M16: 0 | N16: 5 | O16: 2 | P16: 43 | Q16: 0 | R16: 0 | S16: 0
A17: Maldonado | B17: 303 | C17: 0 | D17: 11 | E17: 28 | F17: 226 | G17: 44 | H17: 41 | I17: 33 | J17: 36 | K17: 30 | L17: 42 | M17: 0 | N17: 0 | O17: 0 | P17: 5 | Q17: 10 | R17: 11 | S17: 12
A18: Paysandú | B18: 177 | C18: 15 | D18: 0 | E18: 10 | F18: 116 | G18: 17 | H18: 20 | I18: 21 | J18: 14 | K18: 24 | L18: 20 | M18: 0 | N18: 17 | O18: 0 | P18: 0 | Q18: 9 | R18: 0 | S18: 10
A19: Río Negro | B19: 153 | C19: 0 | D19: 0 | E19: 17 | F19: 117 | G19: 14 | H19: 18 | I19: 21 | J19: 17 | K19: 26 | L19: 21 | M19: 0 | N19: 4 | O19: 0 | P19: 0 | Q19: 15 | R19: 0 | S19: 0
A20: Rivera | B20: 121 | C20: 0 | D20: 0 | E20: 0 | F20: 103 | G20: 12 | H20: 10 | I20: 21 | J20: 20 | K20: 18 | L20: 22 | M20: 0 | N20: 0 | O20: 0 | P20: 0 | Q20: 18 | R20: 0 | S20: 0
A21: Rocha | B21: 228 | C21: 0 | D21: 0 | E21: 16 | F21: 156 | G21: 22 | H21: 23 | I21: 31 | J21: 23 | K21: 31 | L21: 26 | M21: 20 | N21: 4 | O21: 0 | P21: 0 | Q21: 25 | R21: 7 | S21: 0
A22: Salto | B22: 295 | C22: 8 | D22: 0 | E22: 0 | F22: 181 | G22: 30 | H22: 15 | I22: 34 | J22: 32 | K22: 27 | L22: 43 | M22: 0 | N22: 0 | O22: 0 | P22: 70 | Q22: 36 | R22: 0 | S22: 0
A23: San José | B23: 215 | C23: 0 | D23: 0 | E23: 5 | F23: 151 | G23: 15 | H23: 23 | I23: 35 | J23: 19 | K23: 40 | L23: 19 | M23: 0 | N23: 7 | O23: 0 | P23: 52 | Q23: 0 | R23: 0 | S23: 0
A24: Soriano | B24: 175 | C24: 3 | D24: 0 | E24: 6 | F24: 119 | G24: 16 | H24: 12 | I24: 21 | J24: 30 | K24: 16 | L24: 24 | M24: 0 | N24: 2 | O24: 3 | P24: 13 | Q24: 29 | R24: 0 | S24: 0
A25: Tacuarembó | B25: 177 | C25: 0 | D25: 0 | E25: 0 | F25: 112 | G25: 15 | H25: 17 | I25: 17 | J25: 23 | K25: 17 | L25: 23 | M25: 0 | N25: 2 | O25: 4 | P25: 0 | Q25: 59 | R25: 0 | S25: 0
A26: Treinta y Tres | B26: 54 | C26: 0 | D26: 0 | E26: 0 | F26: 41 | G26: 1 | H26: 6 | I26: 7 | J26: 10 | K26: 7 | L26: 10 | M26: 0 | N26: 4 | O26: 0 | P26: 0 | Q26: 9 | R26: 0 | S26: 0
A27: Fuente: CEIP, ANEP.

Sheet Cuadro 3.3.1
A1: Ministerio de Educación y Cultura Dirección de Educación
A3: Cuadro 3.3.1
A4: UNIDADES PENITENCIARIAS
A6: (Todo el país, 2017)
A7: Unidad 2 «Libertad Chacra» (San José)
A8: Unidad 3 «Libertad» (San José)
A9: Unidad 4 «Santiago Vázquez» (Montevideo)
A10: Unidad 5 «CMRF» (Montevideo)
A11: Unidad 6 Punta de Rieles» (Montevideo)
A12: Unidad 7 «Canelones» (Canelones)
A13: Unidad 9 «El Molino» (Montevideo)
A14: Unidad 10 «Juan Soler» (San José)
A15: Unidad 12 «Cerro Carancho» (Rivera)
A16: Unidad 13 «Las Rosas» (Maldonado)
A17: Unidad 14 «Piedra de los Indios» (Colonia)
A18: Unidad 15 «Conventos» (Cerro Largo)
A19: Unidad 16 (Paysandú)
A20: Unidad 17 «Campanero» (Lavalleja)
A21: Unidad 18 (Durazno)
A22: Unidad 19 «Las Cañitas» (Río Negro)
A23: Unidad 20 (Salto)
A24: Unidad 21 (Artigas)
A25: Unidad 22 (Rocha)
A26: Unidad 23 (Treinta y Tres)
A27: Unidad 24 «Pense» (Soriano)
A28: Unidad 26 (Tacuarembó)
A29: Unidad 29 (Florida )
A30: Fuente: Instituto Nacional de Rehabilitación.

Sheet Cuadro 3.3.2
A1: Ministerio de Educación y Cultura Dirección de Educación
A3: Cuadro 3.3.2
A4: CANTIDAD DE POBLACIÓN PRIVADA DE LIBERTAD ATENDIDA EN EDUCACION FORMAL POR NIVEL Y SEXO SEGÚN UNIDAD PENINTENCIARIA (Todo el país, 2017)
A5: UNIDADES PENITENCIARIAS | B5: TOTAL | C5: SEXO | E5: PRIMARIA | G5: TOTAL PRIMARIA | H5: SECUNDARIA | J5: TOTAL SECUNDARIA | K5: TERCIARIA | M5: TOTAL TERCIARIA | N5: UTU | P5: TOTAL UTU
C6: VARÓN | D6: MUJER | E6: VARÓN | F6: MUJER | H6: VARÓN | I6: MUJER | K6: VARÓN | L6: MUJER | N6: VARÓN | O6: MUJER
A7: TOTAL | B7: =SUM(B8:B30) -> 2723 | C7: 2358 | D7: 365 | E7: 434 | F7: 66 | G7: 500 | H7: 1808 | I7: 264 | J7: 2072 | K7: 21 | L7: 8 | M7: =K7+L7 -> 29 | N7: =SUM(N8:N30) -> 95 | O7: =SUM(O8:O30) -> 27 | P7: =N7+O7 -> 122
A8: Unidad 2 «Libertad Chacra» (San José) | B8: =C8+D8 -> 15 | C8: =E8+H8+K8+N8 -> 15 | D8: =F8+I8+L8+O8 -> 0 | E8: 0 | F8: 0 | G8: =E8+F8 -> 0 | H8: 15 | I8: 0 | J8: =H8+I8 -> 15 | K8: 0 | L8: 0 | M8: =K8+L8 -> 0 | N8: 0 | O8: 0 | P8: =N8+O8 -> 0
A9: Unidad 3 «Libertad» (San José) | B9: =C9+D9 -> 244 | C9: =E9+H9+K9+N9 -> 244 | D9: 0 | E9: 25 | F9: 0 | G9: =E9+F9 -> 25 | H9: 211 | I9: 0 | J9: =H9+I9 -> 211 | K9: 2 | L9: 0 | M9: =K9+L9 -> 2 | N9: 6 | O9: 0 | P9: =N9+O9 -> 6
A10: Unidad 4 «Santiago Vázquez» (Montevideo) | B10: 451 | C10: 451 | D10: 0 | E10: 126 | F10: 0 | G10: 126 | H10: 320 | I10: 0 | J10: 320 | K10: 5 | L10: 0 | M10: 5 | N10: 0 | O10: 0 | P10: 0
A11: Unidad 5 «CMRF» (Montevideo) | B11: 226 | C11: 0 | D11: 226 | E11: 0 | F11: 53 | G11: 53 | H11: 0 | I11: 160 | J11: 160 | K11: 0 | L11: 7 | M11: 7 | N11: 0 | O11: 6 | P11: 6
A12: Unidad 6 «Punta de Rieles» (Montevideo) | B12: 182 | C12: 182 | D12: 0 | E12: 26 | F12: 0 | G12: 26 | H12: 153 | I12: 0 | J12: 153 | K12: 0 | L12: 0 | M12: 0 | N12: 3 | O12: 0 | P12: 3
A13: Unidad 7 Canelones (Canelones) | B13: 244 | C13: 244 | D13: 0 | E13: 32 | F13: 0 | G13: 32 | H13: 200 | I13: 0 | J13: 200 | K13: 2 | L13: 0 | M13: 2 | N13: 10 | O13: 0 | P13: 10
A14: Unidad 9 «El Molin»o (Montevideo) | B14: 29 | C14: 5 | D14: 24 | E14: 0 | F14: 1 | G14: 1 | H14: 3 | I14: 13 | J14: 16 | K14: 0 | L14: 0 | M14: 0 | N14: 2 | O14: 10 | P14: 12
A15: Unidad 10 «Juan Soler» (San José) | B15: 70 | C15: 70 | D15: 0 | E15: 12 | F15: 0 | G15: 12 | H15: 53 | I15: 0 | J15: 53 | K15: 1 | L15: 0 | M15: 1 | N15: 4 | O15: 0 | P15: 4
A16: Unidad 12 «Cerro Carancho» (Rivera) | B16: 144 | C16: 127 | D16: 17 | E16: 30 | F16: 3 | G16: 33 | H16: 92 | I16: 14 | J16: 106 | K16: 0 | L16: 0 | M16: 0 | N16: 5 | O16: 0 | P16: 5
A17: Unidad 13 «Las Rosas» (Maldonado) | B17: 212 | C17: 192 | D17: 20 | E17: 33 | F17: 2 | G17: 35 | H17: 131 | I17: 15 | J17: =H17+I17 -> 146 | K17: 8 | L17: 1 | M17: 9 | N17: 20 | O17: 2 | P17: 22
A18: Unidad 14 «Piedra de los Indios» (Colonia) | B18: 29 | C18: 26 | D18: 3 | E18: 5 | F18: 1 | G18: 6 | H18: 19 | I18: 2 | J18: =H18+I18 -> 21 | K18: 1 | L18: 0 | M18: 1 | N18: 1 | O18: 0 | P18: 1
A19: Unidad 15 «Conventos» (Cerro Largo) | B19: 50 | C19: 45 | D19: 5 | E19: 13 | F19: 0 | G19: 13 | H19: 22 | I19: 5 | J19: 27 | K19: 0 | L19: 0 | M19: 0 | N19: 10 | O19: 0 | P19: 10
A20: Unidad 16 (Paysandú) | B20: 68 | C20: 64 | D20: 4 | E20: 16 | F20: 0 | G20: 16 | H20: 44 | I20: 3 | J20: 47 | K20: 0 | L20: 0 | M20: 0 | N20: 4 | O20: 1 | P20: 5
A21: Unidad 17 «Campanero» (Lavalleja) | B21: 104 | C21: 94 | D21: 10 | E21: 12 | F21: 0 | G21: 12 | H21: 77 | I21: 6 | J21: 83 | K21: 0 | L21: 0 | M21: 0 | N21: 5 | O21: 4 | P21: 9
A22: Unidad 18 (Durazno) | B22: 75 | C22: 71 | D22: 4 | E22: 9 | F22: 0 | G22: 9 | H22: 61 | I22: 4 | J22: 65 | K22: 1 | L22: 0 | M22: 1 | N22: 0 | O22: 0 | P22: 0
A23: Unidad 19 «Las Cañitas» (Río Negro) | B23: 71 | C23: 62 | D23: 9 | E23: 11 | F23: 1 | G23: 12 | H23: 51 | I23: 8 | J23: 59 | K23: 0 | L23: 0 | M23: 0 | N23: 0 | O23: 0 | P23: 0
A24: Unidad 20 (Salto) | B24: 102 | C24: 84 | D24: 18 | E24: 29 | F24: 3 | G24: 32 | H24: 50 | I24: 12 | J24: 62 | K24: 1 | L24: 0 | M24: 1 | N24: 4 | O24: 3 | P24: 7
A25: Unidad 21 (Artigas) | B25: 72 | C25: 67 | D25: 5 | E25: 21 | F25: 1 | G25: 22 | H25: 46 | I25: 4 | J25: 50 | K25: 0 | L25: 0 | M25: 0 | N25: 0 | O25: 0 | P25: 0
A26: Unidad 22 (Rocha) | B26: 61 | C26: 61 | D26: 0 | E26: 3 | F26: 0 | G26: 3 | H26: 56 | I26: 0 | J26: 56 | K26: 0 | L26: 0 | M26: 0 | N26: 2 | O26: 0 | P26: 2
A27: Unidad 23 (Treinta y Tres) | B27: 39 | C27: 37 | D27: 2 | E27: 3 | F27: 0 | G27: 3 | H27: 24 | I27: 2 | J27: 26 | K27: 0 | L27: 0 | M27: 0 | N27: 10 | O27: 0 | P27: 10
A28: Unidad 24 «Pense» (Soriano) | B28: 134 | C28: 119 | D28: 15 | E28: 15 | F28: 1 | G28: 16 | H28: 104 | I28: 14 | J28: 118 | K28: 0 | L28: 0 | M28: 0 | N28: 0 | O28: 0 | P28: 0
A29: Unidad 26 (Tacuarembó) | B29: 22 | C29: 20 | D29: 2 | E29: 5 | F29: 0 | G29: 5 | H29: 15 | I29: 2 | J29: 17 | K29: 0 | L29: 0 | M29: 0 | N29: 0 | O29: 0 | P29: 0
A30: Unidad 29 (Florida) | B30: 79 | C30: 78 | D30: 1 | E30: 8 | F30: 0 | G30: 8 | H30: 61 | I30: 0 | J30: 61 | K30: 0 | L30: 0 | M30: 0 | N30: 9 | O30: 1 | P30: 10
A31: Fuente: Instituto Nacional de Rehabilitación.

Sheet Cuadro 3.3.3
A1: Ministerio de Educación y Cultura Dirección de Educación
A3: Cuadro 3.3.3
A4: CANTIDAD DE POBLACIÓN PRIVADA DE LIBERTAD ATENDIDA EN EDUCACIÓN NO FORMAL POR NIVEL Y SEXO SEGÚN UNIDAD PENITENCIARIA (Todo el país, 2017)
A5: UNIDADES PENITENCIARIAS | B5: TOTAL | C5: SEXO | E5: DIRECCIÓN SECTORIAL DE EDUCACIÓN DE JÓVENES Y ADULTOS – ANEP | G5: TOTAL DSEJA - ANEP | H5: MEC PAS | J5: TOTAL MEC PAS | K5: MEC – DIRECCIÓN DE CULTURA | M5: TOTAL MEC – DIRECCIÓN DE CULTURA | N5: CENTROS MEC | P5: TOTAL CENTROS MEC | Q5: NO FORMAL OTROS | S5: TOTAL NO FORMAL OTROS
C6: VARÓN | D6: MUJER | E6: VARÓN | F6: MUJER | H6: VARÓN | I6: MUJER | K6: VARÓN | L6: MUJER | N6: VARÓN | O6: MUJER | Q6: VARÓN | R6: MUJER
A7: TOTAL | B7: =SUM(B8:B30) -> 800 | C7: =SUM(C8:C30) -> 549 | D7: =SUM(D8:D30) -> 251 | E7: =SUM(E8:E30) -> 145 | F7: =SUM(F8:F30) -> 70 | G7: =SUM(G8:G30) -> 215 | H7: 153 | I7: 90 | J7: 243 | K7: 18 | L7: 28 | M7: =SUM(M8:M30) -> 46 | N7: 49 | O7: 10 | P7: 59 | Q7: 184 | R7: 53 | S7: 237
A8: Unidad 2 «Libertad Chacra» (San José) | B8: =C8+D8 -> 0 | C8: =E8+H8+K8+N8+Q8 -> 0 | D8: =F8+I8+L8+O8+R8 -> 0 | E8: 0 | F8: 0 | G8: =E8+F8 -> 0 | H8: 0 | I8: 0 | J8: 0 | K8: 0 | L8: 0 | M8: =K8+L8 -> 0 | N8: 0 | O8: 0 | P8: =N8+O8 -> 0 | Q8: 0 | R8: 0 | S8: =Q8+R8 -> 0
A9: Unidad 3 «Libertad» (San José) | B9: =C9+D9 -> 23 | C9: =E9+H9+K9+N9+Q9 -> 23 | D9: 0 | E9: 0 | F9: 0 | G9: =E9+F9 -> 0 | H9: 0 | I9: 0 | J9: =H9+I9 -> 0 | K9: 0 | L9: 0 | M9: =K9+L9 -> 0 | N9: 0 | O9: 0 | P9: 0 | Q9: 23 | R9: 0 | S9: 23
A10: Unidad 4 «Santiago Vázquez» (Montevideo) | B10: 55 | C10: 55 | D10: 0 | E10: 15 | F10: 0 | G10: 15 | H10: 18 | I10: 0 | J10: =H10+I10 -> 18 | K10: 11 | L10: 0 | M10: =K10+L10 -> 11 | N10: 0 | O10: 0 | P10: 0 | Q10: 11 | R10: 0 | S10: 11
A11: Unidad 5 «CMRF» (Montevideo) | B11: 134 | C11: 0 | D11: 134 | E11: 0 | F11: 47 | G11: 47 | H11: 0 | I11: 39 | J11: 39 | K11: 0 | L11: 26 | M11: =K11+L11 -> 26 | N11: 0 | O11: 0 | P11: 0 | Q11: 0 | R11: 22 | S11: 22
A12: Unidad 6 «Punta de Rieles» (Montevideo) | B12: 34 | C12: 29 | D12: 5 | E12: 10 | F12: 2 | G12: 12 | H12: 8 | I12: 3 | J12: 11 | K12: 0 | L12: 0 | M12: =K12+L12 -> 0 | N12: 0 | O12: 0 | P12: 0 | Q12: 11 | R12: 0 | S12: 11
A13: Unidad 7 Canelones (Canelones) | B13: 68 | C13: 68 | D13: =F13+I13+L13+O13+R13 -> 0 | E13: 34 | F13: 0 | G13: 34 | H13: 21 | I13: 0 | J13: 21 | K13: 0 | L13: 0 | M13: 0 | N13: 0 | O13: 0 | P13: 0 | Q13: 13 | R13: 0 | S13: 13
A14: Unidad 9 «El Molin»o (Montevideo) | B14: 20 | C14: =H14+K14+N14+Q14 -> 6 | D14: =I14+L14+O14+R14 -> 14 | E14: s/d | F14: s/d | G14: S/D | H14: 5 | I14: 8 | J14: 13 | K14: 0 | L14: 0 | M14: 0 | N14: 0 | O14: 0 | P14: 0 | Q14: 1 | R14: 6 | S14: 7
A15: Unidad 10 «Juan Soler» (San José) | B15: 26 | C15: 26 | D15: 0 | E15: 13 | F15: 0 | G15: 13 | H15: 0 | I15: 0 | J15: 0 | K15: 0 | L15: 0 | M15: 0 | N15: 4 | O15: 0 | P15: 4 | Q15: 9 | R15: 0 | S15: 9
A16: Unidad 12 «Cerro Carancho» (Rivera) | B16: 64 | C16: 52 | D16: 12 | E16: 12 | F16: 1 | G16: 13 | H16: 6 | I16: 5 | J16: 11 | K16: 3 | L16: 2 | M16: 5 | N16: 4 | O16: 3 | P16: 7 | Q16: 27 | R16: 1 | S16: 28
A17: Unidad 13 «Las Rosas» (Maldonado) | B17: =C17+D17 -> 80 | C17: 61 | D17: 19 | E17: 29 | F17: 0 | G17: 29 | H17: 10 | I17: 9 | J17: 19 | K17: 0 | L17: 0 | M17: 0 | N17: 11 | O17: 4 | P17: 15 | Q17: 11 | R17: 6 | S17: 17
A18: Unidad 14 «Piedra de los Indios» (Colonia) | B18: 0 | C18: 0 | D18: 0 | E18: 0 | F18: 0 | G18: 0 | H18: 0 | I18: 0 | J18: 0 | K18: 0 | L18: 0 | M18: 0 | N18: 0 | O18: 0 | P18: 0 | Q18: 0 | R18: 0 | S18: 0
A19: Unidad 15 «Conventos» (Cerro Largo) | B19: 5 | C19: 2 | D19: 3 | E19: 0 | F19: 0 | G19: 0 | H19: 0 | I19: 0 | J19: 0 | K19: 0 | L19: 0 | M19: 0 | N19: 2 | O19: 0 | P19: 2 | Q19: 0 | R19: 3 | S19: 3
A20: Unidad 16 (Paysandú) | B20: 30 | C20: 20 | D20: 10 | E20: 3 | F20: 5 | G20: 8 | H20: 0 | I20: 0 | J20: 0 | K20: 0 | L20: 0 | M20: 0 | N20: 5 | O20: 0 | P20: 5 | Q20: 12 | R20: 5 | S20: 17
A21: Unidad 17 «Campanero» (Lavalleja) | B21: 37 | C21: 25 | D21: 12 | E21: 0 | F21: 6 | G21: 6 | H21: 7 | I21: 4 | J21: 11 | K21: 3 | L21: 0 | M21: 3 | N21: 0 | O21: 0 | P21: 0 | Q21: 15 | R21: 2 | S21: 17
A22: Unidad 18 (Durazno) | B22: 24 | C22: 13 | D22: 11 | E22: 0 | F22: 0 | G22: 0 | H22: 13 | I22: 11 | J22: 24 | K22: 0 | L22: 0 | M22: 0 | N22: 0 | O22: 0 | P22: 0 | Q22: 0 | R22: 0 | S22: 0
A23: Unidad 19 «Las Cañitas» (Río Negro) | B23: 16 | C23: 14 | D23: 2 | E23: 2 | F23: 0 | G23: 2 | H23: 3 | I23: 2 | J23: 5 | K23: 0 | L23: 0 | M23: 0 | N23: 0 | O23: 0 | P23: 0 | Q23: 9 | R23: 0 | S23: 9
A24: Unidad 20 (Salto) | B24: 47 | C24: 31 | D24: 16 | E24: 8 | F24: 4 | G24: 12 | H24: 14 | I24: 9 | J24: 23 | K24: 0 | L24: 0 | M24: 0 | N24: 0 | O24: 0 | P24: 0 | Q24: 9 | R24: 3 | S24: 12
A25: Unidad 21 (Artigas) | B25: 21 | C25: 21 | D25: 0 | E25: 12 | F25: 0 | G25: =E25+F25 -> 12 | H25: 0 | I25: 0 | J25: 0 | K25: 1 | L25: 0 | M25: 1 | N25: 0 | O25: 0 | P25: 0 | Q25: 8 | R25: 0 | S25: 8
A26: Unidad 22 (Rocha) | B26: 39 | C26: 39 | D26: 0 | E26: 0 | F26: 0 | G26: 0 | H26: 30 | I26: 0 | J26: 30 | K26: 0 | L26: 0 | M26: 0 | N26: 0 | O26: 0 | P26: 0 | Q26: 9 | R26: 0 | S26: 9
A27: Unidad 23 (Treinta y Tres) | B27: 0 | C27: 0 | D27: 0 | E27: 0 | F27: 0 | G27: 0 | H27: 0 | I27: 0 | J27: 0 | K27: 0 | L27: 0 | M27: 0 | N27: 0 | O27: 0 | P27: 0 | Q27: 0 | R27: 0 | S27: 0
A28: Unidad 24 «Pense» (Soriano) | B28: 7 | C28: 5 | D28: 2 | E28: 0 | F28: 0 | G28: 0 | H28: 0 | I28: 0 | J28: 0 | K28: 0 | L28: 0 | M28: 0 | N28: 0 | O28: 0 | P28: 0 | Q28: 5 | R28: 2 | S28: 7
A29: Unidad 26 (Tacuarembó) | B29: 18 | C29: 13 | D29: 5 | E29: 7 | F29: 5 | G29: 12 | H29: 0 | I29: 0 | J29: 0 | K29: 0 | L29: 0 | M29: 0 | N29: 6 | O29: 0 | P29: 6 | Q29: 0 | R29: 0 | S29: 0
A30: Unidad 29 (Florida) | B30: 52 | C30: 46 | D30: 6 | E30: 0 | F30: 0 | G30: 0 | H30: 18 | I30: 0 | J30: 18 | K30: 0 | L30: 0 | M30: 0 | N30: 17 | O30: 3 | P30: =N30+O30 -> 20 | Q30: 11 | R30: 3 | S30: 14
A31: Fuente: Instituto Nacional de Rehabilitación.

Sheet Cuadro 3.3.4
A1: Ministerio de Educación y Cultura Dirección de Educación
A3: Cuadro 3.3.4
A4: CANTIDAD DE JÓVENES ATENDIDOS EN INISA POR SEXO Y EDAD (Todo el país, 2017)
A5: EDAD | B5: SEXO | D5: TOTAL
B6: Mujer | C6: Varón
A7: 13 años | B7: 3 | C7: 10 | D7: =SUM(B7:C7) -> 13
A8: 14 años | B8: 5 | C8: 58 | D8: =SUM(B8:C8) -> 63
A9: 15 años | B9: 13 | C9: 122 | D9: 135
A10: 16 años | B10: 15 | C10: 223 | D10: 238
A11: 17 años | B11: 32 | C11: 347 | D11: 379
A12: 18 años | B12: 11 | C12: 295 | D12: 306
A13: Más de 18 años | B13: 4 | C13: 104 | D13: 108
A14: Total | B14: 83 | C14: 1159 | D14: =SUM(B14:C14) -> 1242
A15: Fuente: Instituto Nacional de Inclusión Social Adolescente.
A16: Nota: Se incluye la totalidad de la población atendida con medida socio-educativa privativa de libertad, semi-libertad y no privativa de libertad (PROMESEM y ONG en convenio), que fueron atendidos en el año 2017.

Sheet Cuadro 3.4.1
A1: Ministerio de Educación y Cultura Dirección de Educación
A3: Cuadro 3.4.1
A5: GASTO PÚBLICO EN EDUCACIÓN (millones de pesos constantes de 2017)
B6: 2004 | C6: 2005 | D6: 2006 | E6: 2007 | F6: 2008 | G6: 2009 | H6: 2010 | I6: 2011 | J6: 2012 | K6: 2013 | L6: 2014 | M6: 2015 | N6: 2016 | O6: 2017
A7: TOTAL | B7: =+B8+B12+B16+B17+B20+B21+B22 -> 13589.64042 | C7: =+C8+C12+C16+C17+C20+C21+C22 -> 14907.51919 | D7: 17679.74956 | E7: 22355.55173 | F7: 29586.188 | G7: 34080.23854 | H7: 37033.52679 | I7: 43260.02567 | J7: 50003.28881 | K7: 55873.26369 | L7: 62719.23735 | M7: 67787.82701 | N7: 75568.7836 | O7: 160470.3457
A8: Instituciones básicas del sistema educación formal | B8: =SUM(B9:B11) -> 11564.96286 | C8: =SUM(C9:C11) -> 12513.82615 | D8: 14345.0252 | E8: 17467.44194 | F8: 22171.46955 | G8: 27494.70492 | H8: 29601.99083 | I8: 35082.72556 | J8: 40041.48451 | K8: 45532.97436 | L8: 52230.79879 | M8: 56706.98766 | N8: 64452.27876 | O8: 71807.85114
A9: ANEP | B9: 9279.615857 | C9: 10058.6392 | D9: 11454.67352 | E9: 13925.59976 | F9: 17754.36012 | G9: 22053.89328 | H9: 23677.35338 | I9: 27971.5051 | J9: 32020.11943 | K9: 36604.81328 | L9: 41700.61814 | M9: 44945.43467 | N9: 51436.7014 | O9: 57334.41603
A10: UDELAR | B10: 2285.347005 | C10: 2455.186955 | D10: 2890.351679 | E10: 3541.842181 | F10: 4417.109433 | G10: 5440.81164 | H10: 5924.637441 | I10: 7111.220456 | J10: 8021.36508 | K10: 8918.161072 | L10: 10159.39468 | M10: 11376.72776 | N10: 12607.4326 | O10: 13929.63824
A11: UTEC | K11: 10 | L11: 370.785974 | M11: 384.825226 | N11: 408.144762 | O11: 543.796864
A12: Administración Central e Inciso 21 | B12: 1439.543128 | C12: 1606.960556 | D12: 2365.449429 | E12: 2523.85294 | F12: 2910.360274 | G12: 2837.418126 | H12: 3339.42392 | I12: 3802.127932 | J12: 5385.668021 | K12: 5516.471903 | L12: 5377.44471 | M12: 5782.307076 | N12: 4925.552515 | O12: =SUM(O13:O15) -> 5188.017331
A13: Educación policial y militar | B13: 351.1450655 | C13: 410.078997 | D13: 482.3611075 | E13: 614.8669187 | F13: 709.63269 | G13: 784.0048796 | H13: 924.9363746 | I13: 1020.680021 | J13: 1473.59211 | K13: 1656.904299 | L13: 1684.258358 | M13: 1977.746873 | N13: 803.8063334 | O13: 862.8293366
A14: Otros Administración Central (1) | B14: 62.338149 | C14: 85.185204 | D14: 184.713237 | E14: 171.659977 | F14: 300.1486645 | G14: 204.8462049 | H14: 350.6130472 | I14: 561.8754102 | J14: 1386.946698 | K14: 1531.329116 | L14: 1617.068686 | M14: 1789.890105 | N14: 2550.216192 | O14: 2592.032201
A15: Partidas del inciso 21 con destino a educación (2) | B15: 175.897077 | C15: 193.578133 | D15: 411.786503 | E15: 457.983722 | F15: 538.329576 | G15: 627.045799 | H15: 753.650114 | I15: 914.8014627 | J15: 963.393388 | K15: 1064.443525 | L15: 1212.183805 | M15: 1506.294077 | N15: 1571.52999 | O15: 1733.155793
A16: Educación no formal inicial (Centros CAIF) y CENFORES | B16: 309.0068852 | C16: 417.7704762 | D16: 525.3902734 | E16: 616.281968 | F16: 1036.644354 | G16: 1183.800907 | H16: 1174.383054 | I16: 1461.695575 | J16: 1826.485955 | K16: 2051.872847 | L16: 1980.35172 | M16: 2110.444604 | N16: 2485.803901 | O16: =+[1]GASTO!AD15 -> 202.5954196
A17: Ciencia y Tecnología | B17: 276.1275464 | C17: 368.9620024 | D17: 443.8846583 | E17: 657.3176679 | F17: 646.9556519 | G17: 452.101126 | H17: 504.2275808 | I17: 609.8271326 | J17: 697.8808477 | K17: 692.9623676 | L17: 788.162577 | M17: 749.1248309 | N17: 879.1584812 | O17: =SUM(O18:O19) -> 2821.39014
A18: MEC (3) | B18: 239.498678 | C18: 274.7229733 | D18: 323.1013064 | E18: 527.1431285 | F18: 353.5521775 | G18: 172.7104309 | H18: 185.5857094 | I18: 161.5812506 | J18: 205.2005491 | K18: 186.8171856 | L18: 202.0713826 | M18: 179.6445463 | N18: 190.729712 | O18: =+[1]GASTO!AD17 -> 2271.491111
A19: PEDECIBA, Instituto Pasteur, ANII (4) | B19: 36.62886833 | C19: 94.23902913 | D19: 120.7833518 | E19: 130.1745394 | F19: 293.4034744 | G19: 279.390695 | H19: 318.6418714 | I19: 448.245882 | J19: 492.6802987 | K19: 506.1451821 | L19: 586.0911944 | M19: 569.4802846 | N19: 688.4287692 | O19: =+[1]GASTO!AD18 -> 549.8990284
A20: Plan Ceibal | B20: 0 | C20: 0 | D20: 0 | E20: 1090.657217 | F20: 2636.661379 | G20: 1755.940094 | H20: 1992.924942 | I20: 1850.303758 | J20: 1598.54644 | K20: 1629.253457 | L20: 1614.361376 | M20: 1728.806523 | N20: 2138.453309 | O20: =+[1]GASTO!AD19 -> 180.4107505
A21: Incentivo a la demanda educativa en secundaria | B21: 0 | C21: 0 | D21: 0 | E21: 0 | F21: 184.0967841 | G21: 356.2733639 | H21: 420.5764667 | I21: 453.3457127 | J21: 453.2230461 | K21: 449.7287628 | L21: 439.4754741 | M21: 404.4267597 | N21: 517.6922732 | O21: =+[1]GASTO!AD20 -> 80270.08097
A22: Donaciones especiales | B22: 0 | C22: 0 | D22: 0 | E22: 0 | F22: 0 | G22: 0 | H22: 0 | I22: 0 | J22: 0 | K22: 0 | L22: 288.6427061 | M22: 305.7295624 | N22: 169.8443654 | O22: =+[1]GASTO!AD21 -> 0
A24: Fuente: Elaboración propia en base a datos del MEF e INE.
A25: Notas:
A26: (1) Se incluyen gastos en Dirección de Educación del MEC, ISEF, capacitación laboral, Centro de Diseño Industrial, escuelas de formación artística y otros componentes considerados en MIDES-DINEM (2006): "Identificación y análisis del gasto público social en Uruguay 2002-2005". Además, se incluye el subsidio al boleto estudiantil que realiza el MTOP.
A27: (2) Incluye subsidios a escuelas para niños con capacidades especiales, rentas afectadas al Fondo de Solidaridad y al Fondo de Reconversión Laboral.
A28: (3) Se considera la Dirección Nacional de Ciencia y Tecnología (DINACYT) y el Clemente Estable. La baja de recursos se explica por la finalización del Programa de Desarrollo Tecnológico (PDT) y el traspaso de algunos programas a la ANII.
A29: (4) Del presupuesto de la ANII se toma en cuenta solo el componente 2, de fortalecimiento y orientación de la investigación.

Sheet Cuadro 3.4.2
A1: Ministerio de Educación y Cultura Dirección de Educación
A3: Cuadro 3.4.2
A5: GASTO DE ANEP SEGÚN COMPONENTE (millones de pesos constantes de 2017)
A7: Componentes | B7: 2004 | C7: 2005 | D7: 2006 | E7: 2007 | F7: 2008 | G7: 2009 | H7: 2010 | I7: 2011 | J7: 2012 | K7: 2013 | L7: 2014 | M7: 2015 | N7: 2016 | O7: 2017
A8: Funcionamiento | B8: 3530.543029 | C8: 3619.247465 | D8: 3505.618051 | E8: 3583.39911 | F8: 3918.6881 | G8: 4179.834083 | H8: 4154.459271 | I8: 4589.266665 | J8: 4907.118453 | K8: 5253.972084 | L8: 5127.992375 | M8: 5014.654701 | N8: 5291.861333 | O8: 5383.465243
A9: Remuneraciones | B9: 18846.18623 | C9: 19895.51308 | D9: 21193.42283 | E9: 23632.46405 | F9: 28584.08526 | G9: 33587.00318 | H9: 34238.6692 | I9: 35953.00299 | J9: 38748.86464 | K9: 41795.66835 | L9: 44992.65764 | M9: 44966.53509 | N9: 46986.53135 | O9: 49897.85055
A10: Inversiones | B10: 1691.85076 | C10: 1102.629592 | D10: 1427.58662 | E10: 2122.683067 | F10: 2621.399245 | G10: 3367.663755 | H10: 2998.009597 | I10: 4692.58711 | J10: 4249.749419 | K10: 4257.277309 | L10: 3309.40612 | M10: 2774.812124 | N10: 2707.732181 | O10: 2678.653595
A13: Fuente: Elaboración propia con base en datos del MEF e INE.

Sheet Grafico 3.1.1
A1: Ministerio de Educación y Cultura Dirección de Educación
A3: Gráfico 3.1.1
A29: Fuente: Elaboración propia a partir de las distintas fuentes que reportan becas estudiantiles.
A30: Nota 1 : Otras becas, incluye los programas Julio Castro, Carlos Quijano, ANII Y Chamangá.
A31: Nota 2: Otras becas desciende notoriamente de 2016 a 2017, esto se debe al aumento en la cantidad de becas otorgadas. Por ese motivo se reclasificó quedando en esta categoría aquellos programas menores a 1.000 prestaciones.

Sheet Grafico 3.1.2
A1: Ministerio de Educación y Cultura Dirección de Educación
A3: Gráfico 3.1.2
A22: Fuente: Elaboración propia en base a datos del Fondo de Solidaridad.

Sheet Gráfico 3.1.3
A1: Ministerio de Educación y Cultura Dirección de Educación
A3: Gráfico 3.1.3
A22: Fuente: Elaboración propia en base a datos del Fondo de Solidaridad.

Sheet Grafico 3.1.4
A1: Ministerio de Educación y Cultura Dirección de Educación
A3: Gráfico 3.1.4
A31: Fuente: Elaboración propia con base en datos de Plan Ceibal.

Sheet Grafico 3.2.1
A1: Ministerio de Educación y Cultura Dirección de Educación
A3: Gráfico 3.2.1
A31: Fuente: Elaboración propia con base en datos de DEE - CEIP.

Sheet Grafico 3.2.2
A1: Ministerio de Educación y Cultura Dirección de Educación
A4: Gráfico 3.2.2
A32: Fuente: Elaboración propia con base en datos de DEE - CEIP.

Sheet Grafico 3.2.3
A1: Ministerio de Educación y Cultura Dirección de Educación
A4: Gráfico 3.2.3
A32: Fuente: Elaboración propia con base en datos de DEE - CEIP.

Sheet Grafico 3.2.4
A1: Ministerio de Educación y Cultura Dirección de Educación
A4: Gráfico 3.2.4
A31: Fuente: Elaboración propia con base en datos de DEE - CEIP.

Sheet Grafico 3.2.5
A1: Ministerio de Educación y Cultura Dirección de Educación
A4: Gráfico 3.2.5
A32: Fuente: Elaboración propia con base en datos de DEE - CEIP.

Sheet Grafico 3.2.6
A1: Ministerio de Educación y Cultura Dirección de Educación
A4: Gráfico 3.2.6
A32: Fuente: Elaboración propia con base en datos de DEE - CEIP.

Sheet Grafico 3.3.1
A1: Ministerio de Educación y Cultura Dirección de Educación
A3: Gráfico 3.3.1
A41: Fuente: Elaboración propia con base en datos del Instituto Nacional de Rehabilitación.
A42: Nota: La cantidad de personas privadas de libertad reportada se halla en base al cálculo de promedios entre los datos cuatrimestrales brindados por el INR. Esto se debe a la rotación de esta población.

Sheet Grafico 3.3.2
A1: Ministerio de Educación y Cultura Dirección de Educación
A4: Gráfico 3.3.2
A38: Fuente: Elaboración propia con base en datos del Instituto Nacional de Rehabilitación.
A39: Nota: La cantidad de personas privadas de libertad reportada se halla en base al cálculo de promedios entre los datos cuatrimestrales brindados por el INR. Debido a la rotación de esta población, desde el instituto establecen cuatro períodos de inscripciones.

Sheet Grafico 3.3.3
A1: Ministerio de Educación y Cultura Dirección de Educación
A5: Gráfico 3.3.3
A40: Fuente: Elaboración propia con base en datos del Instituto Nacional de Rehabilitación.
A41: Nota: La cantidad de personas privadas de libertad reportada se halla en base al cálculo de promedios entre los datos cuatrimestrales brindados por el INR. Debido a la rotación de esta población, desde el instituto establecen cuatro períodos de inscripciones.

Sheet Gráfico 3.4.1
A1: Ministerio de Educación y Cultura Dirección de Educación
A3: Gráfico 3.4.1
A31: Fuente: Elaboración propia en base a datos del MEF, BCU e INE.

Sheet Gráfico 3.4.2
A1: Ministerio de Educación y Cultura Dirección de Educación
A3: Gráfico 3.4.2
A31: Fuente: Elaboración propia en base a datos del MEF y BCU.

Sheet Gráfico 3.4.3
A1: Ministerio de Educación y Cultura Dirección de Educación
A3: Gráfico 3.4.3
A29: Fuente: Elaboración propia en base a datos del MEF.
A30: Notas:
A31: (1) Se incluyen gastos en Dirección de Educación del MEC, ISEF, capacitación laboral, Centro de Diseño Industrial, escuelas de formación artística y otros componentes considerados en MIDES-DINEM (2006): "Identificación y análisis del gasto público social en Uruguay 2002-2005". Además, se incluye el subsidio al boleto estudiantil que realiza el MTOP.
A32: (2) Incluye subsidios a escuelas para niños con capacidades especiales, rentas afectadas al Fondo de Solidaridad y al Fondo de Reconversión Laboral.
A33: (3) Se considera la Dirección Nacional de Ciencia y Tecnología (DINACYT) y el Clemente Estable. La baja de recursos se explica por la finalización del Programa de Desarrollo Tecnológico (PDT) y el traspaso de algunos programas a la ANII.
A34: (4) Del presupuesto de la ANII se toma en cuenta solo el componente 2, de fortalecimiento y orientación de la investigación.

Sheet Gráfico 3.4.4
A1: Ministerio de Educación y Cultura Dirección de Educación
A3: Gráfico 3.4.4
A27: Fuente: Elaboración propia en base a datos del MEF y BCU.
A38: Fuente: Elaboración propia en base a datos del MEF y BCU.

Sheet Gráfico 3.4.5
A1: Ministerio de Educación y Cultura Dirección de Educación
A3: Gráfico 3.4.5
A27: Fuente: Elaboración propia en base a datos del MEF.

Sheet Gráfico 3.4.6
A1: Ministerio de Educación y Cultura Dirección de Educación
A3: Gráfico 3.4.6
A25: Fuente: Elaboración propia en base a datos del MEF.
A41: Fuente: Elaboración propia en base a datos del MEF.

Sheet Gráfico 3.4.7
A1: Ministerio de Educación y Cultura Dirección de Educación
A3: Gráfico 3.4.7
A41: Fuente: Elaboración propia en base a datos de ANEP.

Sheet Gráfico 3.4.8
A1: Ministerio de Educación y Cultura Dirección de Educación
A3: Gráfico 3.4.8
A43: Fuente: Elaboración propia en base a datos de ANEP.

Sheet Gráfico 3.4.9
A1: Ministerio de Educación y Cultura Dirección de Educación
A3: Gráfico 3.4.9
A40: Fuente: Elaboración propia en base a datos de ANEP.

Sheet Gráfico 3.4.10
A1: Ministerio de Educación y Cultura Dirección de Educación
A3: Gráfico 3.4.10
A28: Fuente: Elaboración propia en base a datos de ANEP.

Sheet Gráfico 3.4.11
A1: Ministerio de Educación y Cultura Dirección de Educación
A3: Gráfico 3.4.11
A37: Fuente: Elaboración propia en base a datos del MEF.

Sheet 3.1 (hidden)
A1: apart

Sheet gRÁFICO 3.1.7 b (hidden)
B2: Egresos
C3: 2011 | D3: 2012 | E3: 2013 | F3: 2014 | G3: 2015
B4: Auxiliar de Enfermería | C4: 725 | D4: 762 | E4: 879 | F4: 916 | G4: 1098
B5: Auxiliar de Farmacia Hospitalaria | C5: 622 | D5: 581 | E5: 580 | F5: 637 | G5: 588
B6: Auxiliar de Servicio Ayudante de Cocina y Tisanería | C6: 1932 | D6: 1516 | E6: 1507 | F6: 1772 | G6: 2081
B7: Auxiliar de Estadística Salud y Registros Médicos | C7: 1170 | D7: 1438 | E7: 1392 | F7: 1251 | G7: 890
B8: Auxiliar de Laboratorio Clínico | C8: 22 | D8: 22 | E8: 14 | F8: 27 | G8: 20

Sheet 3.3 (hidden)

Sheet NO FOR (hidden)
B1: ABRIL | C1: MAYO | D1: JUNIO | E1: JULIO | F1: AGOSTO | G1: SEPTIEMBRE | H1: OCTUBRE | I1: NOVIEMBRE | J1: PROMEDIO
A2: DSEA | B2: 155 | C2: 261 | D2: 256 | E2: 245 | F2: 256 | G2: 375 | H2: 206 | I2: 167 | J2: 240
A3: MEC-PAS | B3: 206 | C3: 226 | D3: 233 | E3: 229 | F3: 221 | G3: 223 | H3: 236 | I3: 146 | J3: 215
A4: MEC-CIUDAD | B4: 36 | C4: 70 | D4: 78 | F4: 77 | G4: 85 | H4: 94 | I4: 71 | J4: 73 | N4: 105
A5: EDUACIOÓN NO FORMAL OTROS | C5: 449 | D5: 522 | E5: 560 | F5: 594 | H5: 617 | I5: 492 | J5: 538
A6: EVENTOS EDUCATIVOS | B6: 15 | C6: 283 | D6: 496 | E6: 51 | F6: 287 | G6: 202 | H6: 312 | J6: 235
A7: PROYECTOS CULTURALES | B7: 43 | C7: 45 | D7: 81 | E7: 23 | F7: 9 | G7: 7 | H7: 44 | J7: 36
B8: 9599 | C8: 9580 | D8: 9536 | E8: 9644 | F8: 9982 | G8: 10003 | H8: 9996 | I8: 10024 | J8: 9796
B11: ABRIL | C11: MAYO | D11: JUNIO | E11: JULIO | F11: AGOSTO | G11: SEPTIEMBRE | H11: OCTUBRE | I11: NOVIEMBRE | J11: PROMEDIO
A13: DSEJA | B13: =B2*100/B8 -> 1.614751537 | C13: 2.724425887 | D13: 2.684563758 | E13: 2.540439652 | F13: 2.564616309 | G13: 3.748875337 | H13: 2.06082433 | I13: 1.666001596 | J13: =J2*100/J8 -> 2.449979584
A14: MEC-PAS | B14: =B3*100/B8 -> 2.146056881 | C14: 2.35908142 | D14: 2.443372483 | E14: 2.374533389 | F14: 2.213985173 | G14: 2.229331201 | H14: 2.360944378 | I14: 1.456504389 | J14: =J3*100/J8 -> 2.194773377
A15: MEC-CIUDAD | B15: =B4*100/B8 -> 0.3750390666 | C15: =C4*100/C8 -> 0.7306889353 | D15: =D4*100/D8 -> 0.8179530201 | F15: =F4*100/F8 -> 0.7713884993 | G15: =G4*100/G8 -> 0.8497450765 | H15: =H4*100/H8 -> 0.9403761505 | I15: =I4*100/I8 -> 0.7083000798 | J15: =J4*100/J8 -> 0.7452021233
A16: EDUACIÓN NO FORMAL OTROS | B16: 6 | C16: 8.1 | D16: 11.5 | E16: 6.6 | F16: 8.9 | G16: 2 | H16: 9.7 | I16: =I5*100/I8 -> 4.908220271 | J16: 8.3 | K16: 13.7
B17: =B13+B14+B15+B16 -> 10.13584748 | C17: =C13+C14+C15+C16 -> 13.91419624 | D17: 17.44588926 | E17: 11.51497304 | F17: 14.44998998 | G17: 8.827951615 | H17: 15.06214486 | I17: 8.739026337 | J17: 13.68995508
A18: POBLACIÓN SIN COBERTURA EN EDUCACIÓN NO FORMAL | B18: =B19-B17 -> 89.86415252 | C18: =C19-C17 -> 86.08580376 | D18: 82.55411074 | E18: 88.48502696 | F18: 85.55001002 | G18: 91.17204839 | H18: 84.93785514 | I18: 91.26097366 | J18: 86.31004492
B19: 100 | C19: 100 | D19: 100 | E19: 100 | F19: 100 | G19: 100 | H19: 100 | I19: 100 | J19: 100
A21: * eduacion no formal otros icluye proyectos y evento sculturales .

Sheet docnetes d (hidden)
B1: Primaria | C1: Secundaria | D1: CETP_UTU | E1: DSEJA | F1: Programa Aprender Siempre | G1: MEC -ciudad y no formal | H1: OTROS
A2: abril | B2: 23 | C2: 215 | D2: 11 | E2: 13 | F2: 22 | G2: 8 | H2: 45
A3: mayo | B3: 28 | C3: 284 | D3: 22 | E3: 15 | F3: 36 | G3: 12 | H3: 54
A4: junio | B4: 28 | C4: 277 | D4: 27 | E4: 15 | F4: 40 | G4: 13 | H4: 47
A5: julio | B5: 29 | C5: 291 | D5: 31 | E5: 16 | F5: 32 | G5: 16 | H5: 57
A6: agosto | B6: 29 | C6: 291 | D6: 30 | E6: 15 | F6: 34 | G6: 13 | H6: 56
A7: setiembre | B7: 28 | C7: 301 | D7: 30 | E7: 16 | F7: 34 | G7: 15 | H7: 62
A8: octubre | B8: 29 | C8: 300 | D8: 36 | E8: 15 | F8: 34 | G8: 15 | H8: 72
A9: noviembre | B9: sd | C9: sd | D9: sd | E9: sd | F9: sd | G9: sd | H9: sd
A10: Promedio de docentes | B10: =AVERAGE(B2:B8) -> 27.71428571 | C10: 279.8571429 | D10: 26.71428571 | E10: 15 | F10: 33.14285714 | G10: 13.14285714 | H10: 56
A11: Promedio de población atendida | B11: 349 | C11: 1085 | D11: 272 | E11: 240 | F11: 225 | G11: 78 | H11: 810
A12: Razón docente /alumno | B12: =B11/B10 -> 12.59278351 | C12: 3.87697805 | D12: 10.18181818 | E12: 16 | F12: 6.788793103 | G12: 5.934782609 | H12: 14.46428571
B15: =B10*100/I15 -> 6.13147914 | C15: =C10*100/I15 -> 61.91529709 | D15: =D10*100/I15 -> 5.910240202 | E15: =E10*100/I15 -> 3.318584071 | F15: =F10*100/I15 -> 7.332490518 | G15: =G10*100/I15 -> 2.907711757 | H15: =H10*100/I15 -> 12.38938053 | I15: 452

Sheet UdelaR (hidden)
A1: UDLEAR | P1: IPC | Q1: 2004 | R1: 2005 | S1: 2006 | T1: 2007 | U1: 2008 | V1: 2009 | W1: 2010 | X1: 2011 | Y1: 2012 | Z1: 2013 | AA1: 2014 | AB1: 2015
P2: Nivel General. Total País. Base Dic 2010=100 | Q2: 65.56377824 | R2: 68.64480205 | S2: 73.03731665 | T2: 78.96372085 | U2: 85.1821049 | V2: 91.19758728 | W2: 97.3074843 | X2: 105.1833333 | Y2: 113.7008333 | Z2: 123.4508333 | AA2: 134.41 | AB2: 146.0583333
A4: A precios corrientes | P4: Millones de pesos, a precios constantes dic 2010
A5: Código Inciso | B5: Descripción Unidad Ejecutora | C5: 2004 | D5: 2005 | E5: 2006 | F5: 2007 | G5: 2008 | H5: 2009 | I5: 2010 | J5: 2011 | K5: 2012 | L5: 2013 | M5: 2014 | N5: 2015 | P5: Descripción Unidad Ejecutora | Q5: 2004 | R5: 2005 | S5: 2006 | T5: 2007 | U5: 2008 | V5: 2009 | W5: 2010 | X5: 2011 | Y5: 2012 | Z5: 2013 | AA5: 2014 | AB5: 2015 | AC5: Crec 04/15 | AD5: Crec anual | AE5: Crec 2014-2015
A6: 26 | B6: FACULTAD DE AGRONOMIA | C6: 140476092 | D6: 153740658 | E6: 180642276 | F6: 208311940 | G6: 283885420 | H6: 338655757 | I6: 357061978 | J6: 414572999 | K6: 446150853 | L6: 493716021 | M6: 566626530 | N6: 588975646 | P6: FACULTAD DE AGRONOMIA | Q6: =(C6/(Q$2/$AB$2))/1000000 -> 312.9426708 | R6: 327.1202422 | S6: 361.2442375 | T6: 385.3123237 | U6: 486.7669254 | V6: 542.3772374 | W6: 535.9492929 | X6: 575.6790488 | Y6: 573.1184908 | Z6: 584.1300315 | AA6: 615.7319142 | AB6: 588.975646 | AC6: =(AB6/Q6-1) -> 0.8820560472 | AD6: =((AB6/Q6)^(1/12))-1 -> 0.05411027349 | AE6: =AB6/AA6-1 -> -0.04345441194
B7: FACULTAD DE ARQUITECTURA | C7: 67015720 | D7: 75079843 | E7: 90019546 | F7: 101725516 | G7: 145020684 | H7: 199208844 | I7: 212737292 | J7: 253110097 | K7: 291452246 | L7: 336173027 | M7: 356793762 | N7: 384857501 | P7: FACULTAD DE ARQUITECTURA | Q7: 149.2928662 | R7: 159.7504313 | S7: 180.0190021 | T7: 188.1605776 | U7: 248.6611411 | V7: 319.0447534 | W7: 319.3182367 | X7: 351.4705015 | Y7: 374.395051 | Z7: 397.7362543 | AA7: 387.7144723 | AB7: 384.857501 | AC7: 1.577869331 | AD7: 0.08211082519 | AE7: -0.00736875072
B8: FACULTAD DE CIENCIAS | C8: 113382942 | D8: 128060928 | E8: 151329820 | F8: 176273153 | G8: 231391568 | H8: 301242039 | I8: 325151143 | J8: 384971768 | K8: 424418962 | L8: 478214737 | M8: 537360004 | N8: 608689204 | P8: FACULTAD DE CIENCIAS | Q8: 252.5864735 | R8: 272.4804377 | S8: 302.6258673 | T8: 326.0505288 | U8: 396.7578262 | V8: 482.4569537 | W8: 488.0511953 | X8: 534.5745665 | Y8: 545.2020395 | Z8: 565.7900038 | AA8: 583.9290721 | AB8: 608.689204 | AC8: 1.409825022 | AD8: 0.07604919215 | AE8: 0.04240263597
B9: FACULTAD DE CIENCIAS ECONOMICAS Y DE ADMINISTRACION | C9: 98990586 | D9: 111501569 | E9: 128782774 | F9: 143021983 | G9: 179580940 | H9: 222831586 | I9: 244832772 | J9: 280159816 | K9: 309800729 | L9: 340090051 | M9: 394088762 | N9: 414180790 | P9: FACULTAD DE CIENCIAS ECONOMICAS Y DE ADMINISTRACION | Q9: 220.524204 | R9: 237.246417 | S9: 257.5368072 | T9: 264.5462023 | U9: 307.9202237 | V9: 356.8779727 | W9: 367.493486 | X9: 389.0319359 | Y9: 397.9652287 | Z9: 402.3706012 | AA9: 428.2415576 | AB9: 414.18079 | AC9: 0.8781647661 | AD9: 0.05392848066 | AE9: -0.03283372992
B10: FACULTAD DE CIENCIAS SOCIALES | C10: 59793630 | D10: 70105381 | E10: 94814422 | F10: 116975681 | G10: 158976276 | H10: 196607370 | I10: 200868270 | J10: 228981883 | K10: 254607363 | L10: 288252466 | M10: 322072427 | N10: 343816565 | P10: FACULTAD DE CIENCIAS SOCIALES | Q10: 133.2040065 | R10: 149.1660665 | S10: 189.607684 | T10: 216.3686415 | U10: 272.5902341 | V10: 314.8783388 | W10: 301.5028592 | X10: 317.96589 | Y10: 327.0646837 | Z10: 341.0400208 | AA10: 349.9840927 | AB10: 343.816565 | AC10: 1.581127806 | AD10: 0.08222474324 | AE10: -0.01762230865
B11: FACULTAD DE DERECHO | C11: 76007790 | D11: 83483552 | E11: 100016552 | F11: 114426581 | G11: 155788322 | H11: 199636121 | I11: 214308714 | J11: 242509696 | K11: 273931975 | L11: 299460045 | M11: 335734716 | N11: 353663536 | P11: FACULTAD DE DERECHO | Q11: 169.3247617 | R11: 177.6313443 | S11: 200.010783 | T11: 211.653599 | U11: 267.1239774 | V11: 319.7290628 | W11: 321.6769379 | X11: 336.7507084 | Y11: 351.8887817 | Z11: 354.3000391 | AA11: 364.8303925 | AB11: 353.663536 | AC11: 1.088669917 | AD11: 0.06330000921 | AE11: -0.03060835053
B12: FACULTAD DE HUMANIDADES Y CIENCIAS DE LA EDUCACION | C12: 51470360 | D12: 56426867 | E12: 72266223 | F12: 82676657 | G12: 113881799 | H12: 144942259 | I12: 154711813 | J12: 176728258 | K12: 201396429 | L12: 218350751 | M12: 246221120 | N12: 256347105 | P12: FACULTAD DE HUMANIDADES Y CIENCIAS DE LA EDUCACION | Q12: 114.6620161 | R12: 120.0617367 | S12: 144.5163181 | T12: 152.9261108 | U12: 195.2685459 | V12: 232.1336058 | W12: 232.2221124 | X12: 245.4061304 | Y12: 258.7107403 | Z12: 258.3372336 | AA12: 267.5593067 | AB12: 256.347105 | AC12: 1.235675891 | AD12: 0.06934391784 | AE12: -0.0419054821
B13: FACULTAD DE INGENIERIA | C13: 135081214 | D13: 149561007 | E13: 190607331 | F13: 213631479 | G13: 265782470 | H13: 343296411 | I13: 381963079 | J13: 479872145 | K13: 503038653 | L13: 533287577 | M13: 609845745 | N13: 697968837 | P13: FACULTAD DE INGENIERIA | Q13: 300.9243444 | R13: 318.227029 | S13: 381.1721236 | T13: 395.151817 | U13: 455.7265243 | V13: 549.8095194 | W13: 573.3257942 | X13: 666.3539126 | Y13: 646.1956795 | Z13: 630.9483102 | AA13: 662.6966231 | AB13: 697.968837 | AC13: 1.319416325 | AD13: 0.07262576767 | AE13: 0.05322528094
B14: FACULTAD DE MEDICINA | C14: 147600974 | D14: 163049269 | E14: 200528061 | F14: 237527051 | G14: 318733227 | H14: 415122501 | I14: 419917003 | J14: 492529296 | K14: 573330545 | L14: 560011010 | M14: 624273855 | N14: 675471496 | P14: FACULTAD DE MEDICINA | Q14: 328.8149774 | R14: 346.9265519 | S14: 401.0113696 | T14: 439.3511959 | U14: 546.5190602 | V14: 664.8432534 | W14: 630.2945558 | X14: 683.9297236 | Y14: 736.4915577 | Z14: 662.5655944 | AA14: 678.375112 | AB14: 675.471496 | AC14: 1.054260123 | AD14: 0.06182909122 | AE14: -0.004280251377
B15: FACULTAD DE ODONTOLOGIA | C15: 59371663 | D15: 64272794 | E15: 79678013 | F15: 102364796 | G15: 134724687 | H15: 162516665 | I15: 185362494 | J15: 227130267 | K15: 214939328 | L15: 228540902 | M15: 264635935 | N15: 284364861 | P15: FACULTAD DE ODONTOLOGIA | Q15: 132.2639783 | R15: 136.7558342 | S15: 159.338244 | T15: 189.3430468 | U15: 231.0070086 | V15: 260.2800572 | W15: 278.2287214 | X15: 315.3947227 | Y15: 276.107739 | Z15: 270.3935028 | AA15: 287.5699993 | AB15: 284.364861 | AC15: 1.149979644 | AD15: 0.06586662199 | AE15: -0.01114559346
B16: FACULTAD DE PSICOLOGIA | C16: 43890661 | D16: 49120911 | E16: 56134805 | F16: 66799034 | G16: 89681290 | H16: 123783807 | I16: 140149627 | J16: 161857518 | K16: 180628050 | L16: 194888094 | M16: 231148477 | N16: 258187867 | P16: FACULTAD DE PSICOLOGIA | Q16: 97.77650048 | R16: 104.5165574 | S16: 112.2570822 | T16: 123.5574447 | U16: 153.7729053 | V16: 198.2470928 | W16: 210.3643012 | X16: 224.7565139 | Y16: 232.0320016 | Z16: 230.57787 | AA16: 251.1804278 | AB16: 258.187867 | AC16: 1.640592226 | AD16: 0.08428082703 | AE16: 0.02789803028
B17: FACULTAD DE QUIMICA | C17: 75395485 | D17: 86324037 | E17: 105313245 | F17: 137324962 | G17: 183190478 | H17: 225078914 | I17: 268847675 | J17: 270611780 | K17: 317353875 | L17: 355605881 | M17: 395371038 | N17: 422504016 | P17: FACULTAD DE QUIMICA | Q17: 167.9607121 | R17: 183.6751596 | S17: 210.6029869 | T17: 254.0084846 | U17: 314.1093535 | V17: 360.4772015 | W17: 403.5398059 | X17: 375.7734644 | Y17: 407.6678833 | Z17: 420.7278388 | AA17: 429.6349591 | AB17: 422.504016 | AC17: 1.515493122 | AD17: 0.07990427692 | AE17: -0.01659767901
B18: FACULTAD DE VETERINARIA | C18: 89925595 | D18: 96580445 | E18: 111757466 | F18: 133162709 | G18: 177427155 | H18: 224016531 | I18: 226410099 | J18: 262004240 | K18: 284192428 | L18: 308992550 | M18: 345370429 | N18: 381633735 | P18: FACULTAD DE VETERINARIA | Q18: 200.3298602 | R18: 205.4981354 | S18: 223.4899908 | T18: 246.3096107 | U18: 304.2272151 | V18: 358.7757323 | W18: 339.8410919 | X18: 363.8209725 | Y18: 365.069201 | Z18: 365.5782278 | AA18: 375.3011624 | AB18: 381.633735 | AC18: 0.9050267125 | AD18: 0.05517644835 | AE18: 0.01687330923
B19: HOSPITAL DE CLINICAS | C19: 535511911 | D19: 590707784 | E19: 691181194 | F19: 789734567 | G19: 1007261508 | H19: 1203764535 | I19: 1261073893 | J19: 1495650130 | K19: 1717805451 | L19: 1833447097 | M19: 2052737477 | N19: 2235774812 | P19: HOSPITAL DE CLINICAS | Q19: 1192.97544 | R19: 1256.872944 | S19: 1382.208135 | T19: 1460.763416 | U19: 1727.110844 | V19: 1927.900145 | W19: 1892.869314 | X19: 2076.87053 | Y19: 2206.666335 | Z19: 2169.205505 | AA19: 2230.633246 | AB19: 2235.774812 | AC19: 0.874116379 | AD19: 0.05373898133 | AE19: 0.002304980217
B20: INSTITUTO DE HIGIENE | C20: 16966001 | D20: 19598307 | E20: 21353649 | F20: 24024279 | G20: 33139916 | H20: 37200724 | I20: 43525523 | J20: 49643180 | K20: 60085914 | L20: 56806964 | M20: 63025800 | N20: 70958059 | P20: INSTITUTO DE HIGIENE | Q20: 37.79565327 | R20: 41.70011379 | S20: 42.70253244 | T20: 44.43744688 | U20: 56.82368267 | V20: 59.57916112 | W20: 65.33172029 | X20: 68.93487687 | Y20: 77.18543654 | Z20: 67.2099998 | AA20: 68.48778592 | AB20: 70.958059 | AC20: 0.8774132172 | AD20: 0.05389333003 | AE20: 0.03606881214
B21: INSTITUTO ESCUELA NACIONAL DE BELLAS ARTES | C21: 23960877 | P21: INSTITUTO ESCUELA NACIONAL DE BELLAS ARTES | Q21: =(C21/(Q$2/$AB$2))/1000000 -> 53.37834173
B22: INSTITUTO NACIONAL DE ENFERMERIA | C22: 29447208 | P22: INSTITUTO NACIONAL DE ENFERMERIA | Q22: =(C22/(Q$2/$AB$2))/1000000 -> 65.60040067
B23: OFICINAS CENTRALES Y ESCUELAS DEPENDIENTES DE RECTORADO | C23: 505073883 | D23: 471358651 | E23: 506845924 | F23: 746885815 | G23: 740243095 | H23: 853306719 | I23: 938902142 | J23: 1352339233 | K23: 1611452086 | L23: 1923428147 | M23: 2114935091 | N23: 2347115874 | P23: OFICINAS CENTRALES Y ESCUELAS DEPENDIENTES DE RECTORADO | Q23: =(C23/(Q$2/$AB$2))/1000000 -> 1125.167761 | R23: =(D23/(R$2/$AB$2))/1000000 -> 1002.928946 | S23: 1013.578734 | T23: 1381.506547 | U23: 1269.265098 | V23: 1366.621211 | W23: 1409.29018 | X23: 1877.867987 | Y23: 2070.046446 | Z23: 2275.664747 | AA23: 2298.221074 | AB23: 2347.115874 | AC23: =(AB23/Q23-1) -> 1.086014153 | AD23: =((AB23/Q23)^(1/12))-1 -> 0.06318727715 | AE23: =AB23/AA23-1 -> 0.021275064
B24: REGIONAL NORTE | C24: 15109279 | D24: 16859271 | E24: 20675408 | F24: 30777058 | G24: 41213523 | H24: 45921450 | I24: 48561202 | J24: 60456969 | K24: 73098893 | L24: 95531116 | M24: 123783838 | N24: 137139228 | P24: REGIONAL NORTE | Q24: =(C24/(Q$2/$AB$2))/1000000 -> 33.65937973 | R24: 35.87215565 | S24: 41.34620181 | T24: 56.92798855 | U24: 70.66717226 | V24: 73.54591993 | W24: 72.89026409 | X24: 83.95098207 | Y24: 93.90170826 | Z24: 113.0256897 | AA24: 134.5112795 | AB24: 137.139228 | AC24: =(AB24/Q24-1) -> 3.074324277 | AD24: =((AB24/Q24)^(1/12))-1 -> 0.1241854653 | AE24: =AB24/AA24-1 -> 0.01953701246
B25: FACULTAD DE ENFERMERIA | D25: 32446518 | E25: 40589766 | F25: 54216885 | G25: 73508417 | H25: 93340593 | I25: 101598427 | J25: 123867944 | K25: 138903120 | L25: 149225441 | M25: 176316657 | N25: 184413511 | P25: FACULTAD DE ENFERMERIA | R25: 69.03777417 | S25: 81.17047346 | T25: 100.2843809 | U25: 126.0419297 | V25: 149.4904838 | W25: 152.4990295 | X25: 172.0039181 | Y25: 178.4328013 | Z25: 176.5530342 | AA25: 191.5967343 | AB25: 184.413511 | AC25: =(AB25/R25-1) -> 1.671197228 | AD25: =((AB25/R25)^(1/11))-1 -> 0.09343117126 | AE25: =AB25/AA25-1 -> -0.03749136617
B26: INSTESCNALDE BELLAS ARTES Y ESCUELA UNIVDE MUSICA | D26: 36812912 | P26: INSTESCNALDE BELLAS ARTES Y ESCUELA UNIVDE MUSICA | R26: =(D26/(R$2/$AB$2))/1000000 -> 78.32832802
B27: IEMBAYEUMBELLAS ARTES Y MUSICA | E27: 46522563 | F27: 61982035 | G27: 79108197 | H27: 104878046 | I27: 126872416 | J27: 14682595 | P27: IEMBAYEUMBELLAS ARTES Y MUSICA | S27: =(E27/(S$2/$AB$2))/1000000 -> 93.03474342 | T27: 114.6474942 | U27: 135.6436475 | V27: 167.9683976 | W27: 190.4352349 | X27: 20.38835704
B28: IENBAYEUMBELLAS ARTES Y MUSICA | J28: 126614292 | K28: 140158662 | L28: 163866495 | M28: 185925317 | N28: 198958041 | P28: IENBAYEUMBELLAS ARTES Y MUSICA | X28: =(J28/(X$2/$AB$2))/1000000 -> 175.8175167 | Y28: =(K28/(Y$2/$AB$2))/1000000 -> 180.0456512 | Z28: =(L28/(Z$2/$AB$2))/1000000 -> 193.8752984 | AA28: =(M28/(AA$2/$AB$2))/1000000 -> 202.0381067 | AB28: =(N28/(AB$2/$AB$2))/1000000 -> 198.958041 | AC28: =(AB28/S27-1) -> 1.138534849 | AD28: =((AB28/S27)^(1/10))-1 -> 0.07897562372 | AE28: =AB28/AA28-1 -> -0.01524497422
B29: FACULTAD DE INFORMACION Y COMUNICACION | M29: 140505053 | N29: 159037901 | P29: FACULTAD DE INFORMACION Y COMUNICACION | AA29: =(M29/(AA$2/$AB$2))/1000000 -> 152.6816001 | AB29: =(N29/(AB$2/$AB$2))/1000000 -> 159.037901 | AE29: =AB29/AA29-1 -> 0.04163108667
B30: CENTRO UNIVERSITARIO REGIONAL ESTE | P30: CENTRO UNIVERSITARIO REGIONAL ESTE
B31: CENTRO UNIVERSITARIO REGIONAL LITORAL NORTE | P31: CENTRO UNIVERSITARIO REGIONAL LITORAL NORTE
B32: FACULTAD DE ARQUITECTURA DISEO Y URBANISMO | P32: FACULTAD DE ARQUITECTURA DISEO Y URBANISMO
B34: Distribución % | P34: Ordenado de mayor a menor
B35: FACULTAD DE AGRONOMIA | C35: =C6/SUM(C$6:C$29) -> 0.06149171447 | D35: 0.06262117231 | E35: 0.06252633595 | F35: 0.05881457427 | G35: 0.06433607087 | H35: 0.06230614453 | I35: 0.06100645646 | J35: 0.05840459592 | K35: 0.05565236536 | L35: 0.05573743993 | M35: 0.05617520929 | N35: 0.0535234924 | P35: Descripción Unidad Ejecutora | Q35: 2015 | R35: 1
B36: FACULTAD DE ARQUITECTURA | C36: 0.0293353229 | D36: 0.0305812909 | E36: 0.03115877689 | F36: 0.02872107531 | G36: 0.03286558712 | H36: 0.03665059509 | I36: 0.03634760669 | J36: 0.03565787684 | K36: 0.03635543173 | L36: 0.03795182473 | M36: 0.03537244233 | N36: 0.03497414141 | P36: OFICINAS CENTRALES Y ESCUELAS DEPENDIENTES DE RECTORADO | Q36: 2347.115874 | R36: =Q36/SUM(Q$36:Q$55) -> 0.2132954724
B37: FACULTAD DE CIENCIAS | C37: 0.04963201493 | D37: 0.05216138361 | E37: 0.05238031415 | F37: 0.04976877681 | G37: 0.05243955226 | H37: 0.05542274015 | I37: 0.05555427424 | J37: 0.0542344065 | K37: 0.05294155324 | L37: 0.05398744226 | M37: 0.05327373338 | N37: 0.05531497304 | P37: HOSPITAL DE CLINICAS | Q37: 2235.774812 | R37: 0.2031772909 | U37: Facultades por Áreas (sin contar Escuelas despendientes de Rectorado)
B38: FACULTAD DE CIENCIAS ECONOMICAS Y DE ADMINISTRACION | C38: 0.04333193473 | D38: 0.04541647639 | E38: 0.04457602711 | F38: 0.04038067641 | G38: 0.04069787058 | H38: 0.04099672519 | I38: 0.04183133676 | J38: 0.03946861201 | K38: 0.03864420127 | L38: 0.03839403216 | M38: 0.03906985909 | N38: 0.03763891175 | P38: FACULTAD DE INGENIERIA | Q38: 697.968837 | R38: 0.0634283098 | T38: =R38+R40+R41+R42+R44+R45 -> 0.2803173861 | U38: Área de las Tecnologías y las Ciencias Naturales y el Hábitab - está completa
B39: FACULTAD DE CIENCIAS SOCIALES | C39: 0.02617394014 | D39: 0.02855510832 | E39: 0.03281844391 | F39: 0.03302679087 | G39: 0.03602829958 | H39: 0.03617197392 | I39: 0.03431970392 | J39: 0.03225872013 | K39: 0.03175944166 | L39: 0.03254189417 | M39: 0.03193017805 | N39: 0.03124452331 | P39: FACULTAD DE MEDICINA | Q39: 675.471496 | R39: 0.06138385131 | T39: =R39+R48+R49+R52 -> 0.1274473163 | U39: Área Ciencias de la Salud - Falta: ISEF y Escuela de Nutrición
B40: FACULTAD DE DERECHO | C40: 0.03327149306 | D40: 0.03400426382 | E40: 0.03461907517 | F40: 0.03230708065 | G40: 0.03530582347 | H40: 0.03672920584 | I40: 0.03661609478 | J40: 0.03416450381 | K40: 0.03416997245 | L40: 0.0338071595 | M40: 0.03328465389 | N40: 0.03213937233 | P40: FACULTAD DE CIENCIAS | Q40: 608.689204 | R40: 0.05531497304 | T40: =R43+R46+R47+R50+R51+R53 -> 0.1568515766 | U40: Área Ciencias Sociales y Artísticas - Falta: Escuela Univ. De Bibliotecología y Ciencias Afines
B41: FACULTAD DE HUMANIDADES Y CIENCIAS DE LA EDUCACION | C41: 0.02253052911 | D41: 0.02298361804 | E41: 0.02501375778 | F41: 0.02334284047 | G41: 0.02580867834 | H41: 0.02666658739 | I41: 0.02643356074 | J41: 0.02489728593 | K41: 0.02512196844 | L41: 0.02465042929 | M41: 0.02441029887 | N41: 0.02329568704 | P41: FACULTAD DE AGRONOMIA | Q41: 588.975646 | R41: 0.0535234924
B42: FACULTAD DE INGENIERIA | C42: 0.05913017171 | D42: 0.06091872971 | E42: 0.06597557492 | F42: 0.06031648732 | G42: 0.06023345554 | H42: 0.06315993559 | I42: 0.06526097816 | J42: 0.06760386902 | K42: 0.06274848679 | L42: 0.06020482022 | M42: 0.06045995121 | N42: 0.0634283098 | P42: FACULTAD DE QUIMICA | Q42: 422.504016 | R42: 0.03839528959
B43: FACULTAD DE MEDICINA | C43: 0.0646105456 | D43: 0.06641272713 | E43: 0.06940947151 | F43: 0.06706313801 | G43: 0.07223352111 | H43: 0.07637455443 | I43: 0.07174566304 | J43: 0.06938699477 | K43: 0.07151661988 | L43: 0.06322172808 | M43: 0.06189035035 | N43: 0.06138385131 | P43: FACULTAD DE CIENCIAS ECONOMICAS Y DE ADMINISTRACION | Q43: 414.18079 | R43: 0.03763891175
B44: FACULTAD DE ODONTOLOGIA | C44: 0.02598922918 | D44: 0.02617939691 | E44: 0.0275792263 | F44: 0.02890156895 | G44: 0.0305322373 | H44: 0.02989994001 | I44: 0.03167043711 | J44: 0.03199786647 | K44: 0.02681129473 | L44: 0.02580083338 | M44: 0.02623593892 | N44: 0.02584181634 | P44: FACULTAD DE ARQUITECTURA | Q44: 384.857501 | R44: 0.03497414141
B45: FACULTAD DE PSICOLOGIA | C45: 0.01921260732 | D45: 0.0200077785 | E45: 0.01943013426 | F45: 0.01885996907 | G45: 0.02032419216 | H45: 0.02277383925 | I45: 0.02394551267 | J45: 0.02280231216 | K45: 0.02253134375 | L45: 0.02200164258 | M45: 0.0229160009 | N45: 0.02346296732 | P45: FACULTAD DE VETERINARIA | Q45: 381.633735 | R45: 0.03468117986
B46: FACULTAD DE QUIMICA | C46: 0.03300346393 | D46: 0.03516124144 | E46: 0.03645243784 | F46: 0.03877218548 | G46: 0.04151588896 | H46: 0.04141019031 | I46: 0.04593444553 | J46: 0.03812349502 | K46: 0.03958637237 | L46: 0.04014567198 | M46: 0.0391969836 | N46: 0.03839528959 | P46: FACULTAD DE DERECHO | Q46: 353.663536 | R46: 0.03213937233
B47: FACULTAD DE VETERINARIA | C47: 0.03936384428 | D47: 0.03933885002 | E47: 0.03868299835 | F47: 0.03759701935 | G47: 0.04020976497 | H47: 0.04121473227 | I47: 0.03868369834 | J47: 0.03691087409 | K47: 0.03544985004 | L47: 0.03488331948 | M47: 0.03423993601 | N47: 0.03468117986 | P47: FACULTAD DE CIENCIAS SOCIALES | Q47: 343.816565 | R47: 0.03124452331
B48: HOSPITAL DE CLINICAS | C48: 0.2344138782 | D48: 0.2406052791 | E48: 0.2392409379 | F48: 0.2229728279 | G48: 0.2282725466 | H48: 0.2214695175 | I48: 0.2154630128 | J48: 0.2107055734 | K48: 0.2142771574 | L48: 0.2069846695 | M48: 0.2035078686 | N48: 0.2031772909 | P48: FACULTAD DE ODONTOLOGIA | Q48: 284.364861 | R48: 0.02584181634
B49: INSTITUTO DE HIGIENE | C49: 0.007426662248 | D49: 0.007982722173 | E49: 0.007391212405 | F49: 0.006782989691 | G49: 0.007510396216 | H49: 0.006844217582 | I49: 0.007436630298 | J49: 0.006993677531 | K49: 0.007495050646 | L49: 0.006413149682 | M49: 0.006248361695 | N49: 0.006448353437 | P49: FACULTAD DE PSICOLOGIA | Q49: 258.187867 | R49: 0.02346296732
B50: INSTITUTO ESCUELA NACIONAL DE BELLAS ARTES | C50: 0.01048858483 | D50: 0 | E50: 0 | F50: 0 | G50: 0 | H50: 0 | I50: 0 | J50: 0 | K50: 0 | L50: 0 | M50: 0 | N50: 0 | P50: FACULTAD DE HUMANIDADES Y CIENCIAS DE LA EDUCACION | Q50: 256.347105 | R50: 0.02329568704
B51: INSTITUTO NACIONAL DE ENFERMERIA | C51: =C22/SUM(C$6:C$29) -> 0.01289016003 | D51: 0 | E51: 0 | F51: 0 | G51: 0 | H51: 0 | I51: 0 | J51: 0 | K51: 0 | L51: 0 | M51: 0 | N51: 0 | P51: IENBAYEUMBELLAS ARTES Y MUSICA | Q51: 198.958041 | R51: 0.01808042364
B52: OFICINAS CENTRALES Y ESCUELAS DEPENDIENTES DE RECTORADO | C52: 0.2210899987 | D52: 0.191992357 | E52: 0.1754363332 | F52: 0.2108749563 | G52: 0.1677589931 | H52: 0.1569920211 | I52: 0.1604177879 | J52: 0.1905160892 | K52: 0.201010756 | L52: 0.2171429653 | M52: 0.2096741241 | N52: 0.2132954724 | P52: FACULTAD DE ENFERMERIA | Q52: 184.413511 | R52: 0.01675868132
B53: REGIONAL NORTE | C53: 0.006613904593 | D53: 0.006867066448 | E53: 0.007156450501 | F53: 0.008689562219 | G53: 0.009340092691 | H53: 0.008448663404 | I53: 0.008297010149 | J53: 0.008517112435 | K53: 0.009118275294 | L53: 0.01078486339 | M53: 0.01227189805 | N53: 0.01246260431 | P53: FACULTAD DE INFORMACION Y COMUNICACION | Q53: 159.037901 | R53: 0.01445265851
B54: FACULTAD DE ENFERMERIA | C54: 0 | D54: 0.01321601599 | E54: 0.01404947613 | F54: 0.01530753835 | G54: 0.0166589842 | H54: 0.01717287351 | I54: 0.01735877913 | J54: 0.01745038204 | K54: 0.017326622 | L54: 0.01684661566 | M54: 0.01747998829 | N54: 0.01675868132 | P54: REGIONAL NORTE | Q54: 137.139228 | R54: 0.01246260431
B55: INSTESCNALDE BELLAS ARTES Y ESCUELA UNIVDE MUSICA | C55: 0 | D55: 0.01499452217 | E55: 0 | F55: 0 | G55: 0 | H55: 0 | I55: 0 | J55: 0 | K55: 0 | L55: 0 | M55: 0 | N55: 0 | P55: INSTITUTO DE HIGIENE | Q55: 70.958059 | R55: 0.006448353437
B56: IEMBAYEUMBELLAS ARTES Y MUSICA | C56: 0 | D56: 0 | E56: 0.01610301568 | F56: 0.01749994264 | G56: 0.01792804494 | H56: 0.01929554291 | I56: 0.02167701127 | J56: 0.002068468111 | K56: 0 | L56: 0 | M56: 0 | N56: 0 | P56: INSTITUTO ESCUELA NACIONAL DE BELLAS ARTES | Q56: 0
B57: IENBAYEUMBELLAS ARTES Y MUSICA | C57: 0 | D57: 0 | E57: 0 | F57: 0 | G57: 0 | H57: 0 | I57: 0 | J57: 0.01783728458 | K57: 0.01748323692 | L57: 0.01849949877 | M57: 0.01843258838 | N57: 0.01808042364 | P57: INSTITUTO NACIONAL DE ENFERMERIA | Q57: 0
B58: FACULTAD DE INFORMACION Y COMUNICACION | C58: 0 | D58: 0 | E58: 0 | F58: 0 | G58: 0 | H58: 0 | I58: 0 | J58: 0 | K58: 0 | L58: 0 | M58: 0.01392963502 | N58: 0.01445265851 | P58: INSTESCNALDE BELLAS ARTES Y ESCUELA UNIVDE MUSICA | Q58: 0
C59: =SUM(C35:C58) -> 1 | D59: 1 | E59: 1 | F59: 1 | G59: 1 | H59: 1 | I59: 1 | J59: 1 | K59: 1 | L59: 1 | M59: 1 | N59: 1 | P59: IEMBAYEUMBELLAS ARTES Y MUSICA | Q59: 0
P60: CENTRO UNIVERSITARIO REGIONAL ESTE | Q60: 0
P61: CENTRO UNIVERSITARIO REGIONAL LITORAL NORTE | Q61: 0
P62: FACULTAD DE ARQUITECTURA DISEO Y URBANISMO | Q62: 0
A64: Código Inciso | B64: Descripción Funcionamiento O Inversión | C64: 2004 | D64: 2005 | E64: 2006 | F64: 2007 | G64: 2008 | H64: 2009 | I64: 2010 | J64: 2011 | K64: 2012 | L64: 2013 | M64: 2014 | N64: 2015 | P64: Descripción Funcionamiento O Inversión | Q64: 2004 | R64: 2005 | S64: 2006 | T64: 2007 | U64: 2008 | V64: 2009 | W64: 2010 | X64: 2011 | Y64: 2012 | Z64: 2013 | AA64: 2014 | AB64: 2015 | AC64: Crec 04/15 | AD64: Crec anual | AE64: Crec 2014-2015
B65: Funcionamiento | C65: 487265030 | D65: 518155218 | E65: 518813318 | F65: 707313731 | G65: 705752967 | H65: 833785489 | I65: 808347037 | J65: 980054311 | K65: 1125239656 | L65: 1156921280 | M65: 1294879576 | N65: 1435246631 | P65: Funcionamiento | Q65: =(C65/(Q$2/$AB$2))/1000000 -> 1085.494462 | R65: 1102.499902 | S65: 1037.510851 | T65: 1308.310495 | U65: 1210.126261 | V65: 1335.356806 | W65: 1213.327236 | X65: 1360.910467 | Y65: 1445.465472 | Z65: 1368.787795 | AA65: 1407.097335 | AB65: 1435.246631 | AC65: =(AB65/Q65-1) -> 0.3222053926 | AD65: =((AB65/Q65)^(1/12))-1 -> 0.02354806989 | AE65: =AB65/AA65-1 -> 0.02000522334
B66: Remuneraciones | C66: 1715483648 | D66: 1861933954 | E66: 2265923344 | F66: 2608350661 | G66: 3416089756 | H66: 4207414525 | I66: 4631199112 | J66: 5447749252 | K66: 6187144299 | L66: 6972429551 | M66: 7995823438 | N66: 8719521653 | P66: Remuneraciones | Q66: 3821.632755 | R66: 3961.712497 | S66: 4531.340995 | T66: 4824.637773 | U66: 5857.431874 | V66: 6738.423368 | W66: 6951.42032 | X66: 7564.783801 | Y66: 7947.909949 | Z66: 8249.287688 | AA66: 8688.763076 | AB66: 8719.521653 | AC66: =(AB66/Q66-1) -> 1.281622074 | AD66: =((AB66/Q66)^(1/12))-1 -> 0.0711582634 | AE66: =AB66/AA66-1 -> 0.003540040994
B67: Inversiones | C67: 81723193 | D67: 75001532 | E67: 104322376 | F67: 226177789 | G67: 290696249 | H67: 394150858 | I67: 413309413 | J67: 670490543 | K67: 704361607 | L67: 728537541 | M67: 796069019 | N67: 849290301 | P67: Inversiones | Q67: 182.057131 | R67: 159.5838058 | S67: 208.6214701 | T67: 418.3585898 | U67: 498.4451803 | V67: 631.255926 | W67: 620.3765769 | X67: 931.0479914 | Y67: 904.8120349 | Z67: 861.9543193 | AA67: 865.0585085 | AB67: 849.290301 | AC67: =(AB67/Q67-1) -> 3.664965862 | AD67: =((AB67/Q67)^(1/12))-1 -> 0.1369395453 | AE67: =AB67/AA67-1 -> -0.01822790874
B69: Distribución %
B70: Funcionamiento | C70: =C65/SUM(C$65:C$67) -> 0.2132943882 | D70: 0.2110533909 | E70: 0.1795786487 | F70: 0.1997022156 | G70: 0.1599426025 | H70: 0.1534004904 | I70: 0.1381115643 | J70: 0.1380689918 | K70: 0.1403611537 | L70: 0.130609151 | M70: 0.12837403 | N70: 0.1304288431
B71: Remuneraciones | C71: 0.7509322701 | D71: 0.7583972156 | E71: 0.7843118864 | F71: 0.7364389851 | G71: 0.7741778096 | H71: 0.7740833341 | I71: 0.7912717242 | J71: 0.7674730253 | K71: 0.7717775563 | L71: 0.7871435333 | M71: 0.792703891 | N71: 0.7923914241
B72: Inversiones | C72: 0.03577334177 | D72: 0.0305493935 | E72: 0.03610946493 | F72: 0.0638587993 | G72: 0.06587958788 | H72: 0.07251617555 | I72: 0.07061671156 | J72: 0.09445798286 | K72: 0.08786129004 | L72: 0.08224731566 | M72: 0.07892207898 | N72: 0.07717973277
C73: =SUM(C70:C72) -> 1 | D73: 1 | E73: 1 | F73: 1 | G73: 1 | H73: 1 | I73: 1 | J73: 1 | K73: 1 | L73: 1 | M73: 1 | N73: 1

Sheet CONTROL (hidden)
B1: PRIMER CUADRO | C1: SEGUNDO CUADRO
A2: MATRÍCULA | B2: II-1.2.1 | C2: II-1.2.2 | D2: =IF(#REF!, "OK", "INCONSISTENCIA") -> 
A3: MATRÍCULA | B3: II-1.2.1 | C3: II-1.2.3 | D3: =IF(#REF!=#REF!, "OK", "INCONSISTENCIA") -> 
A4: MATRÍCULA | B4: II-1.2.1 | C4: II-1.2.5 | D4: =IF(#REF!=#REF!, "OK", "INCONSISTENCIA") -> 
A5: MATRÍCULA | B5: II-1.2.1 | C5: II-1.2.6 | D5: =IF(#REF!=#REF!,"OK","INCONSISTENCIA") -> 
A6: MATRÍCULA | B6: II-1.2.4 | C6: II-1.2.5 | D6: =IF(#REF!, "OK", "INCONSISTENCIA") -> 
A7: MATRÍCULA | B7: II-1.2.4 | C7: II-1.2.6 | D7: =IF(#REF!=#REF!, "OK", "INCONSISTENCIA") -> 
A8: MATRÍCULA | B8: II-1.2.5 | C8: II-1.2.6 | D8: =IF(#REF!=#REF!,"OK","INCONSISTENCIA") -> 
A9: MATRÍCULA | B9: II-1.2.5 | C9: II-1.2.7 | D9: =IF(#REF! =#REF!, "OK", "INCONSISTENCIA") -> 
A10: PERSONAL | B10: II-1.3.3 | C10: II-1.3.4 | D10: =IF(#REF! =#REF!, "OK", "INCONSISTENCIA") -> 

Sheet CONTROL (hidden)
A1: DENTRO DE PRIMARIA | G1: EN SINOPSIS
B2: PRIMER CUADRO | C2: SEGUNDO CUADRO | D2: TERCER CUADRO | F2: Aclaración. | G2: PRIMER CUADRO | H2: SEGUNDO CUADRO | I2: TERCER CUADRO
A3: ESTABLEC. | B3: II-2.1.1 | C3: II-2.1.2 | E3: =IF(SUM(#REF!+#REF!+#REF!+#REF!+#REF! +#REF! =#REF!),"OK","INCONSISTENCIA") -> 
A4: ESTABLEC. | B4: II-2.1.1 | C4: II-2.1.4 | E4: =IF(#REF!=#REF!,"OK","INCONSISTENCIA") -> 
A5: ESTABLEC. | B5: II-2.1.1 | C5: II-2.1.4 | E5: =IF(#REF!=#REF!,"OK","INCONSISTENCIA") ->  | F5: =IF(E5="INCONSISTENCIA","Número de establecimiento de especial","") -> 
A6: MATRÍCULA | B6: II-2.2.1 | C6: II-2.2.2 | E6: =IF(#REF!=#REF!,"OK","INCONSISTENCIA") ->  | F6: =IF(E6="INCONSISTENCIA","Matrícula de Primaria Pública","") ->  | J6: =IF((#REF!+#REF!)=#REF!,"OK","INCONSISTENCIA") ->  | K6: =IF(J6="INCONSISTENCIA","Matrícula de Primaria Pública","") -> 
A7: MATRÍCULA | B7: II-2.2.2 | C7: II-2.2.3 | E7: =IF(#REF!=SUM(#REF!-#REF!),"OK","INCONSISTENCIA") ->  | J7: =IF((#REF!+#REF!)=#REF!,"OK","INCONSISTENCIA") -> 
A8: MATRÍCULA | B8: II-2.2.2 | C8: II-2.2.8 | E8: =IF(#REF!=#REF!,"OK","INCONSISTENCIA") -> 
A9: MATRÍCULA | B9: II-2.2.1 | C9: II-2.2.6 | E9: =IF(#REF!=#REF!,"OK","INCONSISTENCIA") -> 
A10: MATRÍCULA | B10: II-2.2.2 | C10: II-2.2.8 | E10: =IF(#REF!=#REF!,"OK","INCONSISTENCIA") -> 
A11: MATRÍCULA | B11: II-2.2.1 | C11: II-2.2.8 | E11: =IF(#REF!=#REF!,"OK","INCONSISTENCIA") -> 
A12: MATRÍCULA | B12: II-2.2.2 | C12: II-2.2.9 | E12: =IF(#REF!=#REF!,"OK","INCONSISTENCIA") -> 
A13: MATRÍCULA | B13: II-2.2.1 | C13: II-2.2.10 | E13: =IF(#REF!=#REF!,"OK","INCONSISTENCIA") -> 
A14: MATRÍCULA | B14: II-2.2.2 | C14: II-2.2.11 | E14: =IF(#REF!=#REF!,"OK","INCONSISTENCIA") -> 
A15: MATRÍCULA | B15: II-2.2.1 | C15: II-2.2.11 | E15: =IF(#REF!=#REF!,"OK","INCONSISTENCIA") -> 
A16: MATRÍCULA | B16: II-2.2.12 | C16: II-2.2.13 | E16: =IF(#REF!=#REF!,"OK","INCONSISTENCIA") -> 
A17: MATRÍCULA | B17: II-2.2.10 | C17: II-2.2.12 | E17: =IF(#REF!=#REF!,"OK","INCONSISTENCIA") -> 
A18: MATRÍCULA | B18: II-2.2.12 | C18: II-2.2.13 | E18: =IF(#REF!=#REF!,"OK","INCONSISTENCIA") -> 
A19: MATRÍCULA | B19: II-2.2.13 | C19: II-2.2.14 | E19: =IF(#REF!=#REF!,"OK","INCONSISTENCIA") -> 
A20: MATRÍCULA | B20: II-2.2.13 | C20: II-2.2.14 | E20: =IF(#REF!=#REF!,"OK","INCONSISTENCIA") -> 
A21: MATRÍCULA | B21: II-2.2.1 | C21: II-2.2.15 | E21: =IF(#REF!=#REF!+#REF!,"OK","INCONSISTENCIA") -> 
A22: MATRÍCULA | B22: II-2.2.16 | C22: II-2.2.17 | E22: =IF(#REF!=#REF!,"OK","INCONSISTENCIA") -> 
A23: MATRÍCULA | B23: II-2.2.1 | C23: II-2.2.18 | E23: =IF(#REF!=#REF!,"OK","INCONSISTENCIA") -> 

Sheet CONTROL Media Básica (hidden)
B1: PRIMER CUADRO | C1: SEGUNDO CUADRO
A2: MATRÍCULA | B2: II-3.2.1 | C2: II-3.2.4 | D2: =IF(#REF! =#REF!, "OK", "INCONSISTENCIA") -> 
A3: MATRÍCULA | B3: II-3.2.1 | C3: II-3.2.4 | D3: =IF(#REF! =#REF!, "OK", "INCONSISTENCIA") -> 
A4: MATRÍCULA | B4: II-3.2.1 | C4: II-3.2.4 | D4: =IF(#REF! =#REF!, "OK", "INCONSISTENCIA") -> 
A5: MATRÍCULA | B5: II-3.2.1 | C5: II-3.2.4 | D5: =IF(#REF! =#REF!, "OK", "INCONSISTENCIA") -> 
A6: MATRÍCULA | B6: II-3.2.1 | C6: II-3.2.4 | D6: =IF(#REF! =#REF!, "OK", "INCONSISTENCIA") -> 
A7: MATRÍCULA | B7: II-3.2.1 | C7: II-3.2.4 | D7: =IF(#REF! =#REF!, "OK", "INCONSISTENCIA") -> 
A8: MATRÍCULA | B8: II-3.2.2 | C8: II-3.2.5 | D8: =IF('[3]II-3.2.2'!C14=#REF!, "OK", "INCONSISTENCIA") -> 
A9: MATRÍCULA | B9: II-3.2.2 | C9: II-3.2.5 | D9: =IF('[3]II-3.2.2'!F14=#REF!, "OK", "INCONSISTENCIA") -> 
A10: MATRÍCULA | B10: II-3.2.2 | C10: II-3.2.5 | D10: =IF('[3]II-3.2.2'!I14=#REF!, "OK", "INCONSISTENCIA") -> 
A11: MATRÍCULA | B11: II-3.2.2 | C11: II-3.2.5 | D11: =IF('[3]II-3.2.2'!L14=#REF!, "OK", "INCONSISTENCIA") -> 
A12: MATRÍCULA | B12: II-3.2.5 | C12: II-3.2.6 | D12: =IF(#REF!=#REF!, "OK", "INCONSISTENCIA") -> 
A13: MATRÍCULA | B13: II-3.2.5 | C13: II-3.2.6 | D13: =IF(#REF!=#REF!, "OK", "INCONSISTENCIA") -> 
A14: MATRÍCULA | B14: II-3.2.5 | C14: II-3.2.6 | D14: =IF(#REF!=#REF!, "OK", "INCONSISTENCIA") -> 
A15: MATRÍCULA | B15: II-3.2.5 | C15: II-3.2.6 | D15: =IF(#REF!=#REF!, "OK", "INCONSISTENCIA") -> 

Sheet CONTROL Media Superior (hidden)
B1: PRIMER CUADRO | C1: SEGUNDO CUADRO
A2: MATRÍCULA | B2: II-4.2.1 | C2: II-4.2.5 | D2: =IF(#REF!=#REF!, "OK", "INCONSISTENCIA") -> 
A3: MATRÍCULA | B3: II-4.2.1 | C3: II-4.2.5 | D3: =IF(#REF!=#REF!,"OK","INCONSISTENCIA") -> 
A4: MATRÍCULA | B4: II-4.2.1 | C4: II-4.2.5 | D4: =IF(#REF!=#REF!, "OK", "INCONSISTENCIA") -> 
A5: MATRÍCULA | B5: II-4.2.1 | C5: II-4.2.5 | D5: =IF(#REF!=#REF!, "OK", "INCONSISTENCIA") -> 
A6: MATRÍCULA | B6: II-4.2.1 | C6: II-4.2.5 | D6: =IF(#REF!=#REF!, "OK", "INCONSISTENCIA") -> 
A7: MATRÍCULA | B7: II-4.2.1 | C7: II-4.2.5 | D7: =IF(#REF!=#REF!, "OK", "INCONSISTENCIA") -> 
A8: MATRÍCULA | B8: II-4.2.3 | C8: II-4.2.4 | D8: =IF(#REF!=#REF!, "OK", "INCONSISTENCIA") -> 
A9: MATRÍCULA | B9: II-4.2.3 | C9: II-4.2.4 | D9: =IF(#REF!=#REF!, "OK", "INCONSISTENCIA") -> 
A10: MATRÍCULA | B10: II-4.2.3 | C10: II-4.2.4 | D10: =IF(#REF!=#REF!, "OK", "INCONSISTENCIA") -> 
A11: MATRÍCULA | B11: II-4.2.3 | C11: II-4.2.4 | D11: =IF(#REF!=#REF!, "OK", "INCONSISTENCIA") -> 
A12: MATRÍCULA | B12: II-4.2.3 | C12: II-4.2.4 | D12: =IF(#REF!=#REF!, "OK", "INCONSISTENCIA") -> 
A13: MATRÍCULA | B13: II-4.2.1 | C13: II-4.2.6 | D13: =IF(#REF!=#REF!, "OK", "INCONSISTENCIA") -> 
A14: MATRÍCULA | B14: II-4.2.5 | C14: II-4.2.9 | D14: =IF(#REF!=#REF!, "OK", "INCONSISTENCIA") -> 
A15: MATRÍCULA | B15: II-4.2.5 | C15: II-4.2.9 | D15: =IF(#REF!=#REF!, "OK", "INCONSISTENCIA") -> 
A16: MATRÍCULA | B16: II-4.2.6 | C16: II-4.2.7 | D16: =IF(#REF!=#REF!, "OK", "INCONSISTENCIA") -> 
A17: MATRÍCULA | B17: II-4.2.6 | C17: II-4.2.8 | D17: =IF(#REF!=#REF!, "OK", "INCONSISTENCIA") -> 
A18: MATRÍCULA | B18: II-4.2.9 | C18: II-4.2.10 | D18: =IF(#REF!=#REF!, "OK", "INCONSISTENCIA") -> 
A19: MATRÍCULA | B19: II-4.2.9 | C19: II-4.2.10 | D19: =IF(#REF!=#REF!,"OK","INCONSISTENCIA") -> 
A20: MATRÍCULA | B20: II-4.2.9 | C20: II-4.2.10 | D20: =IF(#REF!=#REF!,"OK","INCONSISTENCIA") -> 
A21: MATRÍCULA | B21: II-4.2.9 | C21: II-4.2.11 | D21: =IF(#REF!=#REF!, "OK", "INCONSISTENCIA") -> 
